{"text_format":"1","workbook":"xlsx","n_sheets":19,"sheets":["Reporte de Formatos","Hoja1","Hoja2","Hoja3","Hidden_1","Hidden_2","Tabla_512939","Tabla_512926","Tabla_512940","Tabla_512910","Tabla_512930","Tabla_512917","Tabla_512927","Tabla_512918","Tabla_512919","Tabla_512937","Tabla_512941","Tabla_512938","Tabla_512942"],"not_rendered":{"charts":0,"images":2,"macros":0,"external_links":0,"defined_names":3,"comments":0,"pivot_tables":0},"unopened":[],"bounds":{"document_bytes":16777216,"sheet_cells":100000,"rows_first":2000,"rows_last":500,"rows_between":2000,"halvings":0,"cell_chars":16384,"cell_head_chars":4096},"cells_cut":0,"cells_raw":0,"read":"whole","date_system":"1900"}

{"sheet":"Reporte de Formatos","index":0,"n_rows":170,"n_cols":32,"rows_kept":170,"cut":false,"hidden":false,"merged":[[5,0,5,31],[1,0,1,2],[1,3,1,5],[1,6,1,8],[2,0,2,2],[2,3,2,5],[2,6,2,8]]}
["53405"]
["TÍTULO",null,null,"NOMBRE CORTO",null,null,"DESCRIPCIÓN"]
["Remuneraciones brutas y netas de todas las personas servidoras públicas de base y de confianza",null,null,"Remuneración bruta y neta",null,null,"La información relativa a la remuneración mensual bruta y neta de conformidad con el tabulador de sueldos y salarios aplicable a cada sujeto obligado, así como todos los conceptos que sean adicionales y distintos a las remuneraciones, especificando la periodicidad con que se otorga cada uno de éstos (quincenal, mensual, semestral, anual, por única ocasión, etcétera)"]
["1","4","4","9","1","2","2","2","1","1","1","9","6","1","6","1","10","10","10","10","10","10","10","10","10","10","10","10","10","2","13","14"]
["512920","512932","512912","512933","512934","512915","512921","512922","512923","512916","512913","570980","512935","512936","512925","512914","512939","512926","512940","512910","512930","512917","512927","512918","512919","512937","512941","512938","512942","512928","512931","512911"]
["Tabla Campos"]
["Ejercicio","Fecha de inicio del periodo que se informa","Fecha de término del periodo que se informa","Tipo de integrante del sujeto obligado (catálogo)","Clave o nivel del puesto","Denominación o descripción del puesto (Redactados con perspectiva de género)","Denominación del cargo (de conformidad con el nombramiento otorgado)","Área de adscripción","Nombre (s)","Primer apellido","Segundo apellido","ESTE CRITERIO APLICA A PARTIR DEL 01/01/2023 -> Sexo (catálogo )","Monto de la remuneración mensual bruta, de conformidad al Tabulador de sueldos y salarios que corresponda","Tipo de moneda de la remuneración mensual bruta","Monto de la remuneración mensual neta, de conformidad al Tabulador de sueldos y salarios que corresponda","Tipo de moneda de la remuneración mensual neta","Percepciones adicionales en dinero, Monto bruto y neto, tipo de moneda y su periodicidad  \nTabla_512939","Percepciones adicionales en especie y su periodicidad \nTabla_512926","Ingresos, monto bruto y neto, tipo de moneda y su periodicidad \nTabla_512940","Sistemas de compensación, monto bruto y neto, tipo de moneda y su periodicidad \nTabla_512910","Gratificaciones, monto bruto y neto, tipo de moneda y su periodicidad \nTabla_512930","Primas, monto bruto y neto, tipo de moneda y su periodicidad \nTabla_512917","Comisiones, monto bruto y neto, tipo de moneda y su periodicidad \nTabla_512927","Dietas, monto bruto y neto, tipo de moneda y su periodicidad \nTabla_512918","Bonos, monto bruto y neto, tipo de moneda y su periodicidad \nTabla_512919","Estímulos, monto bruto y neto, tipo de moneda y su periodicidad \nTabla_512937","Apoyos económicos, monto bruto y neto, tipo de moneda y su periodicidad \nTabla_512941","Prestaciones económicas, monto bruto y neto, tipo de moneda y su periodicidad \nTabla_512938","Prestaciones en especie y su periodicidad \nTabla_512942","Área(s) responsable(s) que genera(n), posee(n), publica(n) y actualizan la información","Fecha de Actualización","Nota"]
[2025,"2025-07-01","2025-09-30","Funcionaria (o)",1719,"Director General \"C\"","Director General","Dirección General","Pedro Gustavo","Valenzuela ","Cantellano","Hombre",87107.520000000004,"PESO",61719.86,"PESO",null,null,1,null,null,1,null,null,null,null,null,1,null,"Subdirección de Recursos Humanos","2025-09-30","La suma del monto bruto de los ingresos considera el sueldo y demas prestaciones otorgadas durante el periodo.  La Dirección de Pensiones Civiles del Estado de Michoacán  no otorga Percepciones Adicionales en Dinero, Percepciones Adicionales en Especie, Ingresos, Sistemas de compensación, Comisiones, Dietas, Bonos, Estímulos, Apoyos económicos, Prestaciones económicas, Prestaciones en especie.\n"]
[2025,"2025-07-01","2025-09-30","Funcionaria (o)",1624,"Director de Área “C”","Director de Prestaciones","Dirección de Prestaciones","Esteban Reberiano","Morales","Guerrero","Hombre",68973.94,"PESO",49751.69,"PESO",null,null,2,null,null,2,null,null,null,null,null,2,null,"Subdirección de Recursos Humanos","2025-09-30","La suma del monto bruto de los ingresos considera el sueldo y demas prestaciones otorgadas durante el periodo.  La Dirección de Pensiones Civiles del Estado de Michoacán  no otorga Percepciones Adicionales en Dinero, Percepciones Adicionales en Especie, Ingresos, Sistemas de compensación, Comisiones, Dietas, Bonos, Estímulos, Apoyos económicos, Prestaciones económicas, Prestaciones en especie.\n"]
[2025,"2025-07-01","2025-09-30","Funcionaria (o)",1624,"Director de Área “C”","Director de Planeación y Finanzas","Dirección de Planeación y Finanzas","Dante","Huerta","Silva","Hombre",68973.94,"PESO",49751.69,"PESO",null,null,3,null,null,3,null,null,null,null,null,3,null,"Subdirección de Recursos Humanos","2025-09-30","La suma del monto bruto de los ingresos considera el sueldo y demas prestaciones otorgadas durante el periodo.  La Dirección de Pensiones Civiles del Estado de Michoacán  no otorga Percepciones Adicionales en Dinero, Percepciones Adicionales en Especie, Ingresos, Sistemas de compensación, Comisiones, Dietas, Bonos, Estímulos, Apoyos económicos, Prestaciones económicas, Prestaciones en especie.\n"]
[2025,"2025-07-01","2025-09-30","Funcionaria (o)",1610,"Directora de Área “A”","Delegada Administrativa","Delegación Administrativa","María Elena","Sánchez","Martínez","Mujer",47100.38,"PESO",35188.53,"PESO",null,null,4,null,null,4,null,null,null,null,null,4,null,"Subdirección de Recursos Humanos","2025-09-30","La suma del monto bruto de los ingresos considera el sueldo y demas prestaciones otorgadas durante el periodo.  La Dirección de Pensiones Civiles del Estado de Michoacán  no otorga Percepciones Adicionales en Dinero, Percepciones Adicionales en Especie, Ingresos, Sistemas de compensación, Comisiones, Dietas, Bonos, Estímulos, Apoyos económicos, Prestaciones económicas, Prestaciones en especie.\n"]
[2025,"2025-07-01","2025-09-30","Funcionaria (o)",1610,"Director de Área “A”","Titular de la Unidad de Informática","Unidad de Informática","Rodolfo","Jaimes","Montufar","Hombre",47100.38,"PESO",35188.53,"PESO",null,null,5,null,null,5,null,null,null,null,null,5,null,"Subdirección de Recursos Humanos","2025-09-30","La suma del monto bruto de los ingresos considera el sueldo y demas prestaciones otorgadas durante el periodo.  La Dirección de Pensiones Civiles del Estado de Michoacán  no otorga Percepciones Adicionales en Dinero, Percepciones Adicionales en Especie, Ingresos, Sistemas de compensación, Comisiones, Dietas, Bonos, Estímulos, Apoyos económicos, Prestaciones económicas, Prestaciones en especie.\n"]
[2025,"2025-07-01","2025-09-30","Funcionaria (o)",1610,"Director de Área “A”","Titular del Enlace Jurídico","Enlace Jurídico","Sergio","Pérez","Calderón","Hombre",47100.38,"PESO",35188.53,"PESO",null,null,6,null,null,6,null,null,null,null,null,6,null,"Subdirección de Recursos Humanos","2025-09-30","La suma del monto bruto de los ingresos considera el sueldo y demas prestaciones otorgadas durante el periodo.  La Dirección de Pensiones Civiles del Estado de Michoacán  no otorga Percepciones Adicionales en Dinero, Percepciones Adicionales en Especie, Ingresos, Sistemas de compensación, Comisiones, Dietas, Bonos, Estímulos, Apoyos económicos, Prestaciones económicas, Prestaciones en especie.\n"]
[2025,"2025-07-01","2025-09-30","Funcionaria (o)",1517,"Subdirectora “C”","Subdirectora de Recursos Humanos","Subdirección de Recursos Humanos","Paulina","Martínez","Cerna","Mujer",39566.800000000003,"PESO",30055.640000000003,"PESO",null,null,7,null,null,7,null,null,null,null,null,7,null,"Subdirección de Recursos Humanos","2025-09-30","La suma del monto bruto de los ingresos considera el sueldo y demas prestaciones otorgadas durante el periodo.  La Dirección de Pensiones Civiles del Estado de Michoacán  no otorga Percepciones Adicionales en Dinero, Percepciones Adicionales en Especie, Ingresos, Sistemas de compensación, Comisiones, Dietas, Bonos, Estímulos, Apoyos económicos, Prestaciones económicas, Prestaciones en especie.\n"]
[2025,"2025-07-01","2025-09-30","Funcionaria (o)",1517,"Subdirectora “C”","Titular de la Unidad de Seguimiento y Apoyo Técnico","Unidad de Seguimiento y Apoyo Técnico","Irma Graciela ","Gaona ","Becerra","Mujer",39566.800000000003,"PESO",30055.640000000003,"PESO",null,null,8,null,null,8,null,null,null,null,null,8,null,"Subdirección de Recursos Humanos","2025-09-30","La suma del monto bruto de los ingresos considera el sueldo y demas prestaciones otorgadas durante el periodo.  La Dirección de Pensiones Civiles del Estado de Michoacán  no otorga Percepciones Adicionales en Dinero, Percepciones Adicionales en Especie, Ingresos, Sistemas de compensación, Comisiones, Dietas, Bonos, Estímulos, Apoyos económicos, Prestaciones económicas, Prestaciones en especie.\n"]
[2025,"2025-07-01","2025-09-30","Funcionaria (o)",1517,"Subdirector “C”","Subdirector de Jubilados y Pensionados","Subdirección de Jubilados y Pensionados","Martín","Farías","Barajas","Hombre",39566.800000000003,"PESO",30055.640000000003,"PESO",null,null,9,null,null,9,null,null,null,null,null,9,null,"Subdirección de Recursos Humanos","2025-09-30","La suma del monto bruto de los ingresos considera el sueldo y demas prestaciones otorgadas durante el periodo.  La Dirección de Pensiones Civiles del Estado de Michoacán  no otorga Percepciones Adicionales en Dinero, Percepciones Adicionales en Especie, Ingresos, Sistemas de compensación, Comisiones, Dietas, Bonos, Estímulos, Apoyos económicos, Prestaciones económicas, Prestaciones en especie.\n"]
[2025,"2025-07-01","2025-09-30","Funcionaria (o)",1517,"Subdirectora “C”","Subdirectora de Contabilidad y Presupuesto","Subdirección de Contabilidad y Presupuesto","Mónica","Ponce de León","Rivera","Mujer",39566.800000000003,"PESO",30055.640000000003,"PESO",null,null,10,null,null,10,null,null,null,null,null,10,null,"Subdirección de Recursos Humanos","2025-09-30","La suma del monto bruto de los ingresos considera el sueldo y demas prestaciones otorgadas durante el periodo.  La Dirección de Pensiones Civiles del Estado de Michoacán  no otorga Percepciones Adicionales en Dinero, Percepciones Adicionales en Especie, Ingresos, Sistemas de compensación, Comisiones, Dietas, Bonos, Estímulos, Apoyos económicos, Prestaciones económicas, Prestaciones en especie.\n"]
[2025,"2025-07-01","2025-09-30","Funcionaria (o)",1517,"Subdirector “C”","Subdirectora de   Contratos, Estudios y Dictámenes Jurídicos","Subdirección Contratos, Estudios y Dictámenes Jurídicos","Karina Berenice","Medina","Morales","Mujer",39566.800000000003,"PESO",30055.640000000003,"PESO",null,null,11,null,null,11,null,null,null,null,null,11,null,"Subdirección de Recursos Humanos","2025-09-30","La suma del monto bruto de los ingresos considera el sueldo y demas prestaciones otorgadas durante el periodo.  La Dirección de Pensiones Civiles del Estado de Michoacán  no otorga Percepciones Adicionales en Dinero, Percepciones Adicionales en Especie, Ingresos, Sistemas de compensación, Comisiones, Dietas, Bonos, Estímulos, Apoyos económicos, Prestaciones económicas, Prestaciones en especie.\n"]
[2025,"2025-07-01","2025-09-30","Funcionaria (o)",1517,"Subdirectora “C”","Subdirectora de Préstamos a Corto Plazo","Subdirección de Préstamos a Corto Plazo","Erika Ofelia","López","Guerrero","Mujer",39566.800000000003,"PESO",30055.640000000003,"PESO",null,null,12,null,null,12,null,null,null,null,null,12,null,"Subdirección de Recursos Humanos","2025-09-30","La suma del monto bruto de los ingresos considera el sueldo y demas prestaciones otorgadas durante el periodo.  La Dirección de Pensiones Civiles del Estado de Michoacán  no otorga Percepciones Adicionales en Dinero, Percepciones Adicionales en Especie, Ingresos, Sistemas de compensación, Comisiones, Dietas, Bonos, Estímulos, Apoyos económicos, Prestaciones económicas, Prestaciones en especie.\n"]
[2025,"2025-07-01","2025-09-30","Funcionaria (o)",1517,"Subdirector “C”","Subdirector de Sistemas","Subdirección de Sistemas","Arturo","Huerta","Díaz","Hombre",39566.800000000003,"PESO",30055.640000000003,"PESO",null,null,13,null,null,13,null,null,null,null,null,13,null,"Subdirección de Recursos Humanos","2025-09-30","La suma del monto bruto de los ingresos considera el sueldo y demas prestaciones otorgadas durante el periodo.  La Dirección de Pensiones Civiles del Estado de Michoacán  no otorga Percepciones Adicionales en Dinero, Percepciones Adicionales en Especie, Ingresos, Sistemas de compensación, Comisiones, Dietas, Bonos, Estímulos, Apoyos económicos, Prestaciones económicas, Prestaciones en especie.\n"]
[2025,"2025-07-01","2025-09-30","Funcionaria (o)",1517,"Subdirector “C”","Subdirector de Procesos Legales","Subdirección de Procesos Legales","Julio Cesar","Vega","Pineda","Hombre",39566.800000000003,"PESO",30055.640000000003,"PESO",null,null,14,null,null,14,null,null,null,null,null,14,null,"Subdirección de Recursos Humanos","2025-09-30","La suma del monto bruto de los ingresos considera el sueldo y demas prestaciones otorgadas durante el periodo.  La Dirección de Pensiones Civiles del Estado de Michoacán  no otorga Percepciones Adicionales en Dinero, Percepciones Adicionales en Especie, Ingresos, Sistemas de compensación, Comisiones, Dietas, Bonos, Estímulos, Apoyos económicos, Prestaciones económicas, Prestaciones en especie.\n"]
[2025,"2025-07-01","2025-09-30","Funcionaria (o)",1517,"Subdirectora “C”","Subdirectora de Caja","Subdirección de Caja","Liliana","Munguía","Godínez","Mujer",39566.800000000003,"PESO",30055.640000000003,"PESO",null,null,15,null,null,15,null,null,null,null,null,15,null,"Subdirección de Recursos Humanos","2025-09-30","La suma del monto bruto de los ingresos considera el sueldo y demas prestaciones otorgadas durante el periodo.  La Dirección de Pensiones Civiles del Estado de Michoacán  no otorga Percepciones Adicionales en Dinero, Percepciones Adicionales en Especie, Ingresos, Sistemas de compensación, Comisiones, Dietas, Bonos, Estímulos, Apoyos económicos, Prestaciones económicas, Prestaciones en especie.\n"]
[2025,"2025-07-01","2025-09-30","Funcionaria (o)",1517,"Subdirector “C”","Subdirector de Soporte Técnico","Subdirección de Soporte Técnico","Agustín","Villegas","Alcaraz","Hombre",39566.800000000003,"PESO",30055.640000000003,"PESO",null,null,16,null,null,16,null,null,null,null,null,16,null,"Subdirección de Recursos Humanos","2025-09-30","La suma del monto bruto de los ingresos considera el sueldo y demas prestaciones otorgadas durante el periodo.  La Dirección de Pensiones Civiles del Estado de Michoacán  no otorga Percepciones Adicionales en Dinero, Percepciones Adicionales en Especie, Ingresos, Sistemas de compensación, Comisiones, Dietas, Bonos, Estímulos, Apoyos económicos, Prestaciones económicas, Prestaciones en especie.\n"]
[2025,"2025-07-01","2025-09-30","Funcionaria (o)",1517,"Subdirector “C”","Subdirector de Créditos con Garantía Hipotecaria","Subdirección de Créditos con Garantía Hipotecaria","Ruben Getzemani","Nares","Nieto","Hombre",39566.800000000003,"PESO",30055.640000000003,"PESO",null,null,17,null,null,17,null,null,null,null,null,17,null,"Subdirección de Recursos Humanos","2025-09-30","La suma del monto bruto de los ingresos considera el sueldo y demas prestaciones otorgadas durante el periodo.  La Dirección de Pensiones Civiles del Estado de Michoacán  no otorga Percepciones Adicionales en Dinero, Percepciones Adicionales en Especie, Ingresos, Sistemas de compensación, Comisiones, Dietas, Bonos, Estímulos, Apoyos económicos, Prestaciones económicas, Prestaciones en especie.\n"]
[2025,"2025-07-01","2025-09-30","Funcionaria (o)",1517,"Subdirector “C”","Subdirector de Recursos Materiales y Servicios Generales","Subdirección de Recursos Materiales y Servicios Generales","Jesús   ","Abarca","Orozco","Hombre",39566.800000000003,"PESO",30055.640000000003,"PESO",null,null,18,null,null,18,null,null,null,null,null,18,null,"Subdirección de Recursos Humanos","2025-09-30","La suma del monto bruto de los ingresos considera el sueldo y demas prestaciones otorgadas durante el periodo.  La Dirección de Pensiones Civiles del Estado de Michoacán  no otorga Percepciones Adicionales en Dinero, Percepciones Adicionales en Especie, Ingresos, Sistemas de compensación, Comisiones, Dietas, Bonos, Estímulos, Apoyos económicos, Prestaciones económicas, Prestaciones en especie.\n"]
[2025,"2025-07-01","2025-09-30","Persona servidora pública",9,"Técnica Profesional \"C\"","Técnica Profesional \"C\"","Subdirección de Préstamos con Garantía Hipotecaria","Rosalinda","Alvarez","Sánchez","Mujer",29922.98,"PESO",25199.43,"PESO",null,null,19,1,null,19,null,null,null,1,null,19,null,"Subdirección de Recursos Humanos","2025-09-30","La suma del monto bruto de los ingresos considera el sueldo y demas prestaciones otorgadas durante el periodo.  La Dirección de Pensiones Civiles del Estado de Michoacán  no otorga Percepciones Adicionales en Dinero, Percepciones Adicionales en Especie, Ingresos, Sistemas de compensación, Comisiones, Dietas, Bonos, Estímulos, Apoyos económicos, Prestaciones económicas, Prestaciones en especie.\n"]
[2025,"2025-07-01","2025-09-30","Persona servidora pública",9,"Técnico Profesional \"C\"","Técnico Profesional \"C\"","Subdirección de Préstamos a Corto Plazo","Rodolfo","Bedolla","Correa","Hombre",29922.98,"PESO",25199.43,"PESO",null,null,20,2,null,20,null,null,null,null,null,20,null,"Subdirección de Recursos Humanos","2025-09-30","La suma del monto bruto de los ingresos considera el sueldo y demas prestaciones otorgadas durante el periodo.  La Dirección de Pensiones Civiles del Estado de Michoacán  no otorga Percepciones Adicionales en Dinero, Percepciones Adicionales en Especie, Ingresos, Sistemas de compensación, Comisiones, Dietas, Bonos, Estímulos, Apoyos económicos, Prestaciones económicas, Prestaciones en especie.\n"]
[2025,"2025-07-01","2025-09-30","Persona servidora pública",9,"Jurista \"C\"","Jurista \"C\"","Subdirección de Contratos, Estudios y Dictámenes Jurídicos","Arturo Indalecio","Calderón","Cruz","Hombre",29922.98,"PESO",25199.43,"PESO",null,null,21,3,null,21,null,null,null,2,null,21,null,"Subdirección de Recursos Humanos","2025-09-30","La suma del monto bruto de los ingresos considera el sueldo y demas prestaciones otorgadas durante el periodo.  La Dirección de Pensiones Civiles del Estado de Michoacán  no otorga Percepciones Adicionales en Dinero, Percepciones Adicionales en Especie, Ingresos, Sistemas de compensación, Comisiones, Dietas, Bonos, Estímulos, Apoyos económicos, Prestaciones económicas, Prestaciones en especie.\n"]
[2025,"2025-07-01","2025-09-30","Persona servidora pública",9,"Secretaria de Funcionario \"C\"","Secretaria de Funcionario \"C\"","Subdirección de  Recursos Humanos","Angélica del Rocío","Calderón","Torres","Mujer",29922.98,"PESO",25199.43,"PESO",null,null,22,4,null,22,null,null,null,3,null,22,null,"Subdirección de Recursos Humanos","2025-09-30","La suma del monto bruto de los ingresos considera el sueldo y demas prestaciones otorgadas durante el periodo.  La Dirección de Pensiones Civiles del Estado de Michoacán  no otorga Percepciones Adicionales en Dinero, Percepciones Adicionales en Especie, Ingresos, Sistemas de compensación, Comisiones, Dietas, Bonos, Estímulos, Apoyos económicos, Prestaciones económicas, Prestaciones en especie.\n"]
[2025,"2025-07-01","2025-09-30","Persona servidora pública",9,"Contadora \"C\"","Contadora \"C\"","Subdirección de Recursos Materiales y Servicios Generales","Mónica Arceli","Castillo","Sánchez","Mujer",29922.98,"PESO",25199.43,"PESO",null,null,23,5,null,23,null,null,null,null,null,23,null,"Subdirección de Recursos Humanos","2025-09-30","La suma del monto bruto de los ingresos considera el sueldo y demas prestaciones otorgadas durante el periodo.  La Dirección de Pensiones Civiles del Estado de Michoacán  no otorga Percepciones Adicionales en Dinero, Percepciones Adicionales en Especie, Ingresos, Sistemas de compensación, Comisiones, Dietas, Bonos, Estímulos, Apoyos económicos, Prestaciones económicas, Prestaciones en especie.\n"]
[2025,"2025-07-01","2025-09-30","Persona servidora pública",9,"Técnica Profesional \"C\"","Técnica Profesional \"C\"","Subdirección de Créditos con Garantía Hipotecaria","Sandra  ","Cortés","Suárez","Mujer",29922.98,"PESO",25199.43,"PESO",null,null,24,6,null,24,null,null,null,null,null,24,null,"Subdirección de Recursos Humanos","2025-09-30","La suma del monto bruto de los ingresos considera el sueldo y demas prestaciones otorgadas durante el periodo.  La Dirección de Pensiones Civiles del Estado de Michoacán  no otorga Percepciones Adicionales en Dinero, Percepciones Adicionales en Especie, Ingresos, Sistemas de compensación, Comisiones, Dietas, Bonos, Estímulos, Apoyos económicos, Prestaciones económicas, Prestaciones en especie.\n"]
[2025,"2025-07-01","2025-09-30","Persona servidora pública",9,"Doctor \"C\"","Doctor \"C\"","CAI","Gustavo","García","Ulaje","Hombre",29922.98,"PESO",25199.43,"PESO",null,null,25,7,null,25,null,null,null,4,null,25,null,"Subdirección de Recursos Humanos","2025-09-30","La suma del monto bruto de los ingresos considera el sueldo y demas prestaciones otorgadas durante el periodo.  La Dirección de Pensiones Civiles del Estado de Michoacán  no otorga Percepciones Adicionales en Dinero, Percepciones Adicionales en Especie, Ingresos, Sistemas de compensación, Comisiones, Dietas, Bonos, Estímulos, Apoyos económicos, Prestaciones económicas, Prestaciones en especie.\n"]
[2025,"2025-07-01","2025-09-30","Persona servidora pública",9,"Operadora Especializada \"C\"","Operadora Especializada \"C\"","Dirección de Planeación y Finanzas","Silvia","Gómez","Cortés","Mujer",29922.98,"PESO",25199.43,"PESO",null,null,26,8,null,26,null,null,null,5,null,26,null,"Subdirección de Recursos Humanos","2025-09-30","La suma del monto bruto de los ingresos considera el sueldo y demas prestaciones otorgadas durante el periodo.  La Dirección de Pensiones Civiles del Estado de Michoacán  no otorga Percepciones Adicionales en Dinero, Percepciones Adicionales en Especie, Ingresos, Sistemas de compensación, Comisiones, Dietas, Bonos, Estímulos, Apoyos económicos, Prestaciones económicas, Prestaciones en especie.\n"]
[2025,"2025-07-01","2025-09-30","Persona servidora pública",9,"Secretaria de Funcionario \"C\"","Secretaria de Funcionario \"C\"","Dirección General","Rosa Isela","Lemus","Martínez","Mujer",29922.98,"PESO",25199.43,"PESO",null,null,27,9,null,27,null,null,null,6,null,27,null,"Subdirección de Recursos Humanos","2025-09-30","La suma del monto bruto de los ingresos considera el sueldo y demas prestaciones otorgadas durante el periodo.  La Dirección de Pensiones Civiles del Estado de Michoacán  no otorga Percepciones Adicionales en Dinero, Percepciones Adicionales en Especie, Ingresos, Sistemas de compensación, Comisiones, Dietas, Bonos, Estímulos, Apoyos económicos, Prestaciones económicas, Prestaciones en especie.\n"]
[2025,"2025-07-01","2025-09-30","Persona servidora pública",9,"Jurista \"C\"","Jurista \"C\"","Subdirección de Contratos, Estudios y Dictámenes Jurídicos","Francisco Guillermo","Mata","Aguilar","Hombre",29922.98,"PESO",25199.43,"PESO",null,null,28,10,null,28,null,null,null,null,null,28,null,"Subdirección de Recursos Humanos","2025-09-30","La suma del monto bruto de los ingresos considera el sueldo y demas prestaciones otorgadas durante el periodo.  La Dirección de Pensiones Civiles del Estado de Michoacán  no otorga Percepciones Adicionales en Dinero, Percepciones Adicionales en Especie, Ingresos, Sistemas de compensación, Comisiones, Dietas, Bonos, Estímulos, Apoyos económicos, Prestaciones económicas, Prestaciones en especie.\n"]
[2025,"2025-07-01","2025-09-30","Persona servidora pública",9,"Operador Especializado \"C\"","Operador Especializado \"C\"","Subdirección de Jubilados y Pensionados","Carmen","Morales","Ledesma","Mujer",29922.98,"PESO",25199.43,"PESO",null,null,29,11,null,29,null,null,null,null,null,29,null,"Subdirección de Recursos Humanos","2025-09-30","La suma del monto bruto de los ingresos considera el sueldo y demas prestaciones otorgadas durante el periodo.  La Dirección de Pensiones Civiles del Estado de Michoacán  no otorga Percepciones Adicionales en Dinero, Percepciones Adicionales en Especie, Ingresos, Sistemas de compensación, Comisiones, Dietas, Bonos, Estímulos, Apoyos económicos, Prestaciones económicas, Prestaciones en especie.\n"]
[2025,"2025-07-01","2025-09-30","Persona servidora pública",9,"Secretaria de Funcionario \"C\"","Secretaria de Funcionario \"C\"","Dirección de Planeación y Finanzas","Raquel","Nava","García","Mujer",29922.98,"PESO",25199.43,"PESO",null,null,30,12,null,30,null,null,null,null,null,30,null,"Subdirección de Recursos Humanos","2025-09-30","La suma del monto bruto de los ingresos considera el sueldo y demas prestaciones otorgadas durante el periodo.  La Dirección de Pensiones Civiles del Estado de Michoacán  no otorga Percepciones Adicionales en Dinero, Percepciones Adicionales en Especie, Ingresos, Sistemas de compensación, Comisiones, Dietas, Bonos, Estímulos, Apoyos económicos, Prestaciones económicas, Prestaciones en especie.\n"]
[2025,"2025-07-01","2025-09-30","Persona servidora pública",9,"Operador Especializado \"C\"","Operador Especializado \"C\"","Dirección de Prestaciones","Ángel Alejandro","Ponce de León","Solís","Hombre",29922.98,"PESO",25199.43,"PESO",null,null,31,13,null,31,null,null,null,7,null,31,null,"Subdirección de Recursos Humanos","2025-09-30","La suma del monto bruto de los ingresos considera el sueldo y demas prestaciones otorgadas durante el periodo.  La Dirección de Pensiones Civiles del Estado de Michoacán  no otorga Percepciones Adicionales en Dinero, Percepciones Adicionales en Especie, Ingresos, Sistemas de compensación, Comisiones, Dietas, Bonos, Estímulos, Apoyos económicos, Prestaciones económicas, Prestaciones en especie.\n"]
[2025,"2025-07-01","2025-09-30","Persona servidora pública",9,"Operadora Especializado \"C\"","Operadora Especializado \"C\"","Subdirección de Créditos con Garantía Hipotecaria","Norma Juana","Ruíz","Pérez","Mujer",29922.98,"PESO",25199.43,"PESO",null,null,32,14,null,32,null,null,null,null,null,32,null,"Subdirección de Recursos Humanos","2025-09-30","La suma del monto bruto de los ingresos considera el sueldo y demas prestaciones otorgadas durante el periodo.  La Dirección de Pensiones Civiles del Estado de Michoacán  no otorga Percepciones Adicionales en Dinero, Percepciones Adicionales en Especie, Ingresos, Sistemas de compensación, Comisiones, Dietas, Bonos, Estímulos, Apoyos económicos, Prestaciones económicas, Prestaciones en especie.\n"]
[2025,"2025-07-01","2025-09-30","Persona servidora pública",9,"Contador \"C\"","Contador \"C\"","Subdirección de Contabilidad y Presupuesto","Omar ","Vázquez ","Ochoa","Hombre",29922.98,"PESO",25199.43,"PESO",null,null,33,15,null,33,null,null,null,8,null,33,null,"Subdirección de Recursos Humanos","2025-09-30","La suma del monto bruto de los ingresos considera el sueldo y demas prestaciones otorgadas durante el periodo.  La Dirección de Pensiones Civiles del Estado de Michoacán  no otorga Percepciones Adicionales en Dinero, Percepciones Adicionales en Especie, Ingresos, Sistemas de compensación, Comisiones, Dietas, Bonos, Estímulos, Apoyos económicos, Prestaciones económicas, Prestaciones en especie.\n"]
[2025,"2025-07-01","2025-09-30","Persona servidora pública",8,"Oficial de Mantenimiento  \"B\"","Oficial de Mantenimiento  \"B\"","Subdirección de Recursos Materiales y Servicios Generales","Omar","Alvarez","Gutiérrez","Hombre",27775.95,"PESO",23511,"PESO",null,null,34,16,null,34,null,null,null,9,null,34,null,"Subdirección de Recursos Humanos","2025-09-30","La suma del monto bruto de los ingresos considera el sueldo y demas prestaciones otorgadas durante el periodo.  La Dirección de Pensiones Civiles del Estado de Michoacán  no otorga Percepciones Adicionales en Dinero, Percepciones Adicionales en Especie, Ingresos, Sistemas de compensación, Comisiones, Dietas, Bonos, Estímulos, Apoyos económicos, Prestaciones económicas, Prestaciones en especie.\n"]
[2025,"2025-07-01","2025-09-30","Persona servidora pública",8,"Auxiliar de Educadora \"B\"","Auxiliar de Educadora \"B\"","CAI","Gabriela Rosalinda","Arreola","Bedolla","Mujer",27775.95,"PESO",23511,"PESO",null,null,35,null,null,35,null,null,null,10,null,35,null,"Subdirección de Recursos Humanos","2025-09-30","La suma del monto bruto de los ingresos considera el sueldo y demas prestaciones otorgadas durante el periodo.  La Dirección de Pensiones Civiles del Estado de Michoacán  no otorga Percepciones Adicionales en Dinero, Percepciones Adicionales en Especie, Ingresos, Sistemas de compensación, Comisiones, Dietas, Bonos, Estímulos, Apoyos económicos, Prestaciones económicas, Prestaciones en especie.\n"]
[2025,"2025-07-01","2025-09-30","Persona servidora pública",8,"Técnica Profesional  \"B\"","Técnica Profesional  \"B\"","Subdirección de Jubilados y Pensionados","Maria Laura","Arreola","Vargas","Mujer",27775.95,"PESO",23511,"PESO",null,null,36,17,null,36,null,null,null,null,null,36,null,"Subdirección de Recursos Humanos","2025-09-30","La suma del monto bruto de los ingresos considera el sueldo y demas prestaciones otorgadas durante el periodo.  La Dirección de Pensiones Civiles del Estado de Michoacán  no otorga Percepciones Adicionales en Dinero, Percepciones Adicionales en Especie, Ingresos, Sistemas de compensación, Comisiones, Dietas, Bonos, Estímulos, Apoyos económicos, Prestaciones económicas, Prestaciones en especie.\n"]
[2025,"2025-07-01","2025-09-30","Persona servidora pública",8,"Secretaria de Funcionario \"B\"","Secretaria de Funcionario \"B\"","Dirección de Prestaciones","Mercedes","Avalos ","Hernández","Mujer",27775.95,"PESO",23511,"PESO",null,null,37,18,null,37,null,null,null,null,null,37,null,"Subdirección de Recursos Humanos","2025-09-30","La suma del monto bruto de los ingresos considera el sueldo y demas prestaciones otorgadas durante el periodo.  La Dirección de Pensiones Civiles del Estado de Michoacán  no otorga Percepciones Adicionales en Dinero, Percepciones Adicionales en Especie, Ingresos, Sistemas de compensación, Comisiones, Dietas, Bonos, Estímulos, Apoyos económicos, Prestaciones económicas, Prestaciones en especie.\n"]
[2025,"2025-07-01","2025-09-30","Persona servidora pública",8,"Auxiliar de Educadora \"B\"","Auxiliar de Educadora \"B\"","CAI","Reyna","Barajas","Alcauter","Mujer",27775.95,"PESO",23511,"PESO",null,null,38,19,null,38,null,null,null,11,null,38,null,"Subdirección de Recursos Humanos","2025-09-30","La suma del monto bruto de los ingresos considera el sueldo y demas prestaciones otorgadas durante el periodo.  La Dirección de Pensiones Civiles del Estado de Michoacán  no otorga Percepciones Adicionales en Dinero, Percepciones Adicionales en Especie, Ingresos, Sistemas de compensación, Comisiones, Dietas, Bonos, Estímulos, Apoyos económicos, Prestaciones económicas, Prestaciones en especie.\n"]
[2025,"2025-07-01","2025-09-30","Persona servidora pública",8,"Jurista \"B\"","Jurista \"B\"","Subdirección de Jubilados y Pensionados","Maryela ","Castillo","Carmona","Mujer",27775.95,"PESO",23511,"PESO",null,null,39,20,null,39,null,null,null,12,null,39,null,"Subdirección de Recursos Humanos","2025-09-30","La suma del monto bruto de los ingresos considera el sueldo y demas prestaciones otorgadas durante el periodo.  La Dirección de Pensiones Civiles del Estado de Michoacán  no otorga Percepciones Adicionales en Dinero, Percepciones Adicionales en Especie, Ingresos, Sistemas de compensación, Comisiones, Dietas, Bonos, Estímulos, Apoyos económicos, Prestaciones económicas, Prestaciones en especie.\n"]
[2025,"2025-07-01","2025-09-30","Persona servidora pública",8,"Oficial de Lavanderia \"B\"","Oficial de Lavanderia \"B\"","CAI","Victoria ","Estrella","Cardenas","Mujer",27775.95,"PESO",23511,"PESO",null,null,40,null,null,40,null,null,null,13,null,40,null,"Subdirección de Recursos Humanos","2025-09-30","La suma del monto bruto de los ingresos considera el sueldo y demas prestaciones otorgadas durante el periodo.  La Dirección de Pensiones Civiles del Estado de Michoacán  no otorga Percepciones Adicionales en Dinero, Percepciones Adicionales en Especie, Ingresos, Sistemas de compensación, Comisiones, Dietas, Bonos, Estímulos, Apoyos económicos, Prestaciones económicas, Prestaciones en especie.\n"]
[2025,"2025-07-01","2025-09-30","Persona servidora pública",8,"Auxiliar de Educadora \"B\"","Auxiliar de Educadora \"B\"","CAI","Ivonne Araceli","Gutiérrez","Hernández","Mujer",27775.95,"PESO",23511,"PESO",null,null,41,null,null,41,null,null,null,14,null,41,null,"Subdirección de Recursos Humanos","2025-09-30","La suma del monto bruto de los ingresos considera el sueldo y demas prestaciones otorgadas durante el periodo.  La Dirección de Pensiones Civiles del Estado de Michoacán  no otorga Percepciones Adicionales en Dinero, Percepciones Adicionales en Especie, Ingresos, Sistemas de compensación, Comisiones, Dietas, Bonos, Estímulos, Apoyos económicos, Prestaciones económicas, Prestaciones en especie.\n"]
[2025,"2025-07-01","2025-09-30","Persona servidora pública",8,"Auxiliar de Educadora \"B\"","Auxiliar de Educadora \"B\"","CAI","Silvia","Gutiérrez","Leyva","Mujer",27775.95,"PESO",23511,"PESO",null,null,42,21,null,42,null,null,null,15,null,42,null,"Subdirección de Recursos Humanos","2025-09-30","La suma del monto bruto de los ingresos considera el sueldo y demas prestaciones otorgadas durante el periodo.  La Dirección de Pensiones Civiles del Estado de Michoacán  no otorga Percepciones Adicionales en Dinero, Percepciones Adicionales en Especie, Ingresos, Sistemas de compensación, Comisiones, Dietas, Bonos, Estímulos, Apoyos económicos, Prestaciones económicas, Prestaciones en especie.\n"]
[2025,"2025-07-01","2025-09-30","Persona servidora pública",8,"Oficial de Mensajeria \"B\"","Oficial de Mensajeria \"B\"","Subdirección de Recursos Materiales y Serv. Generales","Héctor","Manzo","Hernández","Hombre",27775.95,"PESO",23511,"PESO",null,null,43,22,null,43,null,null,null,null,null,43,null,"Subdirección de Recursos Humanos","2025-09-30","La suma del monto bruto de los ingresos considera el sueldo y demas prestaciones otorgadas durante el periodo.  La Dirección de Pensiones Civiles del Estado de Michoacán  no otorga Percepciones Adicionales en Dinero, Percepciones Adicionales en Especie, Ingresos, Sistemas de compensación, Comisiones, Dietas, Bonos, Estímulos, Apoyos económicos, Prestaciones económicas, Prestaciones en especie.\n"]
[2025,"2025-07-01","2025-09-30","Persona servidora pública",8,"Secretaria de Funcionario \"B\"","Secretaria de Funcionario \"B\"","CAI","Ma. Elena","Martinez","Rosas","Mujer",27775.95,"PESO",23511,"PESO",null,null,44,23,null,44,null,null,null,16,null,44,null,"Subdirección de Recursos Humanos","2025-09-30","La suma del monto bruto de los ingresos considera el sueldo y demas prestaciones otorgadas durante el periodo.  La Dirección de Pensiones Civiles del Estado de Michoacán  no otorga Percepciones Adicionales en Dinero, Percepciones Adicionales en Especie, Ingresos, Sistemas de compensación, Comisiones, Dietas, Bonos, Estímulos, Apoyos económicos, Prestaciones económicas, Prestaciones en especie.\n"]
[2025,"2025-07-01","2025-09-30","Persona servidora pública",8,"Oficial Archivista \"B\"","Oficial Archivista \"B\"","Delegación Administrativa","Noee","Munguía","Suarez","Hombre",27775.95,"PESO",23511,"PESO",null,null,45,24,null,45,null,null,null,17,null,45,null,"Subdirección de Recursos Humanos","2025-09-30","La suma del monto bruto de los ingresos considera el sueldo y demas prestaciones otorgadas durante el periodo.  La Dirección de Pensiones Civiles del Estado de Michoacán  no otorga Percepciones Adicionales en Dinero, Percepciones Adicionales en Especie, Ingresos, Sistemas de compensación, Comisiones, Dietas, Bonos, Estímulos, Apoyos económicos, Prestaciones económicas, Prestaciones en especie.\n"]
[2025,"2025-07-01","2025-09-30","Persona servidora pública",8,"Oficial de Intendencia \"B\"","Oficial de Intendencia \"B\"","CAI","Alfonso","Pacheco","León","Hombre",27775.95,"PESO",23511,"PESO",null,null,46,25,null,46,null,null,null,18,null,46,null,"Subdirección de Recursos Humanos","2025-09-30","La suma del monto bruto de los ingresos considera el sueldo y demas prestaciones otorgadas durante el periodo.  La Dirección de Pensiones Civiles del Estado de Michoacán  no otorga Percepciones Adicionales en Dinero, Percepciones Adicionales en Especie, Ingresos, Sistemas de compensación, Comisiones, Dietas, Bonos, Estímulos, Apoyos económicos, Prestaciones económicas, Prestaciones en especie.\n"]
[2025,"2025-07-01","2025-09-30","Persona servidora pública",8,"Auxiliar de Educadora \"B\"","Auxiliar de Educadora \"B\"","CAI","María de Los Ángeles","Paredes","Carrillo","Mujer",27775.95,"PESO",23511,"PESO",null,null,47,26,null,47,null,null,null,19,null,47,null,"Subdirección de Recursos Humanos","2025-09-30","La suma del monto bruto de los ingresos considera el sueldo y demas prestaciones otorgadas durante el periodo.  La Dirección de Pensiones Civiles del Estado de Michoacán  no otorga Percepciones Adicionales en Dinero, Percepciones Adicionales en Especie, Ingresos, Sistemas de compensación, Comisiones, Dietas, Bonos, Estímulos, Apoyos económicos, Prestaciones económicas, Prestaciones en especie.\n"]
[2025,"2025-07-01","2025-09-30","Persona servidora pública",8,"Auxiliar de Educadora \"B\"","Auxiliar de Educadora \"B\"","CAI","Gabriela","Ramírez","Cedeño","Mujer",27775.95,"PESO",23511,"PESO",null,null,48,27,null,48,null,null,null,20,null,48,null,"Subdirección de Recursos Humanos","2025-09-30","La suma del monto bruto de los ingresos considera el sueldo y demas prestaciones otorgadas durante el periodo.  La Dirección de Pensiones Civiles del Estado de Michoacán  no otorga Percepciones Adicionales en Dinero, Percepciones Adicionales en Especie, Ingresos, Sistemas de compensación, Comisiones, Dietas, Bonos, Estímulos, Apoyos económicos, Prestaciones económicas, Prestaciones en especie.\n"]
[2025,"2025-07-01","2025-09-30","Persona servidora pública",8,"Secretaria de Funcionario  \"B\"","Secretaria de Funcionario  \"B\"","CAI","Rosa Olimpia","Reyes","Fernández","Mujer",27775.95,"PESO",23511,"PESO",null,null,49,28,null,49,null,null,null,21,null,49,null,"Subdirección de Recursos Humanos","2025-09-30","La suma del monto bruto de los ingresos considera el sueldo y demas prestaciones otorgadas durante el periodo.  La Dirección de Pensiones Civiles del Estado de Michoacán  no otorga Percepciones Adicionales en Dinero, Percepciones Adicionales en Especie, Ingresos, Sistemas de compensación, Comisiones, Dietas, Bonos, Estímulos, Apoyos económicos, Prestaciones económicas, Prestaciones en especie.\n"]
[2025,"2025-07-01","2025-09-30","Persona servidora pública",8,"Oficial de Mentenimiento  \"B\"","Oficial de Mentenimiento  \"B\"","Subdirección de Recursos Materiales y Serv. Generales","Gerardo","Velázquez","Arteaga","Hombre",27775.95,"PESO",23511,"PESO",null,null,50,29,null,50,null,null,null,22,null,50,null,"Subdirección de Recursos Humanos","2025-09-30","La suma del monto bruto de los ingresos considera el sueldo y demas prestaciones otorgadas durante el periodo.  La Dirección de Pensiones Civiles del Estado de Michoacán  no otorga Percepciones Adicionales en Dinero, Percepciones Adicionales en Especie, Ingresos, Sistemas de compensación, Comisiones, Dietas, Bonos, Estímulos, Apoyos económicos, Prestaciones económicas, Prestaciones en especie.\n"]
[2025,"2025-07-01","2025-09-30","Persona servidora pública",8,"Oficial de Mensajeria  \"B\"","Oficial de Mensajeria  \"B\"","Subdirección de Recursos Materiales y Serv. Generales","Juan José","Venegas","Calderón","Hombre",27775.95,"PESO",23511,"PESO",null,null,51,30,null,51,null,null,null,23,null,51,null,"Subdirección de Recursos Humanos","2025-09-30","La suma del monto bruto de los ingresos considera el sueldo y demas prestaciones otorgadas durante el periodo.  La Dirección de Pensiones Civiles del Estado de Michoacán  no otorga Percepciones Adicionales en Dinero, Percepciones Adicionales en Especie, Ingresos, Sistemas de compensación, Comisiones, Dietas, Bonos, Estímulos, Apoyos económicos, Prestaciones económicas, Prestaciones en especie.\n"]
[2025,"2025-07-01","2025-09-30","Persona servidora pública",8,"Oficial Capturista \"B\"","Oficial Capturista \"B\"","Subdirección de Soporte Técnico","Sergio Michelle","Venegas","Campos","Hombre",27775.95,"PESO",23511,"PESO",null,null,52,31,null,52,null,null,null,null,null,52,null,"Subdirección de Recursos Humanos","2025-09-30","La suma del monto bruto de los ingresos considera el sueldo y demas prestaciones otorgadas durante el periodo.  La Dirección de Pensiones Civiles del Estado de Michoacán  no otorga Percepciones Adicionales en Dinero, Percepciones Adicionales en Especie, Ingresos, Sistemas de compensación, Comisiones, Dietas, Bonos, Estímulos, Apoyos económicos, Prestaciones económicas, Prestaciones en especie.\n"]
[2025,"2025-07-01","2025-09-30","Persona servidora pública",7,"Técnica Profesional","Técnica Profesional","Subdirección de Créditos con Garantía Hipotecaria","Candy Paulina","Muñoz","Silva","Mujer",26453.5,"PESO",20666.189999999999,"PESO",null,null,53,null,null,53,null,null,null,null,null,53,null,"Subdirección de Recursos Humanos","2025-09-30","La suma del monto bruto de los ingresos considera el sueldo y demas prestaciones otorgadas durante el periodo.  La Dirección de Pensiones Civiles del Estado de Michoacán  no otorga Percepciones Adicionales en Dinero, Percepciones Adicionales en Especie, Ingresos, Sistemas de compensación, Comisiones, Dietas, Bonos, Estímulos, Apoyos económicos, Prestaciones económicas, Prestaciones en especie.\n"]
[2025,"2025-07-01","2025-09-30","Persona servidora pública",7,"Oficial de Mantenimiento","Oficial de Mantenimiento","Subdirección de Recursos Materiales y Servicios Generales","Francisco  ","Solis","Correa","Hombre",26453.5,"PESO",22471.03,"PESO",null,null,54,32,null,54,null,null,null,null,null,54,null,"Subdirección de Recursos Humanos","2025-09-30","La suma del monto bruto de los ingresos considera el sueldo y demas prestaciones otorgadas durante el periodo.  La Dirección de Pensiones Civiles del Estado de Michoacán  no otorga Percepciones Adicionales en Dinero, Percepciones Adicionales en Especie, Ingresos, Sistemas de compensación, Comisiones, Dietas, Bonos, Estímulos, Apoyos económicos, Prestaciones económicas, Prestaciones en especie.\n"]
[2025,"2025-07-01","2025-09-30","Persona servidora pública",7,"Auxiliar de Educadora ","Auxiliar de Educadora ","CAI","María Silvia","Vieyra","Gómez","Mujer",26453.5,"PESO",22471.03,"PESO",null,null,55,null,null,55,null,null,null,24,null,55,null,"Subdirección de Recursos Humanos","2025-09-30","La suma del monto bruto de los ingresos considera el sueldo y demas prestaciones otorgadas durante el periodo.  La Dirección de Pensiones Civiles del Estado de Michoacán  no otorga Percepciones Adicionales en Dinero, Percepciones Adicionales en Especie, Ingresos, Sistemas de compensación, Comisiones, Dietas, Bonos, Estímulos, Apoyos económicos, Prestaciones económicas, Prestaciones en especie.\n"]
[2025,"2025-07-01","2025-09-30","Persona servidora pública",6,"Intendente \"C\"","Intendente \"C\"","CAI","Ariel","Campos","Barriga","Hombre",25876.16,"PESO",22017.01,"PESO",null,null,56,33,null,56,null,null,null,25,null,56,null,"Subdirección de Recursos Humanos","2025-09-30","La suma del monto bruto de los ingresos considera el sueldo y demas prestaciones otorgadas durante el periodo.  La Dirección de Pensiones Civiles del Estado de Michoacán  no otorga Percepciones Adicionales en Dinero, Percepciones Adicionales en Especie, Ingresos, Sistemas de compensación, Comisiones, Dietas, Bonos, Estímulos, Apoyos económicos, Prestaciones económicas, Prestaciones en especie.\n"]
[2025,"2025-07-01","2025-09-30","Persona servidora pública",6,"Oficial Administrativo \"C\"","Oficial Administrativo \"C\"","Subdirección de Préstmos a Corto Plazo","Raúl Francisco","Espinoza","Bedolla","Hombre",25876.16,"PESO",22017.01,"PESO",null,null,57,34,null,57,null,null,null,26,null,57,null,"Subdirección de Recursos Humanos","2025-09-30","La suma del monto bruto de los ingresos considera el sueldo y demas prestaciones otorgadas durante el periodo.  La Dirección de Pensiones Civiles del Estado de Michoacán  no otorga Percepciones Adicionales en Dinero, Percepciones Adicionales en Especie, Ingresos, Sistemas de compensación, Comisiones, Dietas, Bonos, Estímulos, Apoyos económicos, Prestaciones económicas, Prestaciones en especie.\n"]
[2025,"2025-07-01","2025-09-30","Persona servidora pública",6,"Asistente de Contabilidad \"C\"","Asistente de Contabilidad \"C\"","Enlace Jurídico","Jessica Gabriela","Jiménez","Castañeda","Mujer",25876.16,"PESO",22017.01,"PESO",null,null,58,35,null,58,null,null,null,null,null,58,null,"Subdirección de Recursos Humanos","2025-09-30","La suma del monto bruto de los ingresos considera el sueldo y demas prestaciones otorgadas durante el periodo.  La Dirección de Pensiones Civiles del Estado de Michoacán  no otorga Percepciones Adicionales en Dinero, Percepciones Adicionales en Especie, Ingresos, Sistemas de compensación, Comisiones, Dietas, Bonos, Estímulos, Apoyos económicos, Prestaciones económicas, Prestaciones en especie.\n"]
[2025,"2025-07-01","2025-09-30","Persona servidora pública",6,"Asistente Educativo \"C\"","Asistente Educativo \"C\"","CAI","Angelica Izbeth","Murillo","Rodríguez","Mujer",25876.16,"PESO",22017.01,"PESO",null,null,59,null,null,59,null,null,null,27,null,59,null,"Subdirección de Recursos Humanos","2025-09-30","La suma del monto bruto de los ingresos considera el sueldo y demas prestaciones otorgadas durante el periodo.  La Dirección de Pensiones Civiles del Estado de Michoacán  no otorga Percepciones Adicionales en Dinero, Percepciones Adicionales en Especie, Ingresos, Sistemas de compensación, Comisiones, Dietas, Bonos, Estímulos, Apoyos económicos, Prestaciones económicas, Prestaciones en especie.\n"]
[2025,"2025-07-01","2025-09-30","Persona servidora pública",6,"Asistente Educativo \"C\"","Asistente Educativo \"C\"","CAI","Myriam","Rodríguez","Huazano","Mujer",25876.16,"PESO",22017.01,"PESO",null,null,60,null,null,60,null,null,null,28,null,60,null,"Subdirección de Recursos Humanos","2025-09-30","La suma del monto bruto de los ingresos considera el sueldo y demas prestaciones otorgadas durante el periodo.  La Dirección de Pensiones Civiles del Estado de Michoacán  no otorga Percepciones Adicionales en Dinero, Percepciones Adicionales en Especie, Ingresos, Sistemas de compensación, Comisiones, Dietas, Bonos, Estímulos, Apoyos económicos, Prestaciones económicas, Prestaciones en especie.\n"]
[2025,"2025-07-01","2025-09-30","Persona servidora pública",6,"Chofer \"C\"","Chofer \"C\"","CAI","Raúl  ","Sánchez","Miranda ","Hombre",25876.16,"PESO",22017.01,"PESO",null,null,61,36,null,61,null,null,null,29,null,61,null,"Subdirección de Recursos Humanos","2025-09-30","La suma del monto bruto de los ingresos considera el sueldo y demas prestaciones otorgadas durante el periodo.  La Dirección de Pensiones Civiles del Estado de Michoacán  no otorga Percepciones Adicionales en Dinero, Percepciones Adicionales en Especie, Ingresos, Sistemas de compensación, Comisiones, Dietas, Bonos, Estímulos, Apoyos económicos, Prestaciones económicas, Prestaciones en especie.\n"]
[2025,"2025-07-01","2025-09-30","Persona servidora pública",5,"Cocinera \"B\"","Cocinera \"B\"","CAI","Rosario Elizabeth","Alejo","Ortiz","Mujer",24989.1,"PESO",21319.43,"PESO",null,null,62,null,null,62,null,null,null,null,null,62,null,"Subdirección de Recursos Humanos","2025-09-30","La suma del monto bruto de los ingresos considera el sueldo y demas prestaciones otorgadas durante el periodo.  La Dirección de Pensiones Civiles del Estado de Michoacán  no otorga Percepciones Adicionales en Dinero, Percepciones Adicionales en Especie, Ingresos, Sistemas de compensación, Comisiones, Dietas, Bonos, Estímulos, Apoyos económicos, Prestaciones económicas, Prestaciones en especie.\n"]
[2025,"2025-07-01","2025-09-30","Persona servidora pública",5,"Técnica Práctica \"B\"","Técnica Práctica \"B\"","Subdirección de Recursos Materiales y Servicios Generales","Honoria","Campos","Jaimes","Mujer",24989.1,"PESO",21319.43,"PESO",null,null,63,37,null,63,null,null,null,null,null,63,null,"Subdirección de Recursos Humanos","2025-09-30","La suma del monto bruto de los ingresos considera el sueldo y demas prestaciones otorgadas durante el periodo.  La Dirección de Pensiones Civiles del Estado de Michoacán  no otorga Percepciones Adicionales en Dinero, Percepciones Adicionales en Especie, Ingresos, Sistemas de compensación, Comisiones, Dietas, Bonos, Estímulos, Apoyos económicos, Prestaciones económicas, Prestaciones en especie.\n"]
[2025,"2025-07-01","2025-09-30","Persona servidora pública",5,"Intendente \"B\"","Intendente \"B\"","CAI","Edgar Ulises","Infante","Medina","Hombre",24989.1,"PESO",21319.43,"PESO",null,null,64,null,null,64,null,null,null,null,null,64,null,"Subdirección de Recursos Humanos","2025-09-30","La suma del monto bruto de los ingresos considera el sueldo y demas prestaciones otorgadas durante el periodo.  La Dirección de Pensiones Civiles del Estado de Michoacán  no otorga Percepciones Adicionales en Dinero, Percepciones Adicionales en Especie, Ingresos, Sistemas de compensación, Comisiones, Dietas, Bonos, Estímulos, Apoyos económicos, Prestaciones económicas, Prestaciones en especie.\n"]
[2025,"2025-07-01","2025-09-30","Persona servidora pública",5,"Asistente Jurista \"B\"","Asistente Jurista \"B\"","Subdirección de Procesos Legales","Mónica Esthephania","Ochoa","Ponce de León","Mujer",24989.1,"PESO",21319.43,"PESO",null,null,65,38,null,65,null,null,null,30,null,65,null,"Subdirección de Recursos Humanos","2025-09-30","La suma del monto bruto de los ingresos considera el sueldo y demas prestaciones otorgadas durante el periodo.  La Dirección de Pensiones Civiles del Estado de Michoacán  no otorga Percepciones Adicionales en Dinero, Percepciones Adicionales en Especie, Ingresos, Sistemas de compensación, Comisiones, Dietas, Bonos, Estímulos, Apoyos económicos, Prestaciones económicas, Prestaciones en especie.\n"]
[2025,"2025-07-01","2025-09-30","Persona servidora pública",5,"Asistente Educativo \"B\"","Asistente Educativo \"B\"","CAI","Zaira Adriana","Pérez","Bolaños","Mujer",24989.1,"PESO",21319.43,"PESO",null,null,66,39,null,66,null,null,null,null,null,66,null,"Subdirección de Recursos Humanos","2025-09-30","La suma del monto bruto de los ingresos considera el sueldo y demas prestaciones otorgadas durante el periodo.  La Dirección de Pensiones Civiles del Estado de Michoacán  no otorga Percepciones Adicionales en Dinero, Percepciones Adicionales en Especie, Ingresos, Sistemas de compensación, Comisiones, Dietas, Bonos, Estímulos, Apoyos económicos, Prestaciones económicas, Prestaciones en especie.\n"]
[2025,"2025-07-01","2025-09-30","Persona servidora pública",5,"Oficial Administrativa \"B\"","Oficial Administrativa \"B\"","Subdirección de Prestámos a Corto Plazo","Rosaura","Sanchez","Flores","Mujer",24989.1,"PESO",21319.43,"PESO",null,null,67,40,null,67,null,null,null,null,null,67,null,"Subdirección de Recursos Humanos","2025-09-30","La suma del monto bruto de los ingresos considera el sueldo y demas prestaciones otorgadas durante el periodo.  La Dirección de Pensiones Civiles del Estado de Michoacán  no otorga Percepciones Adicionales en Dinero, Percepciones Adicionales en Especie, Ingresos, Sistemas de compensación, Comisiones, Dietas, Bonos, Estímulos, Apoyos económicos, Prestaciones económicas, Prestaciones en especie.\n"]
[2025,"2025-07-01","2025-09-30","Persona servidora pública",4,"Asistente de Contabilidad","Asistente de Contabilidad","Subdirección de Contabilidad y Presupuesto","Mayra Ivonne","Alanis","Soto","Mujer",21059.3,"PESO",18229.03,"PESO",null,null,68,41,null,68,null,null,null,31,null,68,null,"Subdirección de Recursos Humanos","2025-09-30","La suma del monto bruto de los ingresos considera el sueldo y demas prestaciones otorgadas durante el periodo.  La Dirección de Pensiones Civiles del Estado de Michoacán  no otorga Percepciones Adicionales en Dinero, Percepciones Adicionales en Especie, Ingresos, Sistemas de compensación, Comisiones, Dietas, Bonos, Estímulos, Apoyos económicos, Prestaciones económicas, Prestaciones en especie.\n"]
[2025,"2025-07-01","2025-09-30","Persona servidora pública",4,"Asistente Jurista","Asistente Jurista","Subdirección de Contratos, Estudios y Dictámenes Jurídicos","Sandra Yaneli","García","Castillo","Mujer",21059.3,"PESO",18229.03,"PESO",null,null,69,42,null,69,null,null,null,null,null,69,null,"Subdirección de Recursos Humanos","2025-09-30","La suma del monto bruto de los ingresos considera el sueldo y demas prestaciones otorgadas durante el periodo.  La Dirección de Pensiones Civiles del Estado de Michoacán  no otorga Percepciones Adicionales en Dinero, Percepciones Adicionales en Especie, Ingresos, Sistemas de compensación, Comisiones, Dietas, Bonos, Estímulos, Apoyos económicos, Prestaciones económicas, Prestaciones en especie.\n"]
[2025,"2025-07-01","2025-09-30","Persona servidora pública",4,"Asistente de Contabilidad","Asistente de Contabilidad","Subdirección de Contabilidad y Presupuesto","Juan Carlos","Hernández","Solorio","Hombre",21059.3,"PESO",18229.03,"PESO",null,null,70,43,null,70,null,null,null,32,null,70,null,"Subdirección de Recursos Humanos","2025-09-30","La suma del monto bruto de los ingresos considera el sueldo y demas prestaciones otorgadas durante el periodo.  La Dirección de Pensiones Civiles del Estado de Michoacán  no otorga Percepciones Adicionales en Dinero, Percepciones Adicionales en Especie, Ingresos, Sistemas de compensación, Comisiones, Dietas, Bonos, Estímulos, Apoyos económicos, Prestaciones económicas, Prestaciones en especie.\n"]
[2025,"2025-07-01","2025-09-30","Persona servidora pública",4,"Oficial Administrativo","Oficial Administrativo","Subdirección de Jubilados y Pensionados","Joaquín","Jiménez","Ibarra","Hombre",21059.3,"PESO",18229.03,"PESO",null,null,71,44,null,71,null,null,null,33,null,71,null,"Subdirección de Recursos Humanos","2025-09-30","La suma del monto bruto de los ingresos considera el sueldo y demas prestaciones otorgadas durante el periodo.  La Dirección de Pensiones Civiles del Estado de Michoacán  no otorga Percepciones Adicionales en Dinero, Percepciones Adicionales en Especie, Ingresos, Sistemas de compensación, Comisiones, Dietas, Bonos, Estímulos, Apoyos económicos, Prestaciones económicas, Prestaciones en especie.\n"]
[2025,"2025-07-01","2025-09-30","Persona servidora pública",4,"Oficial Administrativo","Oficial Administrativo","Subdirección de Jubilados y Pensionados","Jesús Octavio","Loya","Cervantes","Hombre",21059.3,"PESO",18229.03,"PESO",null,null,72,45,null,72,null,null,null,34,null,72,null,"Subdirección de Recursos Humanos","2025-09-30","La suma del monto bruto de los ingresos considera el sueldo y demas prestaciones otorgadas durante el periodo.  La Dirección de Pensiones Civiles del Estado de Michoacán  no otorga Percepciones Adicionales en Dinero, Percepciones Adicionales en Especie, Ingresos, Sistemas de compensación, Comisiones, Dietas, Bonos, Estímulos, Apoyos económicos, Prestaciones económicas, Prestaciones en especie.\n"]
[2025,"2025-07-01","2025-09-30","Persona servidora pública",4,"Secretaria","Secretaria","Unidad de Informática","Adriana","Sánchez","Campos","Mujer",21059.3,"PESO",18229.03,"PESO",null,null,73,46,null,73,null,null,null,35,null,73,null,"Subdirección de Recursos Humanos","2025-09-30","La suma del monto bruto de los ingresos considera el sueldo y demas prestaciones otorgadas durante el periodo.  La Dirección de Pensiones Civiles del Estado de Michoacán  no otorga Percepciones Adicionales en Dinero, Percepciones Adicionales en Especie, Ingresos, Sistemas de compensación, Comisiones, Dietas, Bonos, Estímulos, Apoyos económicos, Prestaciones económicas, Prestaciones en especie.\n"]
[2025,"2025-07-01","2025-09-30","Persona servidora pública",4,"Asistente de Contabilidad","Asistente de Contabilidad","Subdirección de Contabilidad y Presupuesto","Ana Isabel","Valencia","Govea","Mujer",21059.3,"PESO",18229.03,"PESO",null,null,74,47,null,74,null,null,null,36,null,74,null,"Subdirección de Recursos Humanos","2025-09-30","La suma del monto bruto de los ingresos considera el sueldo y demas prestaciones otorgadas durante el periodo.  La Dirección de Pensiones Civiles del Estado de Michoacán  no otorga Percepciones Adicionales en Dinero, Percepciones Adicionales en Especie, Ingresos, Sistemas de compensación, Comisiones, Dietas, Bonos, Estímulos, Apoyos económicos, Prestaciones económicas, Prestaciones en especie.\n"]
[2025,"2025-07-01","2025-09-30","Persona servidora pública",3,"Auxiliar Administrativa \"C\"","Auxiliar Administrativa \"C\"","Subdirección de Jubilados y Pensionados","Ruth Araceli","Arredondo","Hernández","Mujer",19218.95,"PESO",16781.78,"PESO",null,null,75,48,null,75,null,null,null,null,null,75,null,"Subdirección de Recursos Humanos","2025-09-30","La suma del monto bruto de los ingresos considera el sueldo y demas prestaciones otorgadas durante el periodo.  La Dirección de Pensiones Civiles del Estado de Michoacán  no otorga Percepciones Adicionales en Dinero, Percepciones Adicionales en Especie, Ingresos, Sistemas de compensación, Comisiones, Dietas, Bonos, Estímulos, Apoyos económicos, Prestaciones económicas, Prestaciones en especie.\n"]
[2025,"2025-07-01","2025-09-30","Persona servidora pública",3,"Auxiliar Secretaria \"C\"","Auxiliar Secretaria \"C\"","Enlace Jurídico","Cindy","Cortés","Lobato","Mujer",19218.95,"PESO",16781.78,"PESO",null,null,76,49,null,76,null,null,null,37,null,76,null,"Subdirección de Recursos Humanos","2025-09-30","La suma del monto bruto de los ingresos considera el sueldo y demas prestaciones otorgadas durante el periodo.  La Dirección de Pensiones Civiles del Estado de Michoacán  no otorga Percepciones Adicionales en Dinero, Percepciones Adicionales en Especie, Ingresos, Sistemas de compensación, Comisiones, Dietas, Bonos, Estímulos, Apoyos económicos, Prestaciones económicas, Prestaciones en especie.\n"]
[2025,"2025-07-01","2025-09-30","Persona servidora pública",3,"Auxiliar Secretaria \"C\"","Auxiliar Secretaria \"C\"","Unidad de Seguimiento y Apoyo Técnico","María Susana ","Flores","Chávez","Mujer",19218.95,"PESO",16781.78,"PESO",null,null,77,50,null,77,null,null,null,null,null,77,null,"Subdirección de Recursos Humanos","2025-09-30","La suma del monto bruto de los ingresos considera el sueldo y demas prestaciones otorgadas durante el periodo.  La Dirección de Pensiones Civiles del Estado de Michoacán  no otorga Percepciones Adicionales en Dinero, Percepciones Adicionales en Especie, Ingresos, Sistemas de compensación, Comisiones, Dietas, Bonos, Estímulos, Apoyos económicos, Prestaciones económicas, Prestaciones en especie.\n"]
[2025,"2025-07-01","2025-09-30","Persona servidora pública",3,"Auxiliar Administrativo \"C\"","Auxiliar Administrativo \"C\"","Área de Comercialización","Alejandro","Gamiño","Mandujano","Hombre",19218.95,"PESO",16781.78,"PESO",null,null,78,51,null,78,null,null,null,null,null,78,null,"Subdirección de Recursos Humanos","2025-09-30","La suma del monto bruto de los ingresos considera el sueldo y demas prestaciones otorgadas durante el periodo.  La Dirección de Pensiones Civiles del Estado de Michoacán  no otorga Percepciones Adicionales en Dinero, Percepciones Adicionales en Especie, Ingresos, Sistemas de compensación, Comisiones, Dietas, Bonos, Estímulos, Apoyos económicos, Prestaciones económicas, Prestaciones en especie.\n"]
[2025,"2025-07-01","2025-09-30","Persona servidora pública",3,"Auxiliar Jurista \"C\"","Auxiliar Jurista \"C\"","Subdirección de Contratos, Estudios y Dictámenes Jurídicos","Agustín","Heredia","Hurtado","Hombre",19218.95,"PESO",16781.78,"PESO",null,null,79,52,null,79,null,null,null,38,null,79,null,"Subdirección de Recursos Humanos","2025-09-30","La suma del monto bruto de los ingresos considera el sueldo y demas prestaciones otorgadas durante el periodo.  La Dirección de Pensiones Civiles del Estado de Michoacán  no otorga Percepciones Adicionales en Dinero, Percepciones Adicionales en Especie, Ingresos, Sistemas de compensación, Comisiones, Dietas, Bonos, Estímulos, Apoyos económicos, Prestaciones económicas, Prestaciones en especie.\n"]
[2025,"2025-07-01","2025-09-30","Persona servidora pública",3,"Auxiliar Contable \"C\"","Auxiliar Contable \"C\"","Subdirección de Recursos Materiales y Servicios Generales","Esmeralda","Huerta","Hernández","Mujer",19218.95,"PESO",16781.78,"PESO",null,null,80,53,null,80,null,null,null,39,null,80,null,"Subdirección de Recursos Humanos","2025-09-30","La suma del monto bruto de los ingresos considera el sueldo y demas prestaciones otorgadas durante el periodo.  La Dirección de Pensiones Civiles del Estado de Michoacán  no otorga Percepciones Adicionales en Dinero, Percepciones Adicionales en Especie, Ingresos, Sistemas de compensación, Comisiones, Dietas, Bonos, Estímulos, Apoyos económicos, Prestaciones económicas, Prestaciones en especie.\n"]
[2025,"2025-07-01","2025-09-30","Persona servidora pública",3,"Auxiliar Jurista \"C\"","Auxiliar Jurista \"C\"","Subdirección de Créditos con Garantía Hipotecaria","Leonel","Martinez","Hernández","Hombre",19218.95,"PESO",16781.78,"PESO",null,null,81,54,null,81,null,null,null,40,null,81,null,"Subdirección de Recursos Humanos","2025-09-30","La suma del monto bruto de los ingresos considera el sueldo y demas prestaciones otorgadas durante el periodo.  La Dirección de Pensiones Civiles del Estado de Michoacán  no otorga Percepciones Adicionales en Dinero, Percepciones Adicionales en Especie, Ingresos, Sistemas de compensación, Comisiones, Dietas, Bonos, Estímulos, Apoyos económicos, Prestaciones económicas, Prestaciones en especie.\n"]
[2025,"2025-07-01","2025-09-30","Persona servidora pública",3,"Auxiliar Asistente Educativa \"C\"","Auxiliar Asistente Educativa \"C\"","CAI","Teresa Janeth","Ponce de León","Vieyra","Mujer",19218.95,"PESO",16781.78,"PESO",null,null,82,null,null,82,null,null,null,null,null,82,null,"Subdirección de Recursos Humanos","2025-09-30","La suma del monto bruto de los ingresos considera el sueldo y demas prestaciones otorgadas durante el periodo.  La Dirección de Pensiones Civiles del Estado de Michoacán  no otorga Percepciones Adicionales en Dinero, Percepciones Adicionales en Especie, Ingresos, Sistemas de compensación, Comisiones, Dietas, Bonos, Estímulos, Apoyos económicos, Prestaciones económicas, Prestaciones en especie.\n"]
[2025,"2025-07-01","2025-09-30","Persona servidora pública",3,"Auxiliar Programador \"C\"","Auxiliar Programador \"C\"","Subdirección de Sistemas","Rafael","Ramírez","Ruiz","Hombre",19218.95,"PESO",16781.78,"PESO",null,null,83,55,null,83,null,null,null,null,null,83,null,"Subdirección de Recursos Humanos","2025-09-30","La suma del monto bruto de los ingresos considera el sueldo y demas prestaciones otorgadas durante el periodo.  La Dirección de Pensiones Civiles del Estado de Michoacán  no otorga Percepciones Adicionales en Dinero, Percepciones Adicionales en Especie, Ingresos, Sistemas de compensación, Comisiones, Dietas, Bonos, Estímulos, Apoyos económicos, Prestaciones económicas, Prestaciones en especie.\n"]
[2025,"2025-07-01","2025-09-30","Persona servidora pública",3,"Auxiliar Contable \"C\"","Auxiliar Contable \"C\"","Subdirección de Contabilidad y Presupuesto","Martha Alicia","Valencia","Mendoza","Mujer",19218.95,"PESO",16781.78,"PESO",null,null,84,56,null,84,null,null,null,41,null,84,null,"Subdirección de Recursos Humanos","2025-09-30","La suma del monto bruto de los ingresos considera el sueldo y demas prestaciones otorgadas durante el periodo.  La Dirección de Pensiones Civiles del Estado de Michoacán  no otorga Percepciones Adicionales en Dinero, Percepciones Adicionales en Especie, Ingresos, Sistemas de compensación, Comisiones, Dietas, Bonos, Estímulos, Apoyos económicos, Prestaciones económicas, Prestaciones en especie.\n"]
[2025,"2025-07-01","2025-09-30","Persona servidora pública",2,"Auxiliar Asistente Educativa \"B\"","Auxiliar Asistente Educativa \"B\"","CAI","Monserrat","Abrego","Cortés","Mujer",17052.240000000002,"PESO",15077.880000000001,"PESO",null,null,85,null,null,85,null,null,null,42,null,85,null,"Subdirección de Recursos Humanos","2025-09-30","La suma del monto bruto de los ingresos considera el sueldo y demas prestaciones otorgadas durante el periodo.  La Dirección de Pensiones Civiles del Estado de Michoacán  no otorga Percepciones Adicionales en Dinero, Percepciones Adicionales en Especie, Ingresos, Sistemas de compensación, Comisiones, Dietas, Bonos, Estímulos, Apoyos económicos, Prestaciones económicas, Prestaciones en especie.\n"]
[2025,"2025-07-01","2025-09-30","Persona servidora pública",2,"Auxiliar Asistente Educativa \"B\"","Auxiliar Asistente Educativa \"B\"","CAI","Laura Erandi","Aburto ","González","Mujer",17052.240000000002,"PESO",15077.880000000001,"PESO",null,null,86,null,null,86,null,null,null,43,null,86,null,"Subdirección de Recursos Humanos","2025-09-30","La suma del monto bruto de los ingresos considera el sueldo y demas prestaciones otorgadas durante el periodo.  La Dirección de Pensiones Civiles del Estado de Michoacán  no otorga Percepciones Adicionales en Dinero, Percepciones Adicionales en Especie, Ingresos, Sistemas de compensación, Comisiones, Dietas, Bonos, Estímulos, Apoyos económicos, Prestaciones económicas, Prestaciones en especie.\n"]
[2025,"2025-07-01","2025-09-30","Persona servidora pública",2,"Auxiliar Jurista \"B\"","Auxiliar Jurista \"B\"","Subdirección de Procesos Legales","Sergio Eraide","Chávez ","Portillo","Hombre",17052.240000000002,"PESO",15077.880000000001,"PESO",null,null,87,57,null,87,null,null,null,null,null,87,null,"Subdirección de Recursos Humanos","2025-09-30","La suma del monto bruto de los ingresos considera el sueldo y demas prestaciones otorgadas durante el periodo.  La Dirección de Pensiones Civiles del Estado de Michoacán  no otorga Percepciones Adicionales en Dinero, Percepciones Adicionales en Especie, Ingresos, Sistemas de compensación, Comisiones, Dietas, Bonos, Estímulos, Apoyos económicos, Prestaciones económicas, Prestaciones en especie.\n"]
[2025,"2025-07-01","2025-09-30","Persona servidora pública",2,"Auxiliar Archivista \"B\"  ","Auxiliar Archivista \"B\"  ","Delegación Administrativa","Gabriel","Cortés","Gutiérrez","Hombre",17052.240000000002,"PESO",15077.880000000001,"PESO",null,null,88,58,null,88,null,null,null,null,null,88,null,"Subdirección de Recursos Humanos","2025-09-30","La suma del monto bruto de los ingresos considera el sueldo y demas prestaciones otorgadas durante el periodo.  La Dirección de Pensiones Civiles del Estado de Michoacán  no otorga Percepciones Adicionales en Dinero, Percepciones Adicionales en Especie, Ingresos, Sistemas de compensación, Comisiones, Dietas, Bonos, Estímulos, Apoyos económicos, Prestaciones económicas, Prestaciones en especie.\n"]
[2025,"2025-07-01","2025-09-30","Persona servidora pública",2,"Auxiliar Administrativa \"B\"  ","Auxiliar Administrativa \"B\"  ","Unidad de Informática","Margarita","Fuerte","Armenta","Mujer",17052.240000000002,"PESO",15077.880000000001,"PESO",null,null,89,59,null,89,null,null,null,null,null,89,null,"Subdirección de Recursos Humanos","2025-09-30","La suma del monto bruto de los ingresos considera el sueldo y demas prestaciones otorgadas durante el periodo.  La Dirección de Pensiones Civiles del Estado de Michoacán  no otorga Percepciones Adicionales en Dinero, Percepciones Adicionales en Especie, Ingresos, Sistemas de compensación, Comisiones, Dietas, Bonos, Estímulos, Apoyos económicos, Prestaciones económicas, Prestaciones en especie.\n"]
[2025,"2025-07-01","2025-09-30","Persona servidora pública",2,"Auxiliar de Cocina \"B\"","Auxiliar de Cocina \"B\"","CAI","Graciela","Galvan","Minchaca","Mujer",17052.240000000002,"PESO",15077.880000000001,"PESO",null,null,90,null,null,90,null,null,null,null,null,90,null,"Subdirección de Recursos Humanos","2025-09-30","La suma del monto bruto de los ingresos considera el sueldo y demas prestaciones otorgadas durante el periodo.  La Dirección de Pensiones Civiles del Estado de Michoacán  no otorga Percepciones Adicionales en Dinero, Percepciones Adicionales en Especie, Ingresos, Sistemas de compensación, Comisiones, Dietas, Bonos, Estímulos, Apoyos económicos, Prestaciones económicas, Prestaciones en especie.\n"]
[2025,"2025-07-01","2025-09-30","Persona servidora pública",2," Auxiliar Administrativo \"B\""," Auxiliar Administrativo \"B\"","Subdireccion de Caja","José Gerardo","García","Piñón","Hombre",17052.240000000002,"PESO",15077.880000000001,"PESO",null,null,91,60,null,91,null,null,null,null,null,91,null,"Subdirección de Recursos Humanos","2025-09-30","La suma del monto bruto de los ingresos considera el sueldo y demas prestaciones otorgadas durante el periodo.  La Dirección de Pensiones Civiles del Estado de Michoacán  no otorga Percepciones Adicionales en Dinero, Percepciones Adicionales en Especie, Ingresos, Sistemas de compensación, Comisiones, Dietas, Bonos, Estímulos, Apoyos económicos, Prestaciones económicas, Prestaciones en especie.\n"]
[2025,"2025-07-01","2025-09-30","Persona servidora pública",2," Auxiliar Cajera \"B\""," Auxiliar Cajera \"B\"","Subdireccion de Caja","Maria Oliney","González","Huerta","Mujer",17052.240000000002,"PESO",15077.880000000001,"PESO",null,null,92,61,null,92,null,null,null,null,null,92,null,"Subdirección de Recursos Humanos","2025-09-30","La suma del monto bruto de los ingresos considera el sueldo y demas prestaciones otorgadas durante el periodo.  La Dirección de Pensiones Civiles del Estado de Michoacán  no otorga Percepciones Adicionales en Dinero, Percepciones Adicionales en Especie, Ingresos, Sistemas de compensación, Comisiones, Dietas, Bonos, Estímulos, Apoyos económicos, Prestaciones económicas, Prestaciones en especie.\n"]
[2025,"2025-07-01","2025-09-30","Persona servidora pública",2," Auxiliar Administrativa \"B\""," Auxiliar Administrativa \"B\"","Delegación Administrativa","María de Lourdes","Guerra","Morales","Mujer",17052.240000000002,"PESO",15077.880000000001,"PESO",null,null,93,null,null,93,null,null,null,null,null,93,null,"Subdirección de Recursos Humanos","2025-09-30","La suma del monto bruto de los ingresos considera el sueldo y demas prestaciones otorgadas durante el periodo.  La Dirección de Pensiones Civiles del Estado de Michoacán  no otorga Percepciones Adicionales en Dinero, Percepciones Adicionales en Especie, Ingresos, Sistemas de compensación, Comisiones, Dietas, Bonos, Estímulos, Apoyos económicos, Prestaciones económicas, Prestaciones en especie.\n"]
[2025,"2025-07-01","2025-09-30","Persona servidora pública",2," Auxiliar Administrativo \"B\""," Auxiliar Administrativo \"B\"","Delegación Administrativa","Hugo Jair","Herrera","Lunar","Hombre",17052.240000000002,"PESO",15077.880000000001,"PESO",null,null,94,62,null,94,null,null,null,null,null,94,null,"Subdirección de Recursos Humanos","2025-09-30","La suma del monto bruto de los ingresos considera el sueldo y demas prestaciones otorgadas durante el periodo.  La Dirección de Pensiones Civiles del Estado de Michoacán  no otorga Percepciones Adicionales en Dinero, Percepciones Adicionales en Especie, Ingresos, Sistemas de compensación, Comisiones, Dietas, Bonos, Estímulos, Apoyos económicos, Prestaciones económicas, Prestaciones en especie.\n"]
[2025,"2025-07-01","2025-09-30","Persona servidora pública",2,"Auxiliar Capturista \"B\" ","Auxiliar Capturista \"B\" ","Subdirección de Sistemas","Ramiro","Hurtado","Pineda","Hombre",17052.240000000002,"PESO",15077.880000000001,"PESO",null,null,95,63,null,95,null,null,null,null,null,95,null,"Subdirección de Recursos Humanos","2025-09-30","La suma del monto bruto de los ingresos considera el sueldo y demas prestaciones otorgadas durante el periodo.  La Dirección de Pensiones Civiles del Estado de Michoacán  no otorga Percepciones Adicionales en Dinero, Percepciones Adicionales en Especie, Ingresos, Sistemas de compensación, Comisiones, Dietas, Bonos, Estímulos, Apoyos económicos, Prestaciones económicas, Prestaciones en especie.\n"]
[2025,"2025-07-01","2025-09-30","Persona servidora pública",2,"Auxiliar de Archivista \"B\" ","Auxiliar de Archivista \"B\" ","Subdirección de Créditos con Garantía Hipotecaria","Vania Monserrat","Lemus","Martínez","Mujer",17052.240000000002,"PESO",15077.880000000001,"PESO",null,null,96,64,null,96,null,null,null,null,null,96,null,"Subdirección de Recursos Humanos","2025-09-30","La suma del monto bruto de los ingresos considera el sueldo y demas prestaciones otorgadas durante el periodo.  La Dirección de Pensiones Civiles del Estado de Michoacán  no otorga Percepciones Adicionales en Dinero, Percepciones Adicionales en Especie, Ingresos, Sistemas de compensación, Comisiones, Dietas, Bonos, Estímulos, Apoyos económicos, Prestaciones económicas, Prestaciones en especie.\n"]
[2025,"2025-07-01","2025-09-30","Persona servidora pública",2,"Auxiliar de Servicios Generales \"B\" ","Auxiliar de Servicios Generales \"B\" ","Subdirección de Recursos Materiales y Servicios Generales","Angelina del Rosario","Munguía","Martínez","Mujer",17052.240000000002,"PESO",15077.880000000001,"PESO",null,null,97,65,null,97,null,null,null,null,null,97,null,"Subdirección de Recursos Humanos","2025-09-30","La suma del monto bruto de los ingresos considera el sueldo y demas prestaciones otorgadas durante el periodo.  La Dirección de Pensiones Civiles del Estado de Michoacán  no otorga Percepciones Adicionales en Dinero, Percepciones Adicionales en Especie, Ingresos, Sistemas de compensación, Comisiones, Dietas, Bonos, Estímulos, Apoyos económicos, Prestaciones económicas, Prestaciones en especie.\n"]
[2025,"2025-07-01","2025-09-30","Persona servidora pública",2,"Auxiliar de Intendencia \"B\"","Auxiliar de Intendencia \"B\"","Delegación Administrativa","Alejandro","Ojeda ","Avalos","Hombre",17052.240000000002,"PESO",15077.880000000001,"PESO",null,null,98,66,null,98,null,null,null,null,null,98,null,"Subdirección de Recursos Humanos","2025-09-30","La suma del monto bruto de los ingresos considera el sueldo y demas prestaciones otorgadas durante el periodo.  La Dirección de Pensiones Civiles del Estado de Michoacán  no otorga Percepciones Adicionales en Dinero, Percepciones Adicionales en Especie, Ingresos, Sistemas de compensación, Comisiones, Dietas, Bonos, Estímulos, Apoyos económicos, Prestaciones económicas, Prestaciones en especie.\n"]
[2025,"2025-07-01","2025-09-30","Persona servidora pública",2,"Auxiliar Administrativo \"B\"","Auxiliar Administrativo \"B\"","Dirección de Prestaciones","Eduwin","Pérez","López","Hombre",17052.240000000002,"PESO",15077.880000000001,"PESO",null,null,99,null,null,99,null,null,null,null,null,99,null,"Subdirección de Recursos Humanos","2025-09-30","La suma del monto bruto de los ingresos considera el sueldo y demas prestaciones otorgadas durante el periodo.  La Dirección de Pensiones Civiles del Estado de Michoacán  no otorga Percepciones Adicionales en Dinero, Percepciones Adicionales en Especie, Ingresos, Sistemas de compensación, Comisiones, Dietas, Bonos, Estímulos, Apoyos económicos, Prestaciones económicas, Prestaciones en especie.\n"]
[2025,"2025-07-01","2025-09-30","Persona servidora pública",2,"Auxiliar de Mantenimineto \"B\"","Auxiliar de Mantenimineto \"B\"","Subdirección de Recursos Materiales y Serv. Generales","Victor Arturo","Pintor","Angeles","Hombre",17052.240000000002,"PESO",15077.880000000001,"PESO",null,null,100,67,null,100,null,null,null,null,null,100,null,"Subdirección de Recursos Humanos","2025-09-30","La suma del monto bruto de los ingresos considera el sueldo y demas prestaciones otorgadas durante el periodo.  La Dirección de Pensiones Civiles del Estado de Michoacán  no otorga Percepciones Adicionales en Dinero, Percepciones Adicionales en Especie, Ingresos, Sistemas de compensación, Comisiones, Dietas, Bonos, Estímulos, Apoyos económicos, Prestaciones económicas, Prestaciones en especie.\n"]
[2025,"2025-07-01","2025-09-30","Persona servidora pública",2,"Auxiliar de Intendencia \"B\"","Auxiliar de Intendencia \"B\"","Subdirección de Recursos Materiales y Servicios Generales","María Angela","Santamaria ","López","Mujer",17052.240000000002,"PESO",15077.880000000001,"PESO",null,null,101,null,null,101,null,null,null,null,null,101,null,"Subdirección de Recursos Humanos","2025-09-30","La suma del monto bruto de los ingresos considera el sueldo y demas prestaciones otorgadas durante el periodo.  La Dirección de Pensiones Civiles del Estado de Michoacán  no otorga Percepciones Adicionales en Dinero, Percepciones Adicionales en Especie, Ingresos, Sistemas de compensación, Comisiones, Dietas, Bonos, Estímulos, Apoyos económicos, Prestaciones económicas, Prestaciones en especie.\n"]
[2025,"2025-07-01","2025-09-30","Persona servidora pública",2,"Auxilia Administrativa \"B\"","Auxilia Administrativa \"B\"","Subdirección de Recursos Materiales y Servicios Generales","Raquel","Solis","Correa","Mujer",17052.240000000002,"PESO",15077.880000000001,"PESO",null,null,102,68,null,102,null,null,null,44,null,102,null,"Subdirección de Recursos Humanos","2025-09-30","La suma del monto bruto de los ingresos considera el sueldo y demas prestaciones otorgadas durante el periodo.  La Dirección de Pensiones Civiles del Estado de Michoacán  no otorga Percepciones Adicionales en Dinero, Percepciones Adicionales en Especie, Ingresos, Sistemas de compensación, Comisiones, Dietas, Bonos, Estímulos, Apoyos económicos, Prestaciones económicas, Prestaciones en especie.\n"]
[2025,"2025-07-01","2025-09-30","Persona servidora pública",2,"Auxilia Administrativo \"B\"","Auxilia Administrativo \"B\"","Subdirección de Contabilidad y Presupuesto","Jesús ","Vargas","Jaimes","Hombre",17052.240000000002,"PESO",15077.880000000001,"PESO",null,null,103,69,null,103,null,null,null,45,null,103,null,"Subdirección de Recursos Humanos","2025-09-30","La suma del monto bruto de los ingresos considera el sueldo y demas prestaciones otorgadas durante el periodo.  La Dirección de Pensiones Civiles del Estado de Michoacán  no otorga Percepciones Adicionales en Dinero, Percepciones Adicionales en Especie, Ingresos, Sistemas de compensación, Comisiones, Dietas, Bonos, Estímulos, Apoyos económicos, Prestaciones económicas, Prestaciones en especie.\n"]
[2025,"2025-07-01","2025-09-30","Persona servidora pública",2,"Auxilia Asistente Educativa \"B\"","Auxilia Asistente Educativa \"B\"","CAI","Johana Victoria","Venegas","Orozco","Mujer",17052.240000000002,"PESO",15077.880000000001,"PESO",null,null,104,null,null,104,null,null,null,null,null,104,null,"Subdirección de Recursos Humanos","2025-09-30","La suma del monto bruto de los ingresos considera el sueldo y demas prestaciones otorgadas durante el periodo.  La Dirección de Pensiones Civiles del Estado de Michoacán  no otorga Percepciones Adicionales en Dinero, Percepciones Adicionales en Especie, Ingresos, Sistemas de compensación, Comisiones, Dietas, Bonos, Estímulos, Apoyos económicos, Prestaciones económicas, Prestaciones en especie.\n"]
[2025,"2025-07-01","2025-09-30","Persona servidora pública",2,"Auxiliar Jurista \"B\"","Auxiliar Jurista \"B\"","Subdirección de Contratos, Estudios y Dictámenes Jurídicos","Nataly","Zavala","Pizano","Mujer",17052.240000000002,"PESO",15077.880000000001,"PESO",null,null,105,70,null,105,null,null,null,null,null,105,null,"Subdirección de Recursos Humanos","2025-09-30","La suma del monto bruto de los ingresos considera el sueldo y demas prestaciones otorgadas durante el periodo.  La Dirección de Pensiones Civiles del Estado de Michoacán  no otorga Percepciones Adicionales en Dinero, Percepciones Adicionales en Especie, Ingresos, Sistemas de compensación, Comisiones, Dietas, Bonos, Estímulos, Apoyos económicos, Prestaciones económicas, Prestaciones en especie.\n"]
[2025,"2025-07-01","2025-09-30","Persona servidora pública",1,"Auxiliar Administrativo","Auxiliar Administrativo","Subdirección de Caja","Flavio","Arreola ","López","Hombre",15047.38,"PESO",13526.65,"PESO",null,null,106,null,null,106,null,null,null,null,null,106,null,"Subdirección de Recursos Humanos","2025-09-30","La suma del monto bruto de los ingresos considera el sueldo y demas prestaciones otorgadas durante el periodo.  La Dirección de Pensiones Civiles del Estado de Michoacán  no otorga Percepciones Adicionales en Dinero, Percepciones Adicionales en Especie, Ingresos, Sistemas de compensación, Comisiones, Dietas, Bonos, Estímulos, Apoyos económicos, Prestaciones económicas, Prestaciones en especie.\n"]
[2025,"2025-07-01","2025-09-30","Persona servidora pública",1,"Auxiliar Administrativa","Auxiliar Administrativa","Subdirección de Préstamos a Corto Plazo","Valeria ","Cardenas","Romero","Mujer",15047.38,"PESO",13526.65,"PESO",null,null,107,71,null,107,null,null,null,46,null,107,null,"Subdirección de Recursos Humanos","2025-09-30","La suma del monto bruto de los ingresos considera el sueldo y demas prestaciones otorgadas durante el periodo.  La Dirección de Pensiones Civiles del Estado de Michoacán  no otorga Percepciones Adicionales en Dinero, Percepciones Adicionales en Especie, Ingresos, Sistemas de compensación, Comisiones, Dietas, Bonos, Estímulos, Apoyos económicos, Prestaciones económicas, Prestaciones en especie.\n"]
[2025,"2025-07-01","2025-09-30","Persona servidora pública",1,"Auxiliar de Intendencia","Auxiliar de Intendencia","CAI","Giovanne Moises","Díaz","Hernández","Hombre",15047.38,"PESO",13526.65,"PESO",null,null,108,null,null,108,null,null,null,47,null,108,null,"Subdirección de Recursos Humanos","2025-09-30","La suma del monto bruto de los ingresos considera el sueldo y demas prestaciones otorgadas durante el periodo.  La Dirección de Pensiones Civiles del Estado de Michoacán  no otorga Percepciones Adicionales en Dinero, Percepciones Adicionales en Especie, Ingresos, Sistemas de compensación, Comisiones, Dietas, Bonos, Estímulos, Apoyos económicos, Prestaciones económicas, Prestaciones en especie.\n"]
[2025,"2025-07-01","2025-09-30","Persona servidora pública",1,"Auxiliar de Almacen","Auxiliar de Almacen","Subdirección de Recursos Materiales y Servicios Generales","Roberto","Domínguez","Valdovinos","Hombre",15047.38,"PESO",13526.65,"PESO",null,null,109,72,null,109,null,null,null,48,null,109,null,"Subdirección de Recursos Humanos","2025-09-30","La suma del monto bruto de los ingresos considera el sueldo y demas prestaciones otorgadas durante el periodo.  La Dirección de Pensiones Civiles del Estado de Michoacán  no otorga Percepciones Adicionales en Dinero, Percepciones Adicionales en Especie, Ingresos, Sistemas de compensación, Comisiones, Dietas, Bonos, Estímulos, Apoyos económicos, Prestaciones económicas, Prestaciones en especie.\n"]
[2025,"2025-07-01","2025-09-30","Persona servidora pública",1,"Auxiliar Administrativo","Auxiliar Administrativo","Subdirección de Préstamos a Corto Plazo","Eduardo ","Estrada","Abrego","Hombre",15047.38,"PESO",13526.65,"PESO",null,null,110,73,null,110,null,null,null,null,null,110,null,"Subdirección de Recursos Humanos","2025-09-30","La suma del monto bruto de los ingresos considera el sueldo y demas prestaciones otorgadas durante el periodo.  La Dirección de Pensiones Civiles del Estado de Michoacán  no otorga Percepciones Adicionales en Dinero, Percepciones Adicionales en Especie, Ingresos, Sistemas de compensación, Comisiones, Dietas, Bonos, Estímulos, Apoyos económicos, Prestaciones económicas, Prestaciones en especie.\n"]
[2025,"2025-07-01","2025-09-30","Persona servidora pública",1,"Auxiliar Asistente Educativo","Auxiliar Asistente Educativo","CAI","Karla Patricia","Gascon","Ramírez","Mujer",15047.38,"PESO",13526.65,"PESO",null,null,111,74,null,111,null,null,null,null,null,111,null,"Subdirección de Recursos Humanos","2025-09-30","La suma del monto bruto de los ingresos considera el sueldo y demas prestaciones otorgadas durante el periodo.  La Dirección de Pensiones Civiles del Estado de Michoacán  no otorga Percepciones Adicionales en Dinero, Percepciones Adicionales en Especie, Ingresos, Sistemas de compensación, Comisiones, Dietas, Bonos, Estímulos, Apoyos económicos, Prestaciones económicas, Prestaciones en especie.\n"]
[2025,"2025-07-01","2025-09-30","Persona servidora pública",1,"Auxiliar Asistente Educativo","Auxiliar Asistente Educativo","CAI","Itzel Estrella","Gómez","Sánchez","Mujer",15047.38,"PESO",13526.65,"PESO",null,null,112,null,null,112,null,null,null,49,null,112,null,"Subdirección de Recursos Humanos","2025-09-30","La suma del monto bruto de los ingresos considera el sueldo y demas prestaciones otorgadas durante el periodo.  La Dirección de Pensiones Civiles del Estado de Michoacán  no otorga Percepciones Adicionales en Dinero, Percepciones Adicionales en Especie, Ingresos, Sistemas de compensación, Comisiones, Dietas, Bonos, Estímulos, Apoyos económicos, Prestaciones económicas, Prestaciones en especie.\n"]
[2025,"2025-07-01","2025-09-30","Persona servidora pública",1,"Auxiliar de Intendencia","Auxiliar de Intendencia","CAI","Oscar Mauricio","Gozález","Cardenas","Hombre",15047.38,"PESO",13526.65,"PESO",null,null,113,null,null,113,null,null,null,null,null,113,null,"Subdirección de Recursos Humanos","2025-09-30","La suma del monto bruto de los ingresos considera el sueldo y demas prestaciones otorgadas durante el periodo.  La Dirección de Pensiones Civiles del Estado de Michoacán  no otorga Percepciones Adicionales en Dinero, Percepciones Adicionales en Especie, Ingresos, Sistemas de compensación, Comisiones, Dietas, Bonos, Estímulos, Apoyos económicos, Prestaciones económicas, Prestaciones en especie.\n"]
[2025,"2025-07-01","2025-09-30","Persona servidora pública",1,"Auxiliar Administrativa","Auxiliar Administrativa","Subdirección de Préstamos a Corto Plazo","Rosa Yunuen","González","Martínez","Mujer",15047.38,"PESO",13526.65,"PESO",null,null,114,75,null,114,null,null,null,null,null,114,null,"Subdirección de Recursos Humanos","2025-09-30","La suma del monto bruto de los ingresos considera el sueldo y demas prestaciones otorgadas durante el periodo.  La Dirección de Pensiones Civiles del Estado de Michoacán  no otorga Percepciones Adicionales en Dinero, Percepciones Adicionales en Especie, Ingresos, Sistemas de compensación, Comisiones, Dietas, Bonos, Estímulos, Apoyos económicos, Prestaciones económicas, Prestaciones en especie.\n"]
[2025,"2025-07-01","2025-09-30","Persona servidora pública",1,"Auxiliar Administrativa","Auxiliar Administrativa","Subdirección de Créditos con Garantía Hipotecaria","Mónica del Rocío","Gordillo ","Herrera","Mujer",15047.38,"PESO",13526.65,"PESO",null,null,115,null,null,115,null,null,null,null,null,115,null,"Subdirección de Recursos Humanos","2025-09-30","La suma del monto bruto de los ingresos considera el sueldo y demas prestaciones otorgadas durante el periodo.  La Dirección de Pensiones Civiles del Estado de Michoacán  no otorga Percepciones Adicionales en Dinero, Percepciones Adicionales en Especie, Ingresos, Sistemas de compensación, Comisiones, Dietas, Bonos, Estímulos, Apoyos económicos, Prestaciones económicas, Prestaciones en especie.\n"]
[2025,"2025-07-01","2025-09-30","Persona servidora pública",1,"Asistente de Area Social","Asistente de Area Social","CAI","Andrea Monserrat","Guzmán","Robles","Mujer",15047.38,"PESO",12414.57,"PESO",null,null,116,null,null,116,null,null,null,50,null,116,null,"Subdirección de Recursos Humanos","2025-09-30","La suma del monto bruto de los ingresos considera el sueldo y demas prestaciones otorgadas durante el periodo.  La Dirección de Pensiones Civiles del Estado de Michoacán  no otorga Percepciones Adicionales en Dinero, Percepciones Adicionales en Especie, Ingresos, Sistemas de compensación, Comisiones, Dietas, Bonos, Estímulos, Apoyos económicos, Prestaciones económicas, Prestaciones en especie.\n"]
[2025,"2025-07-01","2025-09-30","Persona servidora pública",1,"Auxiliar de Cocina","Auxiliar de Cocina","CAI","Israel","Martínez","Arevalo","Hombre",15047.38,"PESO",13526.65,"PESO",null,null,117,null,null,117,null,null,null,null,null,117,null,"Subdirección de Recursos Humanos","2025-09-30","La suma del monto bruto de los ingresos considera el sueldo y demas prestaciones otorgadas durante el periodo.  La Dirección de Pensiones Civiles del Estado de Michoacán  no otorga Percepciones Adicionales en Dinero, Percepciones Adicionales en Especie, Ingresos, Sistemas de compensación, Comisiones, Dietas, Bonos, Estímulos, Apoyos económicos, Prestaciones económicas, Prestaciones en especie.\n"]
[2025,"2025-07-01","2025-09-30","Persona servidora pública",1,"Auxiliar Administrativa","Auxiliar Administrativa","Subdirección de Préstamos a Corto Plazo","María Elena","Medina","Pineda","Mujer",15047.38,"PESO",13526.65,"PESO",null,null,118,null,null,118,null,null,null,51,null,118,null,"Subdirección de Recursos Humanos","2025-09-30","La suma del monto bruto de los ingresos considera el sueldo y demas prestaciones otorgadas durante el periodo.  La Dirección de Pensiones Civiles del Estado de Michoacán  no otorga Percepciones Adicionales en Dinero, Percepciones Adicionales en Especie, Ingresos, Sistemas de compensación, Comisiones, Dietas, Bonos, Estímulos, Apoyos económicos, Prestaciones económicas, Prestaciones en especie.\n"]
[2025,"2025-07-01","2025-09-30","Persona servidora pública",1,"Auxiliar Asistente Educativa   ","Auxiliar Asistente Educativa   ","CAI","Mónica","Méndez","Barriga","Mujer",15047.38,"PESO",13526.65,"PESO",null,null,119,null,null,119,null,null,null,52,null,119,null,"Subdirección de Recursos Humanos","2025-09-30","La suma del monto bruto de los ingresos considera el sueldo y demas prestaciones otorgadas durante el periodo.  La Dirección de Pensiones Civiles del Estado de Michoacán  no otorga Percepciones Adicionales en Dinero, Percepciones Adicionales en Especie, Ingresos, Sistemas de compensación, Comisiones, Dietas, Bonos, Estímulos, Apoyos económicos, Prestaciones económicas, Prestaciones en especie.\n"]
[2025,"2025-07-01","2025-09-30","Persona servidora pública",1,"Auxiliar Administrativa","Auxiliar Administrativa","Subdirección de Créditos con Garantía Hipotecaria","Valeria ","Meza","Galván","Mujer",15047.38,"PESO",13526.65,"PESO",null,null,120,null,null,120,null,null,null,null,null,120,null,"Subdirección de Recursos Humanos","2025-09-30","La suma del monto bruto de los ingresos considera el sueldo y demas prestaciones otorgadas durante el periodo.  La Dirección de Pensiones Civiles del Estado de Michoacán  no otorga Percepciones Adicionales en Dinero, Percepciones Adicionales en Especie, Ingresos, Sistemas de compensación, Comisiones, Dietas, Bonos, Estímulos, Apoyos económicos, Prestaciones económicas, Prestaciones en especie.\n"]
[2025,"2025-07-01","2025-09-30","Persona servidora pública",1,"Auxiliar de Cocina","Auxiliar de Cocina","CAI","Ma. Lirio Socorro","Muñoz",null,"Mujer",15047.38,"PESO",13526.65,"PESO",null,null,121,null,null,121,null,null,null,null,null,121,null,"Subdirección de Recursos Humanos","2025-09-30","La suma del monto bruto de los ingresos considera el sueldo y demas prestaciones otorgadas durante el periodo.  La Dirección de Pensiones Civiles del Estado de Michoacán  no otorga Percepciones Adicionales en Dinero, Percepciones Adicionales en Especie, Ingresos, Sistemas de compensación, Comisiones, Dietas, Bonos, Estímulos, Apoyos económicos, Prestaciones económicas, Prestaciones en especie.\n"]
[2025,"2025-07-01","2025-09-30","Persona servidora pública",1,"Auxiliar Administrativo","Auxiliar Administrativo","Subdirección de Préstamos a Corto Plazo","Juan Fernando","Olayo","López","Hombre",15047.38,"PESO",13526.65,"PESO",null,null,122,null,null,122,null,null,null,null,null,122,null,"Subdirección de Recursos Humanos","2025-09-30","La suma del monto bruto de los ingresos considera el sueldo y demas prestaciones otorgadas durante el periodo.  La Dirección de Pensiones Civiles del Estado de Michoacán  no otorga Percepciones Adicionales en Dinero, Percepciones Adicionales en Especie, Ingresos, Sistemas de compensación, Comisiones, Dietas, Bonos, Estímulos, Apoyos económicos, Prestaciones económicas, Prestaciones en especie.\n"]
[2025,"2025-07-01","2025-09-30","Persona servidora pública",1,"Auxiliar de Intendencia","Auxiliar de Intendencia","Subdirección de Recursos Materiales y Serv. Generales","Roberto Jesús","Orozco","Lara","Hombre",15047.38,"PESO",13526.65,"PESO",null,null,123,null,null,123,null,null,null,null,null,123,null,"Subdirección de Recursos Humanos","2025-09-30","La suma del monto bruto de los ingresos considera el sueldo y demas prestaciones otorgadas durante el periodo.  La Dirección de Pensiones Civiles del Estado de Michoacán  no otorga Percepciones Adicionales en Dinero, Percepciones Adicionales en Especie, Ingresos, Sistemas de compensación, Comisiones, Dietas, Bonos, Estímulos, Apoyos económicos, Prestaciones económicas, Prestaciones en especie.\n"]
[2025,"2025-07-01","2025-09-30","Persona servidora pública",1,"Auxiliar Administrativo","Auxiliar Administrativo","Subdirección de Recursos Humanos","Angel Eduardo","Pérez","Fernández","Hombre",15047.38,"PESO",13526.65,"PESO",null,null,124,76,null,124,null,null,null,53,null,124,null,"Subdirección de Recursos Humanos","2025-09-30","La suma del monto bruto de los ingresos considera el sueldo y demas prestaciones otorgadas durante el periodo.  La Dirección de Pensiones Civiles del Estado de Michoacán  no otorga Percepciones Adicionales en Dinero, Percepciones Adicionales en Especie, Ingresos, Sistemas de compensación, Comisiones, Dietas, Bonos, Estímulos, Apoyos económicos, Prestaciones económicas, Prestaciones en especie.\n"]
[2025,"2025-07-01","2025-09-30","Persona servidora pública",1,"Auxiliar de Cocina","Auxiliar de Cocina","CAI","Víctor Hugo","Pérez","García","Hombre",15047.38,"PESO",13526.65,"PESO",null,null,125,null,null,125,null,null,null,54,null,125,null,"Subdirección de Recursos Humanos","2025-09-30","La suma del monto bruto de los ingresos considera el sueldo y demas prestaciones otorgadas durante el periodo.  La Dirección de Pensiones Civiles del Estado de Michoacán  no otorga Percepciones Adicionales en Dinero, Percepciones Adicionales en Especie, Ingresos, Sistemas de compensación, Comisiones, Dietas, Bonos, Estímulos, Apoyos económicos, Prestaciones económicas, Prestaciones en especie.\n"]
[2025,"2025-07-01","2025-09-30","Persona servidora pública",1,"Auxiliar Administrativa","Auxiliar Administrativa","Subdirección de Créditos con Garantía Hipotecaria","María Fernanda","Pérez","Martínez","Mujer",15047.38,"PESO",13526.65,"PESO",null,null,126,77,null,126,null,null,null,null,null,126,null,"Subdirección de Recursos Humanos","2025-09-30","La suma del monto bruto de los ingresos considera el sueldo y demas prestaciones otorgadas durante el periodo.  La Dirección de Pensiones Civiles del Estado de Michoacán  no otorga Percepciones Adicionales en Dinero, Percepciones Adicionales en Especie, Ingresos, Sistemas de compensación, Comisiones, Dietas, Bonos, Estímulos, Apoyos económicos, Prestaciones económicas, Prestaciones en especie.\n"]
[2025,"2025-07-01","2025-09-30","Persona servidora pública",1,"Auxiliar de Cocina","Auxiliar de Cocina","CAI","Carlos Axel","Pintor","Hernández","Hombre",15047.38,"PESO",12414.57,"PESO",null,null,127,null,null,127,null,null,null,null,null,127,null,"Subdirección de Recursos Humanos","2025-09-30","La suma del monto bruto de los ingresos considera el sueldo y demas prestaciones otorgadas durante el periodo.  La Dirección de Pensiones Civiles del Estado de Michoacán  no otorga Percepciones Adicionales en Dinero, Percepciones Adicionales en Especie, Ingresos, Sistemas de compensación, Comisiones, Dietas, Bonos, Estímulos, Apoyos económicos, Prestaciones económicas, Prestaciones en especie.\n"]
[2025,"2025-07-01","2025-09-30","Persona servidora pública",1,"Auxiliar Asistente Educativo","Auxiliar Asistente Educativo","CAI","Luis Alenjandro","Ponce de León","Fernández","Hombre",15047.38,"PESO",13526.65,"PESO",null,null,128,null,null,128,null,null,null,null,null,128,null,"Subdirección de Recursos Humanos","2025-09-30","La suma del monto bruto de los ingresos considera el sueldo y demas prestaciones otorgadas durante el periodo.  La Dirección de Pensiones Civiles del Estado de Michoacán  no otorga Percepciones Adicionales en Dinero, Percepciones Adicionales en Especie, Ingresos, Sistemas de compensación, Comisiones, Dietas, Bonos, Estímulos, Apoyos económicos, Prestaciones económicas, Prestaciones en especie.\n"]
[2025,"2025-07-01","2025-09-30","Persona servidora pública",1,"Auxiliar Administrativo","Auxiliar Administrativo","Subdirección de Contabilidad y Presupuesto","Axel Felipe","Robles","González","Hombre",15047.38,"PESO",13526.65,"PESO",null,null,129,78,null,129,null,null,null,55,null,129,null,"Subdirección de Recursos Humanos","2025-09-30","La suma del monto bruto de los ingresos considera el sueldo y demas prestaciones otorgadas durante el periodo.  La Dirección de Pensiones Civiles del Estado de Michoacán  no otorga Percepciones Adicionales en Dinero, Percepciones Adicionales en Especie, Ingresos, Sistemas de compensación, Comisiones, Dietas, Bonos, Estímulos, Apoyos económicos, Prestaciones económicas, Prestaciones en especie.\n"]
[2025,"2025-07-01","2025-09-30","Persona servidora pública",1,"Auxiliar Asistente Educativa","Auxiliar Asistente Educativa","CAI","Gabriela","Rodríguez","Sosa","Mujer",15047.38,"PESO",13526.65,"PESO",null,null,130,null,null,130,null,null,null,null,null,130,null,"Subdirección de Recursos Humanos","2025-09-30","La suma del monto bruto de los ingresos considera el sueldo y demas prestaciones otorgadas durante el periodo.  La Dirección de Pensiones Civiles del Estado de Michoacán  no otorga Percepciones Adicionales en Dinero, Percepciones Adicionales en Especie, Ingresos, Sistemas de compensación, Comisiones, Dietas, Bonos, Estímulos, Apoyos económicos, Prestaciones económicas, Prestaciones en especie.\n"]
[2025,"2025-07-01","2025-09-30","Persona servidora pública",1,"Auxiliar Asistente Educativo","Auxiliar Asistente Educativo","CAI","Eduardo ","Sánchez","Barriga","Hombre",15047.38,"PESO",13526.65,"PESO",null,null,131,null,null,131,null,null,null,56,null,131,null,"Subdirección de Recursos Humanos","2025-09-30","La suma del monto bruto de los ingresos considera el sueldo y demas prestaciones otorgadas durante el periodo.  La Dirección de Pensiones Civiles del Estado de Michoacán  no otorga Percepciones Adicionales en Dinero, Percepciones Adicionales en Especie, Ingresos, Sistemas de compensación, Comisiones, Dietas, Bonos, Estímulos, Apoyos económicos, Prestaciones económicas, Prestaciones en especie.\n"]
[2025,"2025-07-01","2025-09-30","Persona servidora pública",1,"Auxiliar Intendencia","Auxiliar Intendencia","CAI","Hugo  ","Tamayo","Campos","Hombre",15047.38,"PESO",13526.65,"PESO",null,null,132,null,null,132,null,null,null,57,null,132,null,"Subdirección de Recursos Humanos","2025-09-30","La suma del monto bruto de los ingresos considera el sueldo y demas prestaciones otorgadas durante el periodo.  La Dirección de Pensiones Civiles del Estado de Michoacán  no otorga Percepciones Adicionales en Dinero, Percepciones Adicionales en Especie, Ingresos, Sistemas de compensación, Comisiones, Dietas, Bonos, Estímulos, Apoyos económicos, Prestaciones económicas, Prestaciones en especie.\n"]
[2025,"2025-07-01","2025-09-30","Persona servidora pública",1,"Auxiliar Asistente Educativa","Auxiliar Asistente Educativa","CAI","Lizbeth","Torres ","Díaz","Mujer",15047.38,"PESO",13526.65,"PESO",null,null,133,null,null,133,null,null,null,58,null,133,null,"Subdirección de Recursos Humanos","2025-09-30","La suma del monto bruto de los ingresos considera el sueldo y demas prestaciones otorgadas durante el periodo.  La Dirección de Pensiones Civiles del Estado de Michoacán  no otorga Percepciones Adicionales en Dinero, Percepciones Adicionales en Especie, Ingresos, Sistemas de compensación, Comisiones, Dietas, Bonos, Estímulos, Apoyos económicos, Prestaciones económicas, Prestaciones en especie.\n"]
[2025,"2025-07-01","2025-09-30","Persona servidora pública",1,"Auxiliar de Cocina","Auxiliar de Cocina","CAI","Aida María","Vaca","Dávalos","Mujer",15047.38,"PESO",13526.65,"PESO",null,null,134,null,null,134,null,null,null,null,null,134,null,"Subdirección de Recursos Humanos","2025-09-30","La suma del monto bruto de los ingresos considera el sueldo y demas prestaciones otorgadas durante el periodo.  La Dirección de Pensiones Civiles del Estado de Michoacán  no otorga Percepciones Adicionales en Dinero, Percepciones Adicionales en Especie, Ingresos, Sistemas de compensación, Comisiones, Dietas, Bonos, Estímulos, Apoyos económicos, Prestaciones económicas, Prestaciones en especie.\n"]
[2025,"2025-07-01","2025-09-30","Persona servidora pública",1,"Auxiliar Programador","Auxiliar Programador","Subdirección en Sistemas","Pedro","Varela","García","Hombre",15047.38,"PESO",13526.65,"PESO",null,null,135,79,null,135,null,null,null,null,null,135,null,"Subdirección de Recursos Humanos","2025-09-30","La suma del monto bruto de los ingresos considera el sueldo y demas prestaciones otorgadas durante el periodo.  La Dirección de Pensiones Civiles del Estado de Michoacán  no otorga Percepciones Adicionales en Dinero, Percepciones Adicionales en Especie, Ingresos, Sistemas de compensación, Comisiones, Dietas, Bonos, Estímulos, Apoyos económicos, Prestaciones económicas, Prestaciones en especie.\n"]
[2025,"2025-07-01","2025-09-30","Persona servidora pública",1,"Auxiliar Administrativa","Auxiliar Administrativa","Subdirección de Jubilados y Pensionados","Azucena","Vega","García","Mujer",15047.38,"PESO",13526.65,"PESO",null,null,136,null,null,136,null,null,null,59,null,136,null,"Subdirección de Recursos Humanos","2025-09-30","La suma del monto bruto de los ingresos considera el sueldo y demas prestaciones otorgadas durante el periodo.  La Dirección de Pensiones Civiles del Estado de Michoacán  no otorga Percepciones Adicionales en Dinero, Percepciones Adicionales en Especie, Ingresos, Sistemas de compensación, Comisiones, Dietas, Bonos, Estímulos, Apoyos económicos, Prestaciones económicas, Prestaciones en especie.\n"]
[2025,"2025-07-01","2025-09-30","Persona servidora pública",1,"Auxiliar Asistente Educativo","Auxiliar Asistente Educativo","CAI","Rafael","Villegas","Paniagua","Hombre",15047.38,"PESO",13526.65,"PESO",null,null,137,null,null,137,null,null,null,null,null,137,null,"Subdirección de Recursos Humanos","2025-09-30","La suma del monto bruto de los ingresos considera el sueldo y demas prestaciones otorgadas durante el periodo.  La Dirección de Pensiones Civiles del Estado de Michoacán  no otorga Percepciones Adicionales en Dinero, Percepciones Adicionales en Especie, Ingresos, Sistemas de compensación, Comisiones, Dietas, Bonos, Estímulos, Apoyos económicos, Prestaciones económicas, Prestaciones en especie.\n"]
[2025,"2025-07-01","2025-09-30","Persona servidora pública",1,"Auxiliar Asistente Educativa","Auxiliar Asistente Educativa","CAI","Ana Silvia","Vital ","Corona","Mujer",15047.38,"PESO",13526.65,"PESO",null,null,138,null,null,138,null,null,null,null,null,138,null,"Subdirección de Recursos Humanos","2025-09-30","La suma del monto bruto de los ingresos considera el sueldo y demas prestaciones otorgadas durante el periodo.  La Dirección de Pensiones Civiles del Estado de Michoacán  no otorga Percepciones Adicionales en Dinero, Percepciones Adicionales en Especie, Ingresos, Sistemas de compensación, Comisiones, Dietas, Bonos, Estímulos, Apoyos económicos, Prestaciones económicas, Prestaciones en especie.\n"]
[2025,"2025-07-01","2025-09-30","Persona servidora pública",8,"Jurista \"B\"","Jurista \"B\"","Enlace Jurídico","Yesenia","Maldonado","García","Mujer",27775.95,"PESO",23511,"PESO",null,null,139,80,null,139,null,null,null,null,null,139,null,"Subdirección de Recursos Humanos","2025-09-30","La suma del monto bruto de los ingresos considera el sueldo y demas prestaciones otorgadas durante el periodo.  La Dirección de Pensiones Civiles del Estado de Michoacán  no otorga Percepciones Adicionales en Dinero, Percepciones Adicionales en Especie, Ingresos, Sistemas de compensación, Comisiones, Dietas, Bonos, Estímulos, Apoyos económicos, Prestaciones económicas, Prestaciones en especie.\n"]
[2025,"2025-07-01","2025-09-30","Persona servidora pública",3,"Auxiliar Jurista \"C\"","Auxiliar Jurista \"C\"","Enlace Jurídico","Diana Itzel","González","Sánchez","Mujer",19218.95,"PESO",16781.78,"PESO",null,null,140,81,null,140,null,null,null,null,null,140,null,"Subdirección de Recursos Humanos","2025-09-30","La suma del monto bruto de los ingresos considera el sueldo y demas prestaciones otorgadas durante el periodo.  La Dirección de Pensiones Civiles del Estado de Michoacán  no otorga Percepciones Adicionales en Dinero, Percepciones Adicionales en Especie, Ingresos, Sistemas de compensación, Comisiones, Dietas, Bonos, Estímulos, Apoyos económicos, Prestaciones económicas, Prestaciones en especie.\n"]
[2025,"2025-07-01","2025-09-30","Persona servidora pública",1,"Auxiliar de Intendencia","Auxiliar de Intendencia","Subdirección de Recursos Materiales y Servicios Generales","Nancy","Gomez","Medina","Mujer",15047.38,"PESO",13526.65,"PESO",null,null,141,82,null,141,null,null,null,60,null,141,null,"Subdirección de Recursos Humanos","2025-09-30","La suma del monto bruto de los ingresos considera el sueldo y demas prestaciones otorgadas durante el periodo.  La Dirección de Pensiones Civiles del Estado de Michoacán  no otorga Percepciones Adicionales en Dinero, Percepciones Adicionales en Especie, Ingresos, Sistemas de compensación, Comisiones, Dietas, Bonos, Estímulos, Apoyos económicos, Prestaciones económicas, Prestaciones en especie.\n"]
[2025,"2025-07-01","2025-09-30","Persona servidora pública",1,"Auxiliar Mantenimiento","Auxiliar Mantenimiento","Subdirección de Recursos Materiales y Servicios Generales","Juan Manuel","Rojas"," Mejía","Hombre",15047.38,"PESO",13526.65,"PESO",null,null,142,83,null,142,null,null,null,61,null,142,null,"Subdirección de Recursos Humanos","2025-09-30","La suma del monto bruto de los ingresos considera el sueldo y demas prestaciones otorgadas durante el periodo.  La Dirección de Pensiones Civiles del Estado de Michoacán  no otorga Percepciones Adicionales en Dinero, Percepciones Adicionales en Especie, Ingresos, Sistemas de compensación, Comisiones, Dietas, Bonos, Estímulos, Apoyos económicos, Prestaciones económicas, Prestaciones en especie.\n"]
[2025,"2025-07-01","2025-09-30","Persona servidora pública",1,"Auxilar Contable","Auxilar Contable","Subdirección de Contabilidad y Presupuesto","María Andrea","Villa ","Rivera","Mujer",15047.38,"PESO",13526.65,"PESO",null,null,143,84,null,143,null,null,null,62,null,143,null,"Subdirección de Recursos Humanos","2025-09-30","La suma del monto bruto de los ingresos considera el sueldo y demas prestaciones otorgadas durante el periodo.  La Dirección de Pensiones Civiles del Estado de Michoacán  no otorga Percepciones Adicionales en Dinero, Percepciones Adicionales en Especie, Ingresos, Sistemas de compensación, Comisiones, Dietas, Bonos, Estímulos, Apoyos económicos, Prestaciones económicas, Prestaciones en especie.\n"]
[2025,"2025-07-01","2025-09-30","Persona servidora pública",9,"Jurista \"C\"","Jurista \"C\"","Subdirección de Procesos Legales","Getzemani","Aguilera","Morales","Hombre",18801.830000000002,"PESO",16626.7,"PESO",null,null,144,85,null,144,null,null,null,63,null,144,null,"Subdirección de Recursos Humanos","2025-09-30","La suma del monto bruto de los ingresos considera el sueldo y demas prestaciones otorgadas durante el periodo.  La Dirección de Pensiones Civiles del Estado de Michoacán  no otorga Percepciones Adicionales en Dinero, Percepciones Adicionales en Especie, Ingresos, Sistemas de compensación, Comisiones, Dietas, Bonos, Estímulos, Apoyos económicos, Prestaciones económicas, Prestaciones en especie.\n"]
[2025,"2025-07-01","2025-09-30","Persona servidora pública eventual",9,"Operador Especializado “C”","Operador Especializado “C”","Dirección General","Geovani","González","Pérez","Hombre",18801.830000000002,"PESO",16626.7,"PESO",null,null,145,86,null,145,null,null,null,null,null,145,null,"Subdirección de Recursos Humanos","2025-09-30","La suma del monto bruto de los ingresos considera el sueldo y demas prestaciones otorgadas durante el periodo.  La Dirección de Pensiones Civiles del Estado de Michoacán  no otorga Percepciones Adicionales en Dinero, Percepciones Adicionales en Especie, Ingresos, Sistemas de compensación, Comisiones, Dietas, Bonos, Estímulos, Apoyos económicos, Prestaciones económicas, Prestaciones en especie.\n"]
[2025,"2025-07-01","2025-09-30","Persona servidora pública eventual",6,"Operador Especializado “C”","Operador Especializado “C”","Dirección General","Carlos Ignacio","Hernández","Pantoja","Hombre",16259.04,"PESO",14603.69,"PESO",null,null,146,null,null,146,null,null,null,64,null,146,null,"Subdirección de Recursos Humanos","2025-09-30","La suma del monto bruto de los ingresos considera el sueldo y demas prestaciones otorgadas durante el periodo.  La Dirección de Pensiones Civiles del Estado de Michoacán  no otorga Percepciones Adicionales en Dinero, Percepciones Adicionales en Especie, Ingresos, Sistemas de compensación, Comisiones, Dietas, Bonos, Estímulos, Apoyos económicos, Prestaciones económicas, Prestaciones en especie.\n"]
[2025,"2025-07-01","2025-09-30","Persona servidora pública eventual",5,"Programador \"B\"","Programador \"B\"","Unidad de Informática","Iván","Flores","García","Hombre",15701.66,"PESO",14144.31,"PESO",null,null,147,87,null,147,null,null,null,65,null,147,null,"Subdirección de Recursos Humanos","2025-09-30","La suma del monto bruto de los ingresos considera el sueldo y demas prestaciones otorgadas durante el periodo.  La Dirección de Pensiones Civiles del Estado de Michoacán  no otorga Percepciones Adicionales en Dinero, Percepciones Adicionales en Especie, Ingresos, Sistemas de compensación, Comisiones, Dietas, Bonos, Estímulos, Apoyos económicos, Prestaciones económicas, Prestaciones en especie.\n"]
[2025,"2025-07-01","2025-09-30","Persona servidora pública eventual",5,"Oficial Administrativo “B”","Oficial Administrativo “B”","Subdirección de Recusos Materiales y Serv. Generales","Luis Miguel","García","Aguilar","Hombre",15701.66,"PESO",14144.31,"PESO",null,null,148,88,null,148,null,null,null,66,null,148,null,"Subdirección de Recursos Humanos","2025-09-30","La suma del monto bruto de los ingresos considera el sueldo y demas prestaciones otorgadas durante el periodo.  La Dirección de Pensiones Civiles del Estado de Michoacán  no otorga Percepciones Adicionales en Dinero, Percepciones Adicionales en Especie, Ingresos, Sistemas de compensación, Comisiones, Dietas, Bonos, Estímulos, Apoyos económicos, Prestaciones económicas, Prestaciones en especie.\n"]
[2025,"2025-07-01","2025-09-30","Persona servidora pública eventual",5,"Oficial Administrativa “B”","Oficial Administrativa “B”","Subdirección de Créditos con Garantía Hipotecaria","Maritza","Quirino","Romero","Mujer",15701.66,"PESO",14144.31,"PESO",null,null,149,89,null,149,null,null,null,null,null,149,null,"Subdirección de Recursos Humanos","2025-09-30","La suma del monto bruto de los ingresos considera el sueldo y demas prestaciones otorgadas durante el periodo.  La Dirección de Pensiones Civiles del Estado de Michoacán  no otorga Percepciones Adicionales en Dinero, Percepciones Adicionales en Especie, Ingresos, Sistemas de compensación, Comisiones, Dietas, Bonos, Estímulos, Apoyos económicos, Prestaciones económicas, Prestaciones en especie.\n"]
[2025,"2025-07-01","2025-09-30","Persona servidora pública eventual",5,"Oficial Administrativo “B”","Oficial Administrativo “B”","Subdirección de Contabilidad y Presupuesto","Carlos ","Rojas","Morales","Hombre",15701.66,"PESO",14144.31,"PESO",null,null,150,90,null,150,null,null,null,null,null,150,null,"Subdirección de Recursos Humanos","2025-09-30","La suma del monto bruto de los ingresos considera el sueldo y demas prestaciones otorgadas durante el periodo.  La Dirección de Pensiones Civiles del Estado de Michoacán  no otorga Percepciones Adicionales en Dinero, Percepciones Adicionales en Especie, Ingresos, Sistemas de compensación, Comisiones, Dietas, Bonos, Estímulos, Apoyos económicos, Prestaciones económicas, Prestaciones en especie.\n"]
[2025,"2025-07-01","2025-09-30","Persona servidora pública eventual",4,"Asistente Jurista","Asistente Jurista","Subdirección de Procesos Legales","Itzel Celeste","Hernández","Morales","Mujer",13232.41,"PESO",12093.25,"PESO",null,null,151,91,null,null,null,null,null,null,null,151,null,"Subdirección de Recursos Humanos","2025-09-30","La suma del monto bruto de los ingresos considera el sueldo y demas prestaciones otorgadas durante el periodo.  La Dirección de Pensiones Civiles del Estado de Michoacán  no otorga Percepciones Adicionales en Dinero, Percepciones Adicionales en Especie, Ingresos, Sistemas de compensación, Comisiones, Dietas, Bonos, Estímulos, Apoyos económicos, Prestaciones económicas, Prestaciones en especie.\n"]
[2025,"2025-07-01","2025-09-30","Persona servidora pública eventual",4,"Asistente Jurista","Asistente Jurista","Subdirección de Contratos, Estudios y Dictámenes Jurídicos","Norberto","Hernández","Villaseñor","Hombre",13232.41,"PESO",12093.25,"PESO",null,null,152,92,null,null,null,null,null,null,null,152,null,"Subdirección de Recursos Humanos","2025-09-30","La suma del monto bruto de los ingresos considera el sueldo y demas prestaciones otorgadas durante el periodo.  La Dirección de Pensiones Civiles del Estado de Michoacán  no otorga Percepciones Adicionales en Dinero, Percepciones Adicionales en Especie, Ingresos, Sistemas de compensación, Comisiones, Dietas, Bonos, Estímulos, Apoyos económicos, Prestaciones económicas, Prestaciones en especie.\n"]
[2025,"2025-07-01","2025-09-30","Persona servidora pública eventual",4,"Asistente de Contabilidad","Asistente de Contabilidad","Subdirección de Contabilidad y Presupuesto","Irene","Juárez","Tinoco","Mujer",13232.41,"PESO",12093.25,"PESO",null,null,153,93,null,151,null,null,null,67,null,153,null,"Subdirección de Recursos Humanos","2025-09-30","La suma del monto bruto de los ingresos considera el sueldo y demas prestaciones otorgadas durante el periodo.  La Dirección de Pensiones Civiles del Estado de Michoacán  no otorga Percepciones Adicionales en Dinero, Percepciones Adicionales en Especie, Ingresos, Sistemas de compensación, Comisiones, Dietas, Bonos, Estímulos, Apoyos económicos, Prestaciones económicas, Prestaciones en especie.\n"]
[2025,"2025-07-01","2025-09-30","Persona servidora pública eventual",4,"Oficial Administrativa ","Oficial Administrativa ","Subdirección de Caja","Fabiola","Ortíz","Guzmán","Mujer",13232.41,"PESO",12093.25,"PESO",null,null,154,null,null,152,null,null,null,null,null,154,null,"Subdirección de Recursos Humanos","2025-09-30","La suma del monto bruto de los ingresos considera el sueldo y demas prestaciones otorgadas durante el periodo.  La Dirección de Pensiones Civiles del Estado de Michoacán  no otorga Percepciones Adicionales en Dinero, Percepciones Adicionales en Especie, Ingresos, Sistemas de compensación, Comisiones, Dietas, Bonos, Estímulos, Apoyos económicos, Prestaciones económicas, Prestaciones en especie.\n"]
[2025,"2025-07-01","2025-09-30","Persona servidora pública eventual",4,"Cocinero","Cocinero","CAI","Arturo","Reyes","López","Hombre",13232.41,"PESO",12093.25,"PESO",null,null,155,94,null,153,null,null,null,68,null,155,null,"Subdirección de Recursos Humanos","2025-09-30","La suma del monto bruto de los ingresos considera el sueldo y demas prestaciones otorgadas durante el periodo.  La Dirección de Pensiones Civiles del Estado de Michoacán  no otorga Percepciones Adicionales en Dinero, Percepciones Adicionales en Especie, Ingresos, Sistemas de compensación, Comisiones, Dietas, Bonos, Estímulos, Apoyos económicos, Prestaciones económicas, Prestaciones en especie.\n"]
[2025,"2025-07-01","2025-09-30","Persona servidora pública eventual",4,"Asistente de Contabilidad","Asistente de Contabilidad","Subdirección de Recursos Humanos","Lizeth","Sánchez","López","Mujer",13232.41,"PESO",12093.25,"PESO",null,null,156,95,null,154,null,null,null,null,null,156,null,"Subdirección de Recursos Humanos","2025-09-30","La suma del monto bruto de los ingresos considera el sueldo y demas prestaciones otorgadas durante el periodo.  La Dirección de Pensiones Civiles del Estado de Michoacán  no otorga Percepciones Adicionales en Dinero, Percepciones Adicionales en Especie, Ingresos, Sistemas de compensación, Comisiones, Dietas, Bonos, Estímulos, Apoyos económicos, Prestaciones económicas, Prestaciones en especie.\n"]
[2025,"2025-07-01","2025-09-30","Persona servidora pública eventual",3,"Auxiliar Programador \"C\"","Auxiliar Programador \"C\"","Subdirección de Soporte Técnico","Christian ","Torres ","López","Hombre",12076.04,"PESO",11113.93,"PESO",null,null,157,96,null,155,null,null,null,69,null,157,null,"Subdirección de Recursos Humanos","2025-09-30","La suma del monto bruto de los ingresos considera el sueldo y demas prestaciones otorgadas durante el periodo.  La Dirección de Pensiones Civiles del Estado de Michoacán  no otorga Percepciones Adicionales en Dinero, Percepciones Adicionales en Especie, Ingresos, Sistemas de compensación, Comisiones, Dietas, Bonos, Estímulos, Apoyos económicos, Prestaciones económicas, Prestaciones en especie.\n"]
[2025,"2025-07-01","2025-09-30","Persona servidora pública eventual",2,"Auxiliar Asistente Educativa \"B\"","Auxiliar Asistente Educativa \"B\"","CAI","Prudencia","Cortés","Rocha","Mujer",10714.6,"PESO",9916.15,"PESO",null,null,158,null,null,156,null,null,null,null,null,158,null,"Subdirección de Recursos Humanos","2025-09-30","La suma del monto bruto de los ingresos considera el sueldo y demas prestaciones otorgadas durante el periodo.  La Dirección de Pensiones Civiles del Estado de Michoacán  no otorga Percepciones Adicionales en Dinero, Percepciones Adicionales en Especie, Ingresos, Sistemas de compensación, Comisiones, Dietas, Bonos, Estímulos, Apoyos económicos, Prestaciones económicas, Prestaciones en especie.\n"]
[2025,"2025-07-01","2025-09-30","Persona servidora pública eventual",2,"Auxiliar Nutriologo \"B\"","Auxiliar Nutriologo \"B\"","CAI","Gustavo","García","Zepeda","Hombre",10714.6,"PESO",9916.15,"PESO",null,null,159,null,null,157,null,null,null,null,null,159,null,"Subdirección de Recursos Humanos","2025-09-30","La suma del monto bruto de los ingresos considera el sueldo y demas prestaciones otorgadas durante el periodo.  La Dirección de Pensiones Civiles del Estado de Michoacán  no otorga Percepciones Adicionales en Dinero, Percepciones Adicionales en Especie, Ingresos, Sistemas de compensación, Comisiones, Dietas, Bonos, Estímulos, Apoyos económicos, Prestaciones económicas, Prestaciones en especie.\n"]
[2025,"2025-07-01","2025-09-30","Persona servidora pública eventual",2,"Auxilar Administrativa \"B\"","Auxilar Administrativa \"B\"","Subdirección de Préstamos a Corto Plazo","Isis Estefania","Vega","Calderón","Mujer",10714.6,"PESO",9916.15,"PESO",null,null,160,null,null,null,null,null,null,70,null,160,null,"Subdirección de Recursos Humanos","2025-09-30","La suma del monto bruto de los ingresos considera el sueldo y demas prestaciones otorgadas durante el periodo.  La Dirección de Pensiones Civiles del Estado de Michoacán  no otorga Percepciones Adicionales en Dinero, Percepciones Adicionales en Especie, Ingresos, Sistemas de compensación, Comisiones, Dietas, Bonos, Estímulos, Apoyos económicos, Prestaciones económicas, Prestaciones en especie.\n"]
[2025,"2025-07-01","2025-09-30","Persona servidora pública eventual",1,"Auxiliar de Intendencia","Auxiliar de Intendencia","Subdirección de  Recursos Materiales y Serv. Generales","José","Corona","Sánchez","Hombre",9454.89,"PESO",8787.59,"PESO",null,null,161,97,null,158,null,null,null,71,null,161,null,"Subdirección de Recursos Humanos","2025-09-30","La suma del monto bruto de los ingresos considera el sueldo y demas prestaciones otorgadas durante el periodo.  La Dirección de Pensiones Civiles del Estado de Michoacán  no otorga Percepciones Adicionales en Dinero, Percepciones Adicionales en Especie, Ingresos, Sistemas de compensación, Comisiones, Dietas, Bonos, Estímulos, Apoyos económicos, Prestaciones económicas, Prestaciones en especie.\n"]
[2025,"2025-07-01","2025-09-30","Persona servidora pública eventual",1,"Auxiliar de Intendencia","Auxiliar de Intendencia","Subdirección de  Recursos Materiales y Serv. Generales","Leticia","Tercero","Silva","Mujer",9454.89,"PESO",8787.59,"PESO",null,null,162,98,null,159,null,null,null,72,null,162,null,"Subdirección de Recursos Humanos","2025-09-30","La suma del monto bruto de los ingresos considera el sueldo y demas prestaciones otorgadas durante el periodo.  La Dirección de Pensiones Civiles del Estado de Michoacán  no otorga Percepciones Adicionales en Dinero, Percepciones Adicionales en Especie, Ingresos, Sistemas de compensación, Comisiones, Dietas, Bonos, Estímulos, Apoyos económicos, Prestaciones económicas, Prestaciones en especie.\n"]
[2025,"2025-07-01","2025-09-30","Persona servidora pública eventual",1,"Auxilar de Cocina ","Auxilar de Cocina ","CAI","Diana Elizabeth","Vaca","García","Mujer",9454.89,"PESO",8825.4547374335998,"PESO",null,null,163,null,null,160,null,null,null,73,null,163,null,"Subdirección de Recursos Humanos","2025-09-30","La suma del monto bruto de los ingresos considera el sueldo y demas prestaciones otorgadas durante el periodo.  La Dirección de Pensiones Civiles del Estado de Michoacán  no otorga Percepciones Adicionales en Dinero, Percepciones Adicionales en Especie, Ingresos, Sistemas de compensación, Comisiones, Dietas, Bonos, Estímulos, Apoyos económicos, Prestaciones económicas, Prestaciones en especie.\n"]

{"sheet":"Hoja1","index":1,"n_rows":0,"n_cols":0,"rows_kept":0,"cut":false,"hidden":false,"merged":[]}

{"sheet":"Hoja2","index":2,"n_rows":0,"n_cols":0,"rows_kept":0,"cut":false,"hidden":false,"merged":[]}

{"sheet":"Hoja3","index":3,"n_rows":0,"n_cols":0,"rows_kept":0,"cut":false,"hidden":false,"merged":[]}

{"sheet":"Hidden_1","index":4,"n_rows":11,"n_cols":1,"rows_kept":11,"cut":false,"hidden":false,"merged":[]}
["Funcionaria (o)"]
["Persona servidora pública"]
["Persona servidora pública eventual"]
["Integrante"]
["Empleada (o)"]
["Representante popular"]
["Miembro del poder judicial"]
["Miembro de órgano autónomo"]
["Personal de confianza"]
["Persona prestadora de servicios profesionales"]
["Otro"]

{"sheet":"Hidden_2","index":5,"n_rows":2,"n_cols":1,"rows_kept":2,"cut":false,"hidden":false,"merged":[]}
["Hombre"]
["Mujer"]

{"sheet":"Tabla_512939","index":6,"n_rows":3,"n_cols":6,"rows_kept":3,"cut":false,"hidden":false,"merged":[]}
[null,"2","6","6","1","1"]
[null,"65856","65857","65858","65859","65860"]
["ID","Denominación de las percepciones adicionales en dinero","Monto bruto de las percepciones adicionales en dinero","Monto neto de las percepciones adicionales en dinero","Tipo de moneda de las percepciones adicionales en dinero ","Periodicidad de las percepciones adicionales en dinero"]

{"sheet":"Tabla_512926","index":7,"n_rows":3,"n_cols":3,"rows_kept":3,"cut":false,"hidden":false,"merged":[]}
[null,"2","1"]
[null,"65834","65835"]
["ID","Descripción de las percepciones adicionales en especie","Periodicidad de las percepciones adicionales en especie"]

{"sheet":"Tabla_512940","index":8,"n_rows":166,"n_cols":6,"rows_kept":166,"cut":false,"hidden":false,"merged":[]}
[null,"2","6","6","1","1"]
[null,"65863","65864","65865","65861","65862"]
["ID","Denominación de los ingresos ","Monto bruto de los ingresos","Monto neto de los ingresos","Tipo de moneda de los ingresos","Periodicidad de los ingresos"]
[1,"Sueldo y otras prestaciones",105043.99,78611.19,"Pesos","Mensual y Semestral"]
[2,"Sueldo y otras prestaciones",85701.97,64798.37,"Pesos","Mensual y Semestral"]
[3,"Sueldo y otras prestaciones",85701.97,63815.229999999996,"Pesos","Mensual y Semestral"]
[4,"Sueldo y otras prestaciones",58505.03,45888.53,"Pesos","Mensual y Semestral"]
[5,"Sueldo y otras prestaciones",58505.03,45642.29,"Pesos","Mensual y Semestral"]
[6,"Sueldo y otras prestaciones",58961.17,46215.61,"Pesos","Mensual y Semestral"]
[7,"Sueldo y otras prestaciones",47836.67,37827.19,"Pesos","Mensual y Semestral"]
[8,"Sueldo y otras prestaciones",50315.430000000008,39689.030000000006,"Pesos","Mensual y Semestral"]
[9,"Sueldo y otras prestaciones",47836.67,37827.19,"Pesos","Mensual y Semestral"]
[10,"Sueldo y otras prestaciones",50315.430000000008,39689.030000000006,"Pesos","Mensual y Semestral"]
[11,"Sueldo y otras prestaciones",48485.710000000006,38314.69,"Pesos","Mensual y Semestral"]
[12,"Sueldo y otras prestaciones",47836.67,37827.19,"Pesos","Mensual y Semestral"]
[13,"Sueldo y otras prestaciones",48656.41,38485.39,"Pesos","Mensual y Semestral"]
[14,"Sueldo y otras prestaciones",48485.710000000006,38314.69,"Pesos","Mensual y Semestral"]
[15,"Sueldo y otras prestaciones",47836.67,37827.19,"Pesos","Mensual y Semestral"]
[16,"Sueldo y otras prestaciones",48485.710000000006,38314.69,"Pesos","Mensual y Semestral"]
[17,"Sueldo y otras prestaciones",47836.67,37827.19,"Pesos","Mensual y Semestral"]
[18,"Sueldo y otras prestaciones",48980.91,38686.650000000009,"Pesos","Mensual y Semestral"]
[19,"Sueldo, compensación y otras prestaciones",39354.080000000002,25769.18,"Pesos","Mensual, Bimestral y Semestral"]
[20,"Sueldo, compensación y otras prestaciones",39129.839999999997,25314.999999999996,"Pesos","Mensual, Bimestral y Semestral"]
[21,"Sueldo, compensación y otras prestaciones",39354.080000000002,25769.18,"Pesos","Mensual, Bimestral y Semestral"]
[22,"Sueldo, compensación y otras prestaciones",40229.839999999997,26414.999999999996,"Pesos","Mensual, Bimestral y Semestral"]
[23,"Sueldo, compensación y otras prestaciones",39129.839999999997,25314.999999999996,"Pesos","Mensual, Bimestral y Semestral"]
[24,"Sueldo, compensación y otras prestaciones",39129.839999999997,25314.999999999996,"Pesos","Mensual, Bimestral y Semestral"]
[25,"Sueldo, compensación y otras prestaciones",39810.22,26105.56,"Pesos","Mensual, Bimestral y Semestral"]
[26,"Sueldo, compensación y otras prestaciones",39810.22,26105.56,"Pesos","Mensual, Bimestral y Semestral"]
[27,"Sueldo, compensación y otras prestaciones",40229.839999999997,26414.999999999996,"Pesos","Mensual, Bimestral y Semestral"]
[28,"Sueldo, compensación y otras prestaciones",38254.080000000002,24669.18,"Pesos","Mensual, Bimestral y Semestral"]
[29,"Sueldo, compensación y otras prestaciones",39129.839999999997,25314.999999999996,"Pesos","Mensual, Bimestral y Semestral"]
[30,"Sueldo, compensación y otras prestaciones",39129.839999999997,25314.999999999996,"Pesos","Mensual, Bimestral y Semestral"]
[31,"Sueldo, compensación y otras prestaciones",40229.839999999997,26414.999999999996,"Pesos","Mensual, Bimestral y Semestral"]
[32,"Sueldo, compensación y otras prestaciones",39129.839999999997,25314.999999999996,"Pesos","Mensual, Bimestral y Semestral"]
[33,"Sueldo, compensación y otras prestaciones",39354.080000000002,25769.18,"Pesos","Mensual, Bimestral y Semestral"]
[34,"Sueldo, compensación y otras prestaciones",36311.78,33521.5,"Pesos","Mensual, Bimestral y Semestral"]
[35,"Sueldo y otras prestaciones",37646.300000000003,28682.280000000002,"Pesos","Mensual, Bimestral y Semestral"]
[36,"Sueldo, compensación y otras prestaciones",35670.54,32880.26,"Pesos","Mensual, Bimestral y Semestral"]
[37,"Sueldo, compensación y otras prestaciones",35211.78,32421.5,"Pesos","Mensual, Bimestral y Semestral"]
[38,"Sueldo, compensación y otras prestaciones",37646.300000000003,34856.020000000004,"Pesos","Mensual, Bimestral y Semestral"]
[39,"Sueldo, compensación y otras prestaciones",36311.78,33521.5,"Pesos","Mensual, Bimestral y Semestral"]
[40,"Sueldo y otras prestaciones",36770.54,33980.26,"Pesos","Mensual, Bimestral y Semestral"]
[41,"Sueldo y otras prestaciones",37226.68,34436.400000000001,"Pesos","Mensual, Bimestral y Semestral"]
[42,"Sueldo, compensación y otras prestaciones",37646.300000000003,34856.020000000004,"Pesos","Mensual, Bimestral y Semestral"]
[43,"Sueldo, compensación y otras prestaciones",36546.300000000003,33756.020000000004,"Pesos","Mensual, Bimestral y Semestral"]
[44,"Sueldo, compensación y otras prestaciones",36311.78,33521.5,"Pesos","Mensual, Bimestral y Semestral"]
[45,"Sueldo, compensación y otras prestaciones",36770.54,33980.26,"Pesos","Mensual, Bimestral y Semestral"]
[46,"Sueldo, compensación y otras prestaciones",35987.279999999999,33197,"Pesos","Mensual, Bimestral y Semestral"]
[47,"Sueldo, compensación y otras prestaciones",37646.300000000003,34856.020000000004,"Pesos","Mensual, Bimestral y Semestral"]
[48,"Sueldo, compensación y otras prestaciones",37646.300000000003,34856.020000000004,"Pesos","Mensual, Bimestral y Semestral"]
[49,"Sueldo, compensación y otras prestaciones",35987.279999999999,33197,"Pesos","Mensual, Bimestral y Semestral"]
[50,"Sueldo, compensación y otras prestaciones",35987.279999999999,33197,"Pesos","Mensual, Bimestral y Semestral"]
[51,"Sueldo, compensación y otras prestaciones",37646.300000000003,34856.020000000004,"Pesos","Mensual, Bimestral y Semestral"]
[52,"Sueldo, compensación y otras prestaciones",35211.78,32421.5,"Pesos","Mensual, Bimestral y Semestral"]
[53,"Sueldo y otras prestaciones",34332.720000000001,23942.720000000001,"Pesos","Mensual, Bimestral y Semestral"]
[54,"Sueldo, compensación y otras prestaciones",33295.879999999997,21690.819999999996,"Pesos","Mensual, Bimestral y Semestral"]
[55,"Sueldo y otras prestaciones",34395.879999999997,26204.6,"Pesos","Mensual, Bimestral y Semestral"]
[56,"Sueldo, compensación y otras prestaciones",33701.18,22391.34,"Pesos","Mensual, Bimestral y Semestral"]
[57,"Sueldo, compensación y otras prestaciones",33701.18,22391.34,"Pesos","Mensual, Bimestral y Semestral"]
[58,"Sueldo, compensación y otras prestaciones",32601.18,21291.34,"Pesos","Mensual, Bimestral y Semestral"]
[59,"Sueldo y otras prestaciones",33701.18,25716.86,"Pesos","Mensual, Bimestral y Semestral"]
[60,"Sueldo y otras prestaciones",33701.18,25716.86,"Pesos","Mensual, Bimestral y Semestral"]
[61,"Sueldo, compensación y otras prestaciones",33701.18,24089.919999999998,"Pesos","Mensual, Bimestral y Semestral"]
[62,"Sueldo y otras prestaciones",31363.039999999997,23737.839999999997,"Pesos","Mensual, Bimestral y Semestral"]
[63,"Sueldo, compensación y otras prestaciones",31533.739999999998,20677.539999999997,"Pesos","Mensual, Bimestral y Semestral"]
[64,"Sueldo y otras prestaciones",31363.039999999997,23737.839999999997,"Pesos","Mensual, Bimestral y Semestral"]
[65,"Sueldo, compensación y otras prestaciones",32463.039999999997,21651.659999999996,"Pesos","Mensual, Bimestral y Semestral"]
[66,"Sueldo, compensación y otras prestaciones",31363.039999999997,22191.979999999996,"Pesos","Mensual, Bimestral y Semestral"]
[67,"Sueldo, compensación y otras prestaciones",31363.039999999997,20551.659999999996,"Pesos","Mensual, Bimestral y Semestral"]
[68,"Sueldo, compensación y otras prestaciones",27904.9,19103.080000000002,"Pesos","Mensual, Bimestral y Semestral"]
[69,"Sueldo, compensación y otras prestaciones",26804.9,17958.28,"Pesos","Mensual, Bimestral y Semestral"]
[70,"Sueldo, compensación y otras prestaciones",27904.9,19058.28,"Pesos","Mensual, Bimestral y Semestral"]
[71,"Sueldo, compensación y otras prestaciones",27734.199999999997,18932.379999999997,"Pesos","Mensual, Bimestral y Semestral"]
[72,"Sueldo, compensación y otras prestaciones",27734.199999999997,18932.379999999997,"Pesos","Mensual, Bimestral y Semestral"]
[73,"Sueldo, compensación y otras prestaciones",27904.9,19103.080000000002,"Pesos","Mensual, Bimestral y Semestral"]
[74,"Sueldo, compensación y otras prestaciones",27904.9,19103.080000000002,"Pesos","Mensual, Bimestral y Semestral"]
[75,"Sueldo, compensación y otras prestaciones",24419.61,17705.150000000001,"Pesos","Mensual, Bimestral y Semestral"]
[76,"Sueldo, compensación y otras prestaciones",25789.31,17917.03,"Pesos","Mensual, Bimestral y Semestral"]
[77,"Sueldo, compensación y otras prestaciones",24590.31,16718.03,"Pesos","Mensual, Bimestral y Semestral"]
[78,"Sueldo, compensación y otras prestaciones",24590.31,16718.03,"Pesos","Mensual, Bimestral y Semestral"]
[79,"Sueldo, compensación y otras prestaciones",25690.31,17776.89,"Pesos","Mensual, Bimestral y Semestral"]
[80,"Sueldo, compensación y otras prestaciones",25519.61,17647.330000000002,"Pesos","Mensual, Bimestral y Semestral"]
[81,"Sueldo, compensación y otras prestaciones",25690.31,17776.89,"Pesos","Mensual, Bimestral y Semestral"]
[82,"Sueldo y otras prestaciones",24419.61,18862.93,"Pesos","Mensual, Bimestral y Semestral"]
[83,"Sueldo, compensación y otras prestaciones",24590.31,16718.03,"Pesos","Mensual, Bimestral y Semestral"]
[84,"Sueldo, compensación y otras prestaciones",25690.31,17818.03,"Pesos","Mensual, Bimestral y Semestral"]
[85,"Sueldo y otras prestaciones",22263.32,17639.78,"Pesos","Mensual, Bimestral y Semestral"]
[86,"Sueldo y otras prestaciones",22912.36,18132.419999999998,"Pesos","Mensual, Bimestral y Semestral"]
[87,"Sueldo, compensación y otras prestaciones",21983.06,15107.440000000002,"Pesos","Mensual, Bimestral y Semestral"]
[88,"Sueldo, compensación y otras prestaciones",21812.36,16005.14,"Pesos","Mensual, Bimestral y Semestral"]
[89,"Sueldo, compensación y otras prestaciones",21812.36,14977.880000000001,"Pesos","Mensual, Bimestral y Semestral"]
[90,"Sueldo y otras prestaciones",21812.36,17032.419999999998,"Pesos","Mensual, Bimestral y Semestral"]
[91,"Sueldo, compensación y otras prestaciones",21812.36,14977.880000000001,"Pesos","Mensual, Bimestral y Semestral"]
[92,"Sueldo, compensación y otras prestaciones",21812.36,14977.880000000001,"Pesos","Mensual, Bimestral y Semestral"]
[93,"Sueldo y otras prestaciones",21983.06,17203.120000000003,"Pesos","Mensual, Bimestral y Semestral"]
[94,"Sueldo, compensación y otras prestaciones",21897.710000000003,15063.230000000003,"Pesos","Mensual, Bimestral y Semestral"]
[95,"Sueldo, compensación y otras prestaciones",22082.06,15247.580000000002,"Pesos","Mensual, Bimestral y Semestral"]
[96,"Sueldo, compensación y otras prestaciones",21983.06,16175.84,"Pesos","Mensual, Bimestral y Semestral"]
[97,"Sueldo, compensación y otras prestaciones",21983.06,16175.84,"Pesos","Mensual, Bimestral y Semestral"]
[98,"Sueldo, compensación y otras prestaciones",21163.32,15512.5,"Pesos","Mensual, Bimestral y Semestral"]
[99,"Sueldo y otras prestaciones",21983.06,17203.120000000003,"Pesos","Mensual, Bimestral y Semestral"]
[100,"Sueldo, compensación y otras prestaciones",21812.36,16005.14,"Pesos","Mensual, Bimestral y Semestral"]
[101,"Sueldo y otras prestaciones",21812.36,17032.419999999998,"Pesos","Mensual, Bimestral y Semestral"]
[102,"Sueldo, compensación y otras prestaciones",23083.06,16248.580000000002,"Pesos","Mensual, Bimestral y Semestral"]
[103,"Sueldo, compensación y otras prestaciones",22912.36,17105.14,"Pesos","Mensual, Bimestral y Semestral"]
[104,"Sueldo y otras prestaciones",21812.36,17032.419999999998,"Pesos","Mensual, Bimestral y Semestral"]
[105,"Sueldo, compensación y otras prestaciones",21812.36,16005.14,"Pesos","Mensual, Bimestral y Semestral"]
[106,"Sueldo y otras prestaciones",18750.8,14948.359999999999,"Pesos","Mensual, Bimestral y Semestral"]
[107,"Sueldo, compensación y otras prestaciones",20499.84,15532.1,"Pesos","Mensual, Bimestral y Semestral"]
[108,"Sueldo y otras prestaciones",19850.8,15945.96,"Pesos","Mensual, Bimestral y Semestral"]
[109,"Sueldo, compensación y otras prestaciones",19850.8,15039.46,"Pesos","Mensual, Bimestral y Semestral"]
[110,"Sueldo, compensación y otras prestaciones",18750.8,13939.46,"Pesos","Mensual, Bimestral y Semestral"]
[111,"Sueldo, compensación y otras prestaciones",19399.84,14432.1,"Pesos","Mensual, Bimestral y Semestral"]
[112,"Sueldo y otras prestaciones",19850.8,15945.96,"Pesos","Mensual, Bimestral y Semestral"]
[113,"Sueldo y otras prestaciones",18750.8,14948.359999999999,"Pesos","Mensual, Bimestral y Semestral"]
[114,"Sueldo, compensación y otras prestaciones",19399.84,14588.5,"Pesos","Mensual, Bimestral y Semestral"]
[115,"Sueldo y otras prestaciones",18750.8,14845.96,"Pesos","Mensual, Bimestral y Semestral"]
[116,"Sueldo y otras prestaciones",43486.59,40029.85,"Pesos","Mensual, Bimestral y Semestral"]
[117,"Sueldo y otras prestaciones",17071.98,13167.14,"Pesos","Mensual, Bimestral y Semestral"]
[118,"Sueldo y otras prestaciones",19850.8,16048.359999999999,"Pesos","Mensual, Bimestral y Semestral"]
[119,"Sueldo y otras prestaciones",19850.8,15945.96,"Pesos","Mensual, Bimestral y Semestral"]
[120,"Sueldo y otras prestaciones",18750.8,14845.96,"Pesos","Mensual, Bimestral y Semestral"]
[121,"Sueldo y otras prestaciones",19399.84,15338.6,"Pesos","Mensual, Bimestral y Semestral"]
[122,"Sueldo y otras prestaciones",18750.8,14846,"Pesos","Mensual, Bimestral y Semestral"]
[123,"Sueldo y otras prestaciones",18750.8,14845.96,"Pesos","Mensual, Bimestral y Semestral"]
[124,"Sueldo, compensación y otras prestaciones",19850.8,15039.46,"Pesos","Mensual, Bimestral y Semestral"]
[125,"Sueldo y otras prestaciones",19850.8,15945.96,"Pesos","Mensual, Bimestral y Semestral"]
[126,"Sueldo, compensación y otras prestaciones",19399.84,14432.1,"Pesos","Mensual, Bimestral y Semestral"]
[127,"Sueldo y otras prestaciones",45288.5,41831.760000000002,"Pesos","Mensual, Bimestral y Semestral"]
[128,"Sueldo y otras prestaciones",18750.8,14845.96,"Pesos","Mensual, Bimestral y Semestral"]
[129,"Sueldo, compensación y otras prestaciones",20499.84,14625.619999999999,"Pesos","Mensual, Bimestral y Semestral"]
[130,"Sueldo y otras prestaciones",18750.8,14845.96,"Pesos","Mensual, Bimestral y Semestral"]
[131,"Sueldo y otras prestaciones",19850.8,15945.96,"Pesos","Mensual, Bimestral y Semestral"]
[132,"Sueldo y otras prestaciones",19850.8,15945.96,"Pesos","Mensual, Bimestral y Semestral"]
[133,"Sueldo y otras prestaciones",19850.8,15945.96,"Pesos","Mensual, Bimestral y Semestral"]
[134,"Sueldo y otras prestaciones",18750.8,14845.96,"Pesos","Mensual, Bimestral y Semestral"]
[135,"Sueldo, compensación y otras prestaciones",19399.84,14432.1,"Pesos","Mensual, Bimestral y Semestral"]
[136,"Sueldo y otras prestaciones",19850.8,15945.96,"Pesos","Mensual, Bimestral y Semestral"]
[137,"Sueldo y otras prestaciones",18750.8,14845.96,"Pesos","Mensual, Bimestral y Semestral"]
[138,"Sueldo y otras prestaciones",18750.8,14948.359999999999,"Pesos","Mensual, Bimestral y Semestral"]
[139,"Sueldo, compensación y otras prestaciones",34597.4,22468.2,"Pesos","Mensual, Bimestral y Semestral"]
[140,"Sueldo, compensación y otras prestaciones",23651.39,16036.349999999999,"Pesos","Mensual, Bimestral y Semestral"]
[141,"Sueldo, compensación y otras prestaciones",19731.62,15022.66,"Pesos","Mensual, Bimestral y Semestral"]
[142,"Sueldo, compensación y otras prestaciones",19731.62,15022.66,"Pesos","Mensual, Bimestral y Semestral"]
[143,"Sueldo, compensación y otras prestaciones",19731.62,15022.66,"Pesos","Mensual, Bimestral y Semestral"]
[144,"Sueldo, compensación y otras prestaciones",24249.48,17299.7,"Pesos","Mensual, Bimestral y Semestral"]
[145,"Sueldo, compensación y otras prestaciones",23149.48,16199.7,"Pesos","Mensual, Bimestral y Semestral"]
[146,"Sueldo y otras prestaciones",21838.7,17310.84,"Pesos","Mensual, Bimestral y Semestral"]
[147,"Sueldo, compensación y otras prestaciones",20518.939999999999,14521.3,"Pesos","Mensual, Bimestral y Semestral"]
[148,"Sueldo, compensación y otras prestaciones",21663.18,15872.48,"Pesos","Mensual, Bimestral y Semestral"]
[149,"Sueldo, compensación y otras prestaciones",20067.98,15296.259999999998,"Pesos","Mensual, Bimestral y Semestral"]
[150,"Sueldo, compensación y otras prestaciones",20067.98,15296.259999999998,"Pesos","Mensual, Bimestral y Semestral"]
[151,"Sueldo, compensación y otras prestaciones",13757.01,9212.61,"Pesos","Mensual, Bimestral y Semestral"]
[152,"Sueldo, compensación y otras prestaciones",13757.01,9173.5499999999993,"Pesos","Mensual, Bimestral y Semestral"]
[153,"Sueldo, compensación y otras prestaciones",18196.64,13652.4,"Pesos","Mensual, Bimestral y Semestral"]
[154,"Sueldo y otras prestaciones",16447.599999999999,13485.819999999998,"Pesos","Mensual, Bimestral y Semestral"]
[155,"Sueldo, compensación y otras prestaciones",17547.599999999999,13444.339999999998,"Pesos","Mensual, Bimestral y Semestral"]
[156,"Sueldo, compensación y otras prestaciones",17096.64,12552.24,"Pesos","Mensual, Bimestral y Semestral"]
[157,"Sueldo, compensación y otras prestaciones",16156.070000000002,12957.590000000002,"Pesos","Mensual, Bimestral y Semestral"]
[158,"Sueldo y otras prestaciones",13417.810000000001,11153.310000000001,"Pesos","Mensual, Bimestral y Semestral"]
[159,"Sueldo y otras prestaciones",13417.810000000001,10838.43,"Pesos","Mensual, Bimestral y Semestral"]
[160,"Sueldo y otras prestaciones",12339.2,9759.82,"Pesos","Mensual, Bimestral y Semestral"]
[161,"Sueldo, compensación y otras prestaciones",13001.97,9868.65,"Pesos","Mensual, Bimestral y Semestral"]
[162,"Sueldo, compensación y otras prestaciones",13651.009999999998,10369.449999999999,"Pesos","Mensual, Bimestral y Semestral"]
[163,"Sueldo y otras prestaciones",13001.97,10790.55,"Pesos","Mensual, Bimestral y Semestral"]

{"sheet":"Tabla_512910","index":9,"n_rows":101,"n_cols":6,"rows_kept":101,"cut":false,"hidden":false,"merged":[]}
[null,"1","6","6","1","1"]
[null,"65814","65815","65816","65817","65818"]
["ID","Denominación de los sistemas de compensación","Monto bruto de los sistemas de compensación","Monto neto de los sistemas de compensación","Tipo de moneda de los sistemas de compensación ","Periodicidad de los sistemas de compensación"]
[1,"Compensación Extraordinaria",14961.49,{"$f":"C4","v":14961.49},"Pesos","Mensual"]
[2,"Compensación Extraordinaria",14961.49,14961.49,"Pesos","Mensual"]
[3,"Compensación Extraordinaria",14961.49,14961.49,"Pesos","Mensual"]
[4,"Compensación Extraordinaria",14961.49,14961.49,"Pesos","Mensual"]
[5,"Compensación Extraordinaria",14961.49,14961.49,"Pesos","Mensual"]
[6,"Compensación Extraordinaria",14961.49,14961.49,"Pesos","Mensual"]
[7,"Compensación Extraordinaria",14961.49,14961.49,"Pesos","Mensual"]
[8,"Compensación Extraordinaria",14961.49,14961.49,"Pesos","Mensual"]
[9,"Compensación Extraordinaria",14961.49,14961.49,"Pesos","Mensual"]
[10,"Compensación Extraordinaria",14961.49,14961.49,"Pesos","Mensual"]
[11,"Compensación Extraordinaria",14961.49,14961.49,"Pesos","Mensual"]
[12,"Compensación Extraordinaria",14961.49,14961.49,"Pesos","Mensual"]
[13,"Compensación Extraordinaria",14961.49,14961.49,"Pesos","Mensual"]
[14,"Compensación Extraordinaria",14961.49,14961.49,"Pesos","Mensual"]
[15,"Compensación Extraordinaria",14961.49,14961.49,"Pesos","Mensual"]
[16,"Compensación Extraordinaria",13887.975,13887.975,"Pesos","Mensual"]
[17,"Compensación Extraordinaria",13887.975,13887.975,"Pesos","Mensual"]
[18,"Compensación Extraordinaria",13887.975,13887.975,"Pesos","Mensual"]
[19,"Compensación Extraordinaria",13887.975,{"$f":"C22","v":13887.975},"Pesos","Mensual"]
[20,"Compensación Extraordinaria",13887.975,13887.975,"Pesos","Mensual"]
[21,"Compensación Extraordinaria",6943.9875000000002,6943.9875000000002,"Pesos","Mensual"]
[22,"Compensación Extraordinaria",13887.975,13887.975,"Pesos","Mensual"]
[23,"Compensación Extraordinaria",13887.975,13887.975,"Pesos","Mensual"]
[24,"Compensación Extraordinaria",13887.975,13887.975,"Pesos","Mensual"]
[25,"Compensación Extraordinaria",13887.975,13887.975,"Pesos","Mensual"]
[26,"Compensación Extraordinaria",13887.975,13887.975,"Pesos","Mensual"]
[27,"Compensación Extraordinaria",8332.7849999999999,8332.7849999999999,"Pesos","Mensual"]
[28,"Compensación Extraordinaria",2000,2000,"Pesos","Mensual"]
[29,"Compensación Extraordinaria",13887.975,13887.975,"Pesos","Mensual"]
[30,"Compensación Extraordinaria",13887.975,13887.975,"Pesos","Mensual"]
[31,"Compensación Extraordinaria",13887.975,13887.975,"Pesos","Mensual"]
[32,"Compensación Extraordinaria",13226.75,13226.75,"Pesos","Mensual"]
[33,"Compensación Extraordinaria",12938.08,12938.08,"Pesos","Mensual"]
[34,"Compensación Extraordinaria",12938.08,12938.08,"Pesos","Mensual"]
[35,"Compensación Extraordinaria",12938.08,12938.08,"Pesos","Mensual"]
[36,"Compensación Extraordinaria",6469.04,6469.04,"Pesos","Mensual"]
[37,"Compensación Extraordinaria",12494.55,12494.55,"Pesos","Mensual"]
[38,"Compensación Extraordinaria",12494.55,{"$f":"C41","v":12494.55},"Pesos","Mensual"]
[39,"Compensación Extraordinaria",6247.2749999999996,6247.2749999999996,"Pesos","Mensual"]
[40,"Compensación Extraordinaria",12494.55,12494.55,"Pesos","Mensual"]
[41,"Compensación Extraordinaria",10529.65,10529.65,"Pesos","Mensual"]
[42,"Compensación Extraordinaria",10529.65,10529.65,"Pesos","Mensual"]
[43,"Compensación Extraordinaria",10529.65,10529.65,"Pesos","Mensual"]
[44,"Compensación Extraordinaria",10529.65,10529.65,"Pesos","Mensual"]
[45,"Compensación Extraordinaria",10529.65,10529.65,"Pesos","Mensual"]
[46,"Compensación Extraordinaria",10529.65,10529.65,"Pesos","Mensual"]
[47,"Compensación Extraordinaria",10529.65,10529.65,"Pesos","Mensual"]
[48,"Compensación Extraordinaria",4804.7375000000002,4804.7375000000002,"Pesos","Mensual"]
[49,"Compensación Extraordinaria",9609.4750000000004,9609.4750000000004,"Pesos","Mensual"]
[50,"Compensación Extraordinaria",9609.4750000000004,9609.4750000000004,"Pesos","Mensual"]
[51,"Compensación Extraordinaria",9609.4750000000004,9609.4750000000004,"Pesos","Mensual"]
[52,"Compensación Extraordinaria",9609.4750000000004,9609.4750000000004,"Pesos","Mensual"]
[53,"Compensación Extraordinaria",9609.4750000000004,9609.4750000000004,"Pesos","Mensual"]
[54,"Compensación Extraordinaria",9609.4750000000004,9609.4750000000004,"Pesos","Mensual"]
[55,"Compensación Extraordinaria",9609.4750000000004,9609.4750000000004,"Pesos","Mensual"]
[56,"Compensación Extraordinaria",9609.4750000000004,9609.4750000000004,"Pesos","Mensual"]
[57,"Compensación Extraordinaria",8526.1200000000008,8526.1200000000008,"Pesos","Mensual"]
[58,"Compensación Extraordinaria",4263.0600000000004,4263.0600000000004,"Pesos","Mensual"]
[59,"Compensación Extraordinaria",8526.1200000000008,8526.1200000000008,"Pesos","Mensual"]
[60,"Compensación Extraordinaria",8526.1200000000008,8526.1200000000008,"Pesos","Mensual"]
[61,"Compensación Extraordinaria",8526.1200000000008,8526.1200000000008,"Pesos","Mensual"]
[62,"Compensación Extraordinaria",8526.1200000000008,8526.1200000000008,"Pesos","Mensual"]
[63,"Compensación Extraordinaria",8526.1200000000008,8526.1200000000008,"Pesos","Mensual"]
[64,"Compensación Extraordinaria",4263.0600000000004,4263.0600000000004,"Pesos","Mensual"]
[65,"Compensación Extraordinaria",4263.0600000000004,4263.0600000000004,"Pesos","Mensual"]
[66,"Compensación Extraordinaria",4263.0600000000004,4263.0600000000004,"Pesos","Mensual"]
[67,"Compensación Extraordinaria",4263.0600000000004,{"$f":"C70","v":4263.0600000000004},"Pesos","Mensual"]
[68,"Compensación Extraordinaria",8526.1200000000008,8526.1200000000008,"Pesos","Mensual"]
[69,"Compensación Extraordinaria",4263.0600000000004,4263.0600000000004,"Pesos","Mensual"]
[70,"Compensación Extraordinaria",4263.0600000000004,4263.0600000000004,"Pesos","Mensual"]
[71,"Compensación Extraordinaria",3761.8449999999998,3761.8449999999998,"Pesos","Mensual"]
[72,"Compensación Extraordinaria",3761.8449999999998,3761.8449999999998,"Pesos","Mensual"]
[73,"Compensación Extraordinaria",3761.8449999999998,3761.8449999999998,"Pesos","Mensual"]
[74,"Compensación Extraordinaria",3761.8449999999998,3761.8449999999998,"Pesos","Mensual"]
[75,"Compensación Extraordinaria",3761.8449999999998,3761.8449999999998,"Pesos","Mensual"]
[76,"Compensación Extraordinaria",3761.8449999999998,3761.8449999999998,"Pesos","Mensual"]
[77,"Compensación Extraordinaria",3761.8449999999998,3761.8449999999998,"Pesos","Mensual"]
[78,"Compensación Extraordinaria",7523.69,7523.69,"Pesos","Mensual"]
[79,"Compensación Extraordinaria",3761.8449999999998,3761.8449999999998,"Pesos","Mensual"]
[80,"Compensación Extraordinaria",13887.975,13887.975,"Pesos","Mensual"]
[81,"Compensación Extraordinaria",9609.4750000000004,9609.4750000000004,"Pesos","Mensual"]
[82,"Compensación Extraordinaria",3761.8449999999998,3761.8449999999998,"Pesos","Mensual"]
[83,"Compensación Extraordinaria",3761.8449999999998,3761.8449999999998,"Pesos","Mensual"]
[84,"Compensación Extraordinaria",3761.8449999999998,3761.8449999999998,"Pesos","Mensual"]
[85,"Compensación Extraordinaria",9400.9150000000009,9400.9150000000009,"Pesos","Mensual"]
[86,"Compensación Extraordinaria",9400.9150000000009,9400.9150000000009,"Pesos","Mensual"]
[87,"Compensación Extraordinaria",7850.83,7850.83,"Pesos","Mensual"]
[88,"Compensación Extraordinaria",7850.83,{"$f":"C91","v":7850.83},"Pesos","Mensual"]
[89,"Compensación Extraordinaria",3925.415,3925.415,"Pesos","Mensual"]
[90,"Compensación Extraordinaria",3925.415,3925.415,"Pesos","Mensual"]
[91,"Compensación Extraordinaria",6616.2049999999999,6616.2049999999999,"Pesos","Mensual"]
[92,"Compensación Extraordinaria",6616.2049999999999,6616.2049999999999,"Pesos","Mensual"]
[93,"Compensación Extraordinaria",6616.2049999999999,6616.2049999999999,"Pesos","Mensual"]
[94,"Compensación Extraordinaria",3308.1025,3308.1025,"Pesos","Mensual"]
[95,"Compensación Extraordinaria",6616.2049999999999,6616.2049999999999,"Pesos","Mensual"]
[96,"Compensación Extraordinaria",3019.01,3019.01,"Pesos","Mensual"]
[97,"Compensación Extraordinaria",4727.4449999999997,4727.4449999999997,"Pesos","Mensual"]
[98,"Compensación Extraordinaria",4727.4449999999997,4727.4449999999997,"Pesos","Mensual"]

{"sheet":"Tabla_512930","index":10,"n_rows":3,"n_cols":6,"rows_kept":3,"cut":false,"hidden":false,"merged":[]}
[null,"1","6","6","1","1"]
[null,"65841","65842","65843","65844","65845"]
["ID","Denominación de las gratificaciones","Monto bruto de las gratificaciones","Monto neto de las gratificaciones","Tipo de moneda de las gratificaciones ","Periodicidad de las gratificaciones"]

{"sheet":"Tabla_512917","index":11,"n_rows":163,"n_cols":6,"rows_kept":163,"cut":false,"hidden":false,"merged":[]}
[null,"1","6","6","1","1"]
[null,"65819","65820","65821","65822","65823"]
["ID","Denominación de las primas","Monto bruto de las primas","Monto neto de las primas","Tipo de moneda de las primas ","Periodicidad de las primas"]
[1,"Prima Vacacional",17711.87,{"$f":"C4","v":17711.87},"Pesos","Semestral"]
[2,"Prima Vacacional",14024.67,{"$f":"C5","v":14024.67},"Pesos","Semestral"]
[3,"Prima Vacacional",14024.67,14024.67,"Pesos","Semestral"]
[4,"Prima Vacacional",9577.0499999999993,9577.0499999999993,"Pesos","Semestral"]
[5,"Prima Vacacional",9577.0499999999993,9577.0499999999993,"Pesos","Semestral"]
[6,"Prima Vacacional",9577.0499999999993,9577.0499999999993,"Pesos","Semestral"]
[7,"Prima Vacacional",8045.27,8045.27,"Pesos","Semestral"]
[8,"Prima Vacacional",8045.27,8045.27,"Pesos","Semestral"]
[9,"Prima Vacacional",8045.27,8045.27,"Pesos","Semestral"]
[10,"Prima Vacacional",8045.27,8045.27,"Pesos","Semestral"]
[11,"Prima Vacacional",8045.27,8045.27,"Pesos","Semestral"]
[12,"Prima Vacacional",8045.27,8045.27,"Pesos","Semestral"]
[13,"Prima Vacacional",8045.27,8045.27,"Pesos","Semestral"]
[14,"Prima Vacacional",8045.27,8045.27,"Pesos","Semestral"]
[15,"Prima Vacacional",8045.27,8045.27,"Pesos","Semestral"]
[16,"Prima Vacacional",8045.27,8045.27,"Pesos","Semestral"]
[17,"Prima Vacacional",8045.27,8045.27,"Pesos","Semestral"]
[18,"Prima Vacacional",8045.27,8045.27,"Pesos","Semestral"]
[19,"Prima Vacacional",6203.5,6203.5,"Pesos","Semestral"]
[20,"Prima Vacacional",6203.5,6203.5,"Pesos","Semestral"]
[21,"Prima Vacacional",6203.5,6203.5,"Pesos","Semestral"]
[22,"Prima Vacacional",6203.5,6203.5,"Pesos","Semestral"]
[23,"Prima Vacacional",6203.5,6203.5,"Pesos","Semestral"]
[24,"Prima Vacacional",6203.5,6203.5,"Pesos","Semestral"]
[25,"Prima Vacacional",6203.5,6203.5,"Pesos","Semestral"]
[26,"Prima Vacacional",6203.5,6203.5,"Pesos","Semestral"]
[27,"Prima Vacacional",6203.5,6203.5,"Pesos","Semestral"]
[28,"Prima Vacacional",6203.5,6203.5,"Pesos","Semestral"]
[29,"Prima Vacacional",6203.5,6203.5,"Pesos","Semestral"]
[30,"Prima Vacacional",6203.5,6203.5,"Pesos","Semestral"]
[31,"Prima Vacacional",6203.5,6203.5,"Pesos","Semestral"]
[32,"Prima Vacacional",6203.5,6203.5,"Pesos","Semestral"]
[33,"Prima Vacacional",6203.5,6203.5,"Pesos","Semestral"]
[34,"Prima Vacacional",5766.99,5766.99,"Pesos","Semestral"]
[35,"Prima Vacacional",5766.99,5766.99,"Pesos","Semestral"]
[36,"Prima Vacacional",5766.99,5766.99,"Pesos","Semestral"]
[37,"Prima Vacacional",5766.99,5766.99,"Pesos","Semestral"]
[38,"Prima Vacacional",5766.99,5766.99,"Pesos","Semestral"]
[39,"Prima Vacacional",5766.99,5766.99,"Pesos","Semestral"]
[40,"Prima Vacacional",5766.99,5766.99,"Pesos","Semestral"]
[41,"Prima Vacacional",5766.99,5766.99,"Pesos","Semestral"]
[42,"Prima Vacacional",5766.99,5766.99,"Pesos","Semestral"]
[43,"Prima Vacacional",5766.99,5766.99,"Pesos","Semestral"]
[44,"Prima Vacacional",5766.99,5766.99,"Pesos","Semestral"]
[45,"Prima Vacacional",5766.99,5766.99,"Pesos","Semestral"]
[46,"Prima Vacacional",5766.99,5766.99,"Pesos","Semestral"]
[47,"Prima Vacacional",5766.99,5766.99,"Pesos","Semestral"]
[48,"Prima Vacacional",5766.99,5766.99,"Pesos","Semestral"]
[49,"Prima Vacacional",5766.99,5766.99,"Pesos","Semestral"]
[50,"Prima Vacacional",5766.99,5766.99,"Pesos","Semestral"]
[51,"Prima Vacacional",5766.99,5766.99,"Pesos","Semestral"]
[52,"Prima Vacacional",5766.99,5766.99,"Pesos","Semestral"]
[53,"Prima Vacacional",5498.04,5498.04,"Pesos","Semestral"]
[54,"Prima Vacacional",5498.04,5498.04,"Pesos","Semestral"]
[55,"Prima Vacacional",5498.04,5498.04,"Pesos","Semestral"]
[56,"Prima Vacacional",5380.68,5380.68,"Pesos","Semestral"]
[57,"Prima Vacacional",5380.68,5380.68,"Pesos","Semestral"]
[58,"Prima Vacacional",5380.68,5380.68,"Pesos","Semestral"]
[59,"Prima Vacacional",5380.68,5380.68,"Pesos","Semestral"]
[60,"Prima Vacacional",5380.68,5380.68,"Pesos","Semestral"]
[61,"Prima Vacacional",5380.68,5380.68,"Pesos","Semestral"]
[62,"Prima Vacacional",5200.3,5200.3,"Pesos","Semestral"]
[63,"Prima Vacacional",5200.3,5200.3,"Pesos","Semestral"]
[64,"Prima Vacacional",5200.3,5200.3,"Pesos","Semestral"]
[65,"Prima Vacacional",5200.3,5200.3,"Pesos","Semestral"]
[66,"Prima Vacacional",5200.3,{"$f":"C69","v":5200.3},"Pesos","Semestral"]
[67,"Prima Vacacional",5200.3,5200.3,"Pesos","Semestral"]
[68,"Prima Vacacional",4401.26,4401.26,"Pesos","Semestral"]
[69,"Prima Vacacional",4401.26,4401.26,"Pesos","Semestral"]
[70,"Prima Vacacional",4401.26,4401.26,"Pesos","Semestral"]
[71,"Prima Vacacional",4401.26,4401.26,"Pesos","Semestral"]
[72,"Prima Vacacional",4401.26,4401.26,"Pesos","Semestral"]
[73,"Prima Vacacional",4401.26,4401.26,"Pesos","Semestral"]
[74,"Prima Vacacional",4401.26,4401.26,"Pesos","Semestral"]
[75,"Prima Vacacional",4027.02,4027.02,"Pesos","Semestral"]
[76,"Prima Vacacional",4027.02,4027.02,"Pesos","Semestral"]
[77,"Prima Vacacional",4027.02,4027.02,"Pesos","Semestral"]
[78,"Prima Vacacional",4027.02,4027.02,"Pesos","Semestral"]
[79,"Prima Vacacional",4027.02,4027.02,"Pesos","Semestral"]
[80,"Prima Vacacional",4027.02,4027.02,"Pesos","Semestral"]
[81,"Prima Vacacional",4027.02,4027.02,"Pesos","Semestral"]
[82,"Prima Vacacional",4027.02,4027.02,"Pesos","Semestral"]
[83,"Prima Vacacional",4027.02,4027.02,"Pesos","Semestral"]
[84,"Prima Vacacional",4027.02,4027.02,"Pesos","Semestral"]
[85,"Prima Vacacional",3586.48,3586.48,"Pesos","Semestral"]
[86,"Prima Vacacional",3586.48,3586.48,"Pesos","Semestral"]
[87,"Prima Vacacional",3586.48,3586.48,"Pesos","Semestral"]
[88,"Prima Vacacional",3586.48,3586.48,"Pesos","Semestral"]
[89,"Prima Vacacional",3586.48,3586.48,"Pesos","Semestral"]
[90,"Prima Vacacional",3586.48,3586.48,"Pesos","Semestral"]
[91,"Prima Vacacional",3586.48,3586.48,"Pesos","Semestral"]
[92,"Prima Vacacional",3586.48,3586.48,"Pesos","Semestral"]
[93,"Prima Vacacional",3586.48,3586.48,"Pesos","Semestral"]
[94,"Prima Vacacional",3586.48,3586.48,"Pesos","Semestral"]
[95,"Prima Vacacional",3586.48,3586.48,"Pesos","Semestral"]
[96,"Prima Vacacional",3586.48,3586.48,"Pesos","Semestral"]
[97,"Prima Vacacional",3586.48,3586.48,"Pesos","Semestral"]
[98,"Prima Vacacional",3586.48,3586.48,"Pesos","Semestral"]
[99,"Prima Vacacional",3586.48,3586.48,"Pesos","Semestral"]
[100,"Prima Vacacional",3586.48,3586.48,"Pesos","Semestral"]
[101,"Prima Vacacional",3586.48,3586.48,"Pesos","Semestral"]
[102,"Prima Vacacional",3586.48,3586.48,"Pesos","Semestral"]
[103,"Prima Vacacional",3586.48,3586.48,"Pesos","Semestral"]
[104,"Prima Vacacional",3586.48,3586.48,"Pesos","Semestral"]
[105,"Prima Vacacional",3586.48,3586.48,"Pesos","Semestral"]
[106,"Prima Vacacional",3178.82,3178.82,"Pesos","Semestral"]
[107,"Prima Vacacional",3178.82,3178.82,"Pesos","Semestral"]
[108,"Prima Vacacional",3178.82,3178.82,"Pesos","Semestral"]
[109,"Prima Vacacional",3178.82,3178.82,"Pesos","Semestral"]
[110,"Prima Vacacional",3178.82,3178.82,"Pesos","Semestral"]
[111,"Prima Vacacional",3178.82,3178.82,"Pesos","Semestral"]
[112,"Prima Vacacional",3178.82,3178.82,"Pesos","Semestral"]
[113,"Prima Vacacional",3178.82,3178.82,"Pesos","Semestral"]
[114,"Prima Vacacional",3178.82,3178.82,"Pesos","Semestral"]
[115,"Prima Vacacional",3178.82,3178.82,"Pesos","Semestral"]
[116,"Prima Vacacional",3178.82,3178.82,"Pesos","Semestral"]
[117,"Prima Vacacional",3178.82,3178.82,"Pesos","Semestral"]
[118,"Prima Vacacional",3178.82,3178.82,"Pesos","Semestral"]
[119,"Prima Vacacional",3178.82,3178.82,"Pesos","Semestral"]
[120,"Prima Vacacional",3178.82,3178.82,"Pesos","Semestral"]
[121,"Prima Vacacional",3178.82,3178.82,"Pesos","Semestral"]
[122,"Prima Vacacional",3178.82,3178.82,"Pesos","Semestral"]
[123,"Prima Vacacional",3178.82,3178.82,"Pesos","Semestral"]
[124,"Prima Vacacional",3178.82,3178.82,"Pesos","Semestral"]
[125,"Prima Vacacional",3178.82,3178.82,"Pesos","Semestral"]
[126,"Prima Vacacional",3178.82,3178.82,"Pesos","Semestral"]
[127,"Prima Vacacional",3178.82,3178.82,"Pesos","Semestral"]
[128,"Prima Vacacional",3178.82,3178.82,"Pesos","Semestral"]
[129,"Prima Vacacional",3178.82,3178.82,"Pesos","Semestral"]
[130,"Prima Vacacional",3178.82,{"$f":"C133","v":3178.82},"Pesos","Semestral"]
[131,"Prima Vacacional",3178.82,3178.82,"Pesos","Semestral"]
[132,"Prima Vacacional",3178.82,3178.82,"Pesos","Semestral"]
[133,"Prima Vacacional",3178.82,3178.82,"Pesos","Semestral"]
[134,"Prima Vacacional",3178.82,3178.82,"Pesos","Semestral"]
[135,"Prima Vacacional",3178.82,3178.82,"Pesos","Semestral"]
[136,"Prima Vacacional",3178.82,3178.82,"Pesos","Semestral"]
[137,"Prima Vacacional",3178.82,3178.82,"Pesos","Semestral"]
[138,"Prima Vacacional",3178.82,3178.82,"Pesos","Semestral"]
[139,"Prima Vacacional",5647.81,5647.81,"Pesos","Semestral"]
[140,"Prima Vacacional",3907.84,3907.84,"Pesos","Semestral"]
[141,"Prima Vacacional",3059.64,3059.64,"Pesos","Semestral"]
[142,"Prima Vacacional",3059.64,3059.64,"Pesos","Semestral"]
[143,"Prima Vacacional",3059.64,3059.64,"Pesos","Semestral"]
[144,"Prima Vacacional",3823.05,3823.05,"Pesos","Semestral"]
[145,"Prima Vacacional",3823.05,3823.05,"Pesos","Semestral"]
[146,"Prima Vacacional",3306.02,3306.02,"Pesos","Semestral"]
[147,"Prima Vacacional",3192.68,3192.68,"Pesos","Semestral"]
[148,"Prima Vacacional",3192.68,3192.68,"Pesos","Semestral"]
[149,"Prima Vacacional",3192.68,3192.68,"Pesos","Semestral"]
[150,"Prima Vacacional",3192.68,3192.68,"Pesos","Semestral"]
[151,"Prima Vacacional",2690.59,2690.59,"Pesos","Semestral"]
[152,"Prima Vacacional",2690.59,2690.59,"Pesos","Semestral"]
[153,"Prima Vacacional",2690.59,2690.59,"Pesos","Semestral"]
[154,"Prima Vacacional",2690.59,2690.59,"Pesos","Semestral"]
[155,"Prima Vacacional",2455.4299999999998,2455.4299999999998,"Pesos","Semestral"]
[156,"Prima Vacacional",2178.61,2178.61,"Pesos","Semestral"]
[157,"Prima Vacacional",2178.61,2178.61,"Pesos","Semestral"]
[158,"Prima Vacacional",1922.48,1922.48,"Pesos","Semestral"]
[159,"Prima Vacacional",1922.48,1922.48,"Pesos","Semestral"]
[160,"Prima Vacacional",1922.48,1922.48,"Pesos","Semestral"]

{"sheet":"Tabla_512927","index":12,"n_rows":3,"n_cols":6,"rows_kept":3,"cut":false,"hidden":false,"merged":[]}
[null,"1","6","6","1","1"]
[null,"65836","65837","65838","65839","65840"]
["ID","Denominación de las comisiones","Monto bruto de las comisiones","Monto neto de las comisiones","Tipo de moneda de las comisiones ","Periodicidad de las comisiones"]

{"sheet":"Tabla_512918","index":13,"n_rows":3,"n_cols":6,"rows_kept":3,"cut":false,"hidden":false,"merged":[]}
[null,"1","6","6","1","1"]
[null,"65824","65825","65826","65827","65828"]
["ID","Denominación de las dietas","Monto bruto de las dietas","Monto neto de las dietas","Tipo de moneda de las dietas","Periodicidad de las dietas"]

{"sheet":"Tabla_512919","index":14,"n_rows":3,"n_cols":6,"rows_kept":3,"cut":false,"hidden":false,"merged":[]}
[null,"1","6","6","1","1"]
[null,"65829","65830","65831","65832","65833"]
["ID","Denominación de los bonos","Monto bruto de los bonos","Monto neto de los bonos","Tipo de moneda de los bonos ","Periodicidad de los bonos"]

{"sheet":"Tabla_512937","index":15,"n_rows":76,"n_cols":6,"rows_kept":76,"cut":false,"hidden":false,"merged":[]}
[null,"1","6","6","1","1"]
[null,"65846","65847","65848","65849","65850"]
["ID","Denominación de los estímulos","Monto bruto de los estímulos","Monto neto de los estímulos","Tipo de moneda de los estímulos ","Periodicidad de los estímulos"]
[1,"Puntualidad y Asistencia",1100,{"$f":"C4","v":1100},"Pesos","Bimestral"]
[2,"Puntualidad y Asistencia",1100,1100,"Pesos","Bimestral"]
[3,"Puntualidad y Asistencia",1100,1100,"Pesos","Bimestral"]
[4,"Puntualidad y Asistencia",1100,1100,"Pesos","Bimestral"]
[5,"Puntualidad y Asistencia",1100,1100,"Pesos","Bimestral"]
[6,"Puntualidad y Asistencia",1100,1100,"Pesos","Bimestral"]
[7,"Puntualidad y Asistencia",1100,1100,"Pesos","Bimestral"]
[8,"Puntualidad y Asistencia",1100,1100,"Pesos","Bimestral"]
[9,"Puntualidad y Asistencia",1100,1100,"Pesos","Bimestral"]
[10,"Puntualidad y Asistencia",1100,1100,"Pesos","Bimestral"]
[11,"Puntualidad y Asistencia",1100,1100,"Pesos","Bimestral"]
[12,"Puntualidad y Asistencia",1100,1100,"Pesos","Bimestral"]
[13,"Puntualidad y Asistencia",1100,1100,"Pesos","Bimestral"]
[14,"Puntualidad y Asistencia",1100,1100,"Pesos","Bimestral"]
[15,"Puntualidad y Asistencia",1100,1100,"Pesos","Bimestral"]
[16,"Puntualidad y Asistencia",1100,1100,"Pesos","Bimestral"]
[17,"Puntualidad y Asistencia",1100,1100,"Pesos","Bimestral"]
[18,"Puntualidad y Asistencia",1100,1100,"Pesos","Bimestral"]
[19,"Puntualidad y Asistencia",1100,1100,"Pesos","Bimestral"]
[20,"Puntualidad y Asistencia",1100,{"$f":"C23","v":1100},"Pesos","Bimestral"]
[21,"Puntualidad y Asistencia",1100,1100,"Pesos","Bimestral"]
[22,"Puntualidad y Asistencia",1100,1100,"Pesos","Bimestral"]
[23,"Puntualidad y Asistencia",1100,1100,"Pesos","Bimestral"]
[24,"Puntualidad y Asistencia",1100,1100,"Pesos","Bimestral"]
[25,"Puntualidad y Asistencia",1100,1100,"Pesos","Bimestral"]
[26,"Puntualidad y Asistencia",1100,1100,"Pesos","Bimestral"]
[27,"Puntualidad y Asistencia",1100,1100,"Pesos","Bimestral"]
[28,"Puntualidad y Asistencia",1100,1100,"Pesos","Bimestral"]
[29,"Puntualidad y Asistencia",1100,1100,"Pesos","Bimestral"]
[30,"Puntualidad y Asistencia",1100,1100,"Pesos","Bimestral"]
[31,"Puntualidad y Asistencia",1100,1100,"Pesos","Bimestral"]
[32,"Puntualidad y Asistencia",1100,1100,"Pesos","Bimestral"]
[33,"Puntualidad y Asistencia",1100,1100,"Pesos","Bimestral"]
[34,"Puntualidad y Asistencia",1100,1100,"Pesos","Bimestral"]
[35,"Puntualidad y Asistencia",1100,1100,"Pesos","Bimestral"]
[36,"Puntualidad y Asistencia",1100,1100,"Pesos","Bimestral"]
[37,"Puntualidad y Asistencia",1100,1100,"Pesos","Bimestral"]
[38,"Puntualidad y Asistencia",1100,1100,"Pesos","Bimestral"]
[39,"Puntualidad y Asistencia",1100,1100,"Pesos","Bimestral"]
[40,"Puntualidad y Asistencia",1100,1100,"Pesos","Bimestral"]
[41,"Puntualidad y Asistencia",1100,1100,"Pesos","Bimestral"]
[42,"Puntualidad y Asistencia",1100,1100,"Pesos","Bimestral"]
[43,"Puntualidad y Asistencia",1100,1100,"Pesos","Bimestral"]
[44,"Puntualidad y Asistencia",1100,1100,"Pesos","Bimestral"]
[45,"Puntualidad y Asistencia",1100,1100,"Pesos","Bimestral"]
[46,"Puntualidad y Asistencia",1100,1100,"Pesos","Bimestral"]
[47,"Puntualidad y Asistencia",1100,1100,"Pesos","Bimestral"]
[48,"Puntualidad y Asistencia",1100,1100,"Pesos","Bimestral"]
[49,"Puntualidad y Asistencia",1100,1100,"Pesos","Bimestral"]
[50,"Puntualidad y Asistencia",1100,1100,"Pesos","Bimestral"]
[51,"Puntualidad y Asistencia",1100,1100,"Pesos","Bimestral"]
[52,"Puntualidad y Asistencia",1100,1100,"Pesos","Bimestral"]
[53,"Puntualidad y Asistencia",1100,1100,"Pesos","Bimestral"]
[54,"Puntualidad y Asistencia",1100,1100,"Pesos","Bimestral"]
[55,"Puntualidad y Asistencia",1100,1100,"Pesos","Bimestral"]
[56,"Puntualidad y Asistencia",1100,1100,"Pesos","Bimestral"]
[57,"Puntualidad y Asistencia",1100,1100,"Pesos","Bimestral"]
[58,"Puntualidad y Asistencia",1100,1100,"Pesos","Bimestral"]
[59,"Puntualidad y Asistencia",1100,1100,"Pesos","Bimestral"]
[60,"Puntualidad y Asistencia",1100,1100,"Pesos","Bimestral"]
[61,"Puntualidad y Asistencia",1100,1100,"Pesos","Bimestral"]
[62,"Puntualidad y Asistencia",1100,1100,"Pesos","Bimestral"]
[63,"Puntualidad y Asistencia",1100,1100,"Pesos","Bimestral"]
[64,"Puntualidad y Asistencia",1100,1100,"Pesos","Bimestral"]
[65,"Puntualidad y Asistencia",1100,1100,"Pesos","Bimestral"]
[66,"Puntualidad y Asistencia",1100,1100,"Pesos","Bimestral"]
[67,"Puntualidad y Asistencia",1100,1100,"Pesos","Bimestral"]
[68,"Puntualidad y Asistencia",1100,1100,"Pesos","Bimestral"]
[69,"Puntualidad y Asistencia",1100,1100,"Pesos","Bimestral"]
[70,"Puntualidad y Asistencia",1100,1100,"Pesos","Bimestral"]
[71,"Puntualidad y Asistencia",1100,1100,"Pesos","Bimestral"]
[72,"Puntualidad y Asistencia",1100,1100,"Pesos","Bimestral"]
[73,"Puntualidad y Asistencia",1100,1100,"Pesos","Bimestral"]

{"sheet":"Tabla_512941","index":16,"n_rows":3,"n_cols":6,"rows_kept":3,"cut":false,"hidden":false,"merged":[]}
[null,"1","6","6","1","1"]
[null,"65866","65867","65868","65869","65870"]
["ID","Denominación de los apoyos económicos","Monto bruto de los apoyos económicos","Monto neto de los apoyos económicos","Tipo de moneda de los apoyos económicos ","Periodicidad de los apoyos económicos"]

{"sheet":"Tabla_512938","index":17,"n_rows":166,"n_cols":6,"rows_kept":166,"cut":false,"hidden":false,"merged":[]}
[null,"1","6","6","1","1"]
[null,"65851","65852","65853","65854","65855"]
["ID","Denominación de las prestaciones económicas","Monto bruto de las prestaciones económicas","Monto neto de las prestaciones económicas","Tipo de moneda de las prestaciones económicas ","Periodicidad de las prestaciones económicas"]
[1,"Previsión Social ",224.6,{"$f":"C4","v":224.6},"Pesos","Mensual"]
[2,"Quinquenio y Previsión Social ",2703.36,{"$f":"C5","v":2703.36},"Pesos","Mensual"]
[3,"Quinquenio y Previsión Social ",2703.36,2703.36,"Pesos","Mensual"]
[4,"Quinquenio y Previsión Social ",1827.6,1827.6,"Pesos","Mensual"]
[5,"Quinquenio y Previsión Social ",1827.6,1827.6,"Pesos","Mensual"]
[6,"Quinquenio y Previsión Social ",2283.7399999999998,2283.7399999999998,"Pesos","Mensual"]
[7,"Previsión Social ",224.6,224.6,"Pesos","Mensual"]
[8,"Quinquenio y Previsión Social ",2703.36,2703.36,"Pesos","Mensual"]
[9,"Previsión Social ",224.6,224.6,"Pesos","Mensual"]
[10,"Quinquenio y Previsión Social ",2703.36,2703.36,"Pesos","Mensual"]
[11,"Quinquenio y Previsión Social ",873.64,873.64,"Pesos","Mensual"]
[12,"Previsión Social ",224.6,224.6,"Pesos","Mensual"]
[13,"Quinquenio y Previsión Social ",1044.3399999999999,1044.3399999999999,"Pesos","Mensual"]
[14,"Quinquenio y Previsión Social ",873.64,873.64,"Pesos","Mensual"]
[15,"Previsión Social",224.6,224.6,"Pesos","Mensual"]
[16,"Quinquenio y Previsión Social ",873.64,873.64,"Pesos","Mensual"]
[17,"Previsión Social ",224.6,224.6,"Pesos","Mensual"]
[18,"Quinquenio y Previsión Social ",1368.84,1368.84,"Pesos","Mensual"]
[19,"Quinquenio, Previsión Social y Capacitación",2127.6,2127.6,"Pesos","Mensual y Bimestral"]
[20,"Quinquenio, Previsión Social y Capacitación",3003.36,3003.36,"Pesos","Mensual y Bimestral"]
[21,"Quinquenio, Previsión Social y Capacitación",2127.6,2127.6,"Pesos","Mensual y Bimestral"]
[22,"Quinquenio, Previsión Social y Capacitación",3003.36,3003.36,"Pesos","Mensual y Bimestral"]
[23,"Quinquenio, Previsión Social y Capacitación",3003.36,3003.36,"Pesos","Mensual y Bimestral"]
[24,"Quinquenio, Previsión Social y Capacitación",3003.36,3003.36,"Pesos","Mensual y Bimestral"]
[25,"Quinquenio, Previsión Social y Capacitación",2583.7399999999998,2583.7399999999998,"Pesos","Mensual y Bimestral"]
[26,"Quinquenio, Previsión Social y Capacitación",2583.7399999999998,2583.7399999999998,"Pesos","Mensual y Bimestral"]
[27,"Quinquenio, Previsión Social y Capacitación",3003.36,3003.36,"Pesos","Mensual y Bimestral"]
[28,"Quinquenio, Previsión Social y Capacitación",2127.6,2127.6,"Pesos","Mensual y Bimestral"]
[29,"Quinquenio, Previsión Social y Capacitación",3003.36,3003.36,"Pesos","Mensual y Bimestral"]
[30,"Quinquenio, Previsión Social y Capacitación",3003.36,3003.36,"Pesos","Mensual y Bimestral"]
[31,"Quinquenio, Previsión Social y Capacitación",3003.36,3003.36,"Pesos","Mensual y Bimestral"]
[32,"Quinquenio, Previsión Social y Capacitación",3003.36,3003.36,"Pesos","Mensual y Bimestral"]
[33,"Quinquenio, Previsión Social y Capacitación",2127.6,2127.6,"Pesos","Mensual y Bimestral"]
[34,"Quinquenio, Previsión Social y Capacitación",1668.84,1668.84,"Pesos","Mensual y Bimestral"]
[35,"Quinquenio, Previsión Social y Capacitación",3003.36,3003.36,"Pesos","Mensual y Bimestral"]
[36,"Quinquenio, Previsión Social y Capacitación",2127.6,2127.6,"Pesos","Mensual y Bimestral"]
[37,"Quinquenio, Previsión Social y Capacitación",1668.84,1668.84,"Pesos","Mensual y Bimestral"]
[38,"Quinquenio, Previsión Social y Capacitación",3003.36,3003.36,"Pesos","Mensual y Bimestral"]
[39,"Quinquenio, Previsión Social y Capacitación",1668.84,1668.84,"Pesos","Mensual y Bimestral"]
[40,"Quinquenio, Previsión Social y Capacitación",2127.6,2127.6,"Pesos","Mensual y Bimestral"]
[41,"Quinquenio, Previsión Social y Capacitación",2583.7399999999998,2583.7399999999998,"Pesos","Mensual y Bimestral"]
[42,"Quinquenio, Previsión Social y Capacitación",3003.36,3003.36,"Pesos","Mensual y Bimestral"]
[43,"Quinquenio, Previsión Social y Capacitación",3003.36,3003.36,"Pesos","Mensual y Bimestral"]
[44,"Quinquenio, Previsión Social y Capacitación",1668.84,1668.84,"Pesos","Mensual y Bimestral"]
[45,"Quinquenio, Previsión Social y Capacitación",2127.6,2127.6,"Pesos","Mensual y Bimestral"]
[46,"Quinquenio, Previsión Social y Capacitación",1344.34,1344.34,"Pesos","Mensual y Bimestral"]
[47,"Quinquenio, Previsión Social y Capacitación",3003.36,3003.36,"Pesos","Mensual y Bimestral"]
[48,"Quinquenio, Previsión Social y Capacitación",3003.36,3003.36,"Pesos","Mensual y Bimestral"]
[49,"Quinquenio, Previsión Social y Capacitación",1344.34,1344.34,"Pesos","Mensual y Bimestral"]
[50,"Quinquenio, Previsión Social y Capacitación",1344.34,1344.34,"Pesos","Mensual y Bimestral"]
[51,"Quinquenio, Previsión Social y Capacitación",3003.36,3003.36,"Pesos","Mensual y Bimestral"]
[52,"Quinquenio, Previsión Social y Capacitación",1668.84,1668.84,"Pesos","Mensual y Bimestral"]
[53,"Quinquenio, Previsión Social y Capacitación",1281.18,1281.18,"Pesos","Mensual y Bimestral"]
[54,"Quinquenio, Previsión Social y Capacitación",1344.34,1344.34,"Pesos","Mensual y Bimestral"]
[55,"Quinquenio, Previsión Social y Capacitación",1344.34,1344.34,"Pesos","Mensual y Bimestral"]
[56,"Quinquenio, Previsión Social y Capacitación",1344.34,1344.34,"Pesos","Mensual y Bimestral"]
[57,"Quinquenio, Previsión Social y Capacitación",1344.34,1344.34,"Pesos","Mensual y Bimestral"]
[58,"Quinquenio, Previsión Social y Capacitación",1344.34,1344.34,"Pesos","Mensual y Bimestral"]
[59,"Quinquenio, Previsión Social y Capacitación",1344.34,1344.34,"Pesos","Mensual y Bimestral"]
[60,"Quinquenio, Previsión Social y Capacitación",1344.34,1344.34,"Pesos","Mensual y Bimestral"]
[61,"Quinquenio, Previsión Social y Capacitación",1344.34,1344.34,"Pesos","Mensual y Bimestral"]
[62,"Quinquenio, Previsión Social y Capacitación",1173.6399999999999,1173.6399999999999,"Pesos","Mensual y Bimestral"]
[63,"Quinquenio, Previsión Social y Capacitación",1344.34,1344.34,"Pesos","Mensual y Bimestral"]
[64,"Quinquenio, Previsión Social y Capacitación",1173.6399999999999,1173.6399999999999,"Pesos","Mensual y Bimestral"]
[65,"Quinquenio, Previsión Social y Capacitación",1173.6399999999999,1173.6399999999999,"Pesos","Mensual y Bimestral"]
[66,"Quinquenio, Previsión Social y Capacitación",1173.6399999999999,{"$f":"C69","v":1173.6399999999999},"Pesos","Mensual y Bimestral"]
[67,"Quinquenio, Previsión Social y Capacitación",1173.6399999999999,1173.6399999999999,"Pesos","Mensual y Bimestral"]
[68,"Quinquenio, Previsión Social y Capacitación",1344.34,1344.34,"Pesos","Mensual y Bimestral"]
[69,"Quinquenio, Previsión Social y Capacitación",1344.34,1344.34,"Pesos","Mensual y Bimestral"]
[70,"Quinquenio, Previsión Social y Capacitación",1344.34,1344.34,"Pesos","Mensual y Bimestral"]
[71,"Quinquenio, Previsión Social y Capacitación",1173.6399999999999,1173.6399999999999,"Pesos","Mensual y Bimestral"]
[72,"Quinquenio, Previsión Social y Capacitación",1173.6399999999999,1173.6399999999999,"Pesos","Mensual y Bimestral"]
[73,"Quinquenio, Previsión Social y Capacitación",1344.34,1344.34,"Pesos","Mensual y Bimestral"]
[74,"Quinquenio, Previsión Social y Capacitación",1344.34,1344.34,"Pesos","Mensual y Bimestral"]
[75,"Quinquenio, Previsión Social y Capacitación",1173.6399999999999,1173.6399999999999,"Pesos","Mensual y Bimestral"]
[76,"Quinquenio, Previsión Social y Capacitación",1443.34,1443.34,"Pesos","Mensual y Bimestral"]
[77,"Quinquenio, Previsión Social y Capacitación",1344.34,1344.34,"Pesos","Mensual y Bimestral"]
[78,"Quinquenio, Previsión Social y Capacitación",1344.34,1344.34,"Pesos","Mensual y Bimestral"]
[79,"Quinquenio, Previsión Social y Capacitación",1344.34,1344.34,"Pesos","Mensual y Bimestral"]
[80,"Quinquenio, Previsión Social y Capacitación",1173.6399999999999,1173.6399999999999,"Pesos","Mensual y Bimestral"]
[81,"Quinquenio, Previsión Social y Capacitación",1344.34,1344.34,"Pesos","Mensual y Bimestral"]
[82,"Quinquenio, Previsión Social y Capacitación",1173.6399999999999,1173.6399999999999,"Pesos","Mensual y Bimestral"]
[83,"Quinquenio, Previsión Social y Capacitación",1344.34,1344.34,"Pesos","Mensual y Bimestral"]
[84,"Quinquenio, Previsión Social y Capacitación",1344.34,1344.34,"Pesos","Mensual y Bimestral"]
[85,"Previsión Social y Capacitación",524.6,524.6,"Pesos","Mensual y Bimestral"]
[86,"Quinquenio, Previsión Social y Capacitación",1173.6399999999999,1173.6399999999999,"Pesos","Mensual y Bimestral"]
[87,"Quinquenio, Previsión Social y Capacitación",1344.34,1344.34,"Pesos","Mensual y Bimestral"]
[88,"Quinquenio, Previsión Social y Capacitación",1173.6399999999999,1173.6399999999999,"Pesos","Mensual y Bimestral"]
[89,"Quinquenio, Previsión Social y Capacitación",1173.6399999999999,1173.6399999999999,"Pesos","Mensual y Bimestral"]
[90,"Previsión Social y Capacitación",1173.6399999999999,1173.6399999999999,"Pesos","Mensual y Bimestral"]
[91,"Quinquenio, Previsión Social y Capacitación",1173.6399999999999,1173.6399999999999,"Pesos","Mensual y Bimestral"]
[92,"Quinquenio, Previsión Social y Capacitación",1173.6399999999999,1173.6399999999999,"Pesos","Mensual y Bimestral"]
[93,"Quinquenio, Previsión Social y Capacitación",1344.34,1344.34,"Pesos","Mensual y Bimestral"]
[94,"Quinquenio, Previsión Social y Capacitación",1258.99,1258.99,"Pesos","Mensual y Bimestral"]
[95,"Quinquenio, Previsión Social y Capacitación",1443.34,1443.34,"Pesos","Mensual y Bimestral"]
[96,"Previsión Social y Capacitación",1344.34,1344.34,"Pesos","Mensual y Bimestral"]
[97,"Previsión Social y Capacitación",1344.34,1344.34,"Pesos","Mensual y Bimestral"]
[98,"Previsión Social y Capacitación",524.6,524.6,"Pesos","Mensual y Bimestral"]
[99,"Quinquenio, Previsión Social y Capacitación",1344.34,1344.34,"Pesos","Mensual y Bimestral"]
[100,"Previsión Social y Capacitación",1173.6399999999999,1173.6399999999999,"Pesos","Mensual y Bimestral"]
[101,"Quinquenio, Previsión Social y Capacitación",1173.6399999999999,1173.6399999999999,"Pesos","Mensual y Bimestral"]
[102,"Quinquenio, Previsión Social y Capacitación",1344.34,1344.34,"Pesos","Mensual y Bimestral"]
[103,"Quinquenio, Previsión Social y Capacitación",1173.6399999999999,1173.6399999999999,"Pesos","Mensual y Bimestral"]
[104,"Previsión Social y Capacitación",1173.6399999999999,1173.6399999999999,"Pesos","Mensual y Bimestral"]
[105,"Previsión Social y Capacitación",1173.6399999999999,1173.6399999999999,"Pesos","Mensual y Bimestral"]
[106,"Previsión Social y Capacitación",524.6,524.6,"Pesos","Mensual y Bimestral"]
[107,"Quinquenio, Previsión Social y Capacitación",1173.6399999999999,1173.6399999999999,"Pesos","Mensual y Bimestral"]
[108,"Previsión Social y Capacitación",524.6,524.6,"Pesos","Mensual y Bimestral"]
[109,"Previsión Social y Capacitación",524.6,524.6,"Pesos","Mensual y Bimestral"]
[110,"Previsión Social y Capacitación",524.6,524.6,"Pesos","Mensual y Bimestral"]
[111,"Quinquenio, Previsión Social y Capacitación",1173.6399999999999,1173.6399999999999,"Pesos","Mensual y Bimestral"]
[112,"Previsión Social y Capacitación",524.6,524.6,"Pesos","Mensual y Bimestral"]
[113,"Previsión Social y Capacitación",524.6,524.6,"Pesos","Mensual y Bimestral"]
[114,"Quinquenio, Previsión Social y Capacitación",1173.6399999999999,1173.6399999999999,"Pesos","Mensual y Bimestral"]
[115,"Previsión Social y Capacitación",524.6,524.6,"Pesos","Mensual y Bimestral"]
[116,"Previsión Social y Capacitación",504.18,504.18,"Pesos","Mensual y Bimestral"]
[117,"Previsión Social y Capacitación",524.6,524.6,"Pesos","Mensual y Bimestral"]
[118,"Previsión Social y Capacitación",524.6,524.6,"Pesos","Mensual y Bimestral"]
[119,"Previsión Social y Capacitación",524.6,524.6,"Pesos","Mensual y Bimestral"]
[120,"Previsión Social y Capacitación",524.6,524.6,"Pesos","Mensual y Bimestral"]
[121,"Quinquenio, Previsión Social y Capacitación",1173.6399999999999,1173.6399999999999,"Pesos","Mensual y Bimestral"]
[122,"Previsión Social y Capacitación",524.6,524.6,"Pesos","Mensual y Bimestral"]
[123,"Previsión Social y Capacitación",524.6,524.6,"Pesos","Mensual y Bimestral"]
[124,"Previsión Social y Capacitación",524.6,524.6,"Pesos","Mensual y Bimestral"]
[125,"Previsión Social y Capacitación",524.6,524.6,"Pesos","Mensual y Bimestral"]
[126,"Quinquenio, Previsión Social y Capacitación",1173.6399999999999,1173.6399999999999,"Pesos","Mensual y Bimestral"]
[127,"Previsión Social y Capacitación",504.18,504.18,"Pesos","Mensual y Bimestral"]
[128,"Previsión Social y Capacitación",524.6,524.6,"Pesos","Mensual y Bimestral"]
[129,"Quinquenio, Previsión Social y Capacitación",1173.6399999999999,1173.6399999999999,"Pesos","Mensual y Bimestral"]
[130,"Previsión Social y Capacitación",524.6,{"$f":"C133","v":524.6},"Pesos","Mensual y Bimestral"]
[131,"Previsión Social y Capacitación",524.6,524.6,"Pesos","Mensual y Bimestral"]
[132,"Previsión Social y Capacitación",524.6,524.6,"Pesos","Mensual y Bimestral"]
[133,"Previsión Social y Capacitación",524.6,524.6,"Pesos","Mensual y Bimestral"]
[134,"Previsión Social y Capacitación",524.6,524.6,"Pesos","Mensual y Bimestral"]
[135,"Quinquenio, Previsión Social y Capacitación",1173.6399999999999,1173.6399999999999,"Pesos","Mensual y Bimestral"]
[136,"Previsión Social y Capacitación",524.6,524.6,"Pesos","Mensual y Bimestral"]
[137,"Previsión Social y Capacitación",524.6,524.6,"Pesos","Mensual y Bimestral"]
[138,"Previsión Social y Capacitación",524.6,524.6,"Pesos","Mensual y Bimestral"]
[139,"Quinquenio, Previsión Social y Capacitación",1173.6399999999999,1173.6399999999999,"Pesos","Mensual y Bimestral"]
[140,"Previsión Social y Capacitación",524.6,524.6,"Pesos","Mensual y Bimestral"]
[141,"Previsión Social y Capacitación",524.6,524.6,"Pesos","Mensual y Bimestral"]
[142,"Previsión Social y Capacitación",524.6,524.6,"Pesos","Mensual y Bimestral"]
[143,"Previsión Social y Capacitación",524.6,524.6,"Pesos","Mensual y Bimestral"]
[144,"Previsión Social y Capacitación",524.6,524.6,"Pesos","Mensual y Bimestral"]
[145,"Previsión Social y Capacitación",524.6,524.6,"Pesos","Mensual y Bimestral"]
[146,"Quinquenio, Previsión Social y Capacitación",1173.6399999999999,1173.6399999999999,"Pesos","Mensual y Bimestral"]
[147,"Previsión Social y Capacitación",524.6,524.6,"Pesos","Mensual y Bimestral"]
[148,"Quinquenio, Previsión Social y Capacitación",1668.84,1668.84,"Pesos","Mensual y Bimestral"]
[149,"Quinquenio, Previsión Social y Capacitación",1173.6399999999999,1173.6399999999999,"Pesos","Mensual y Bimestral"]
[150,"Quinquenio, Previsión Social y Capacitación",1173.6399999999999,1173.6399999999999,"Pesos","Mensual y Bimestral"]
[151,"Previsión Social y Capacitación",524.6,524.6,"Pesos","Mensual y Bimestral"]
[152,"Previsión Social y Capacitación",524.6,524.6,"Pesos","Mensual y Bimestral"]
[153,"Quinquenio, Previsión Social y Capacitación",1173.6399999999999,1173.6399999999999,"Pesos","Mensual y Bimestral"]
[154,"Previsión Social y Capacitación",524.6,524.6,"Pesos","Mensual y Bimestral"]
[155,"Previsión Social y Capacitación",524.6,524.6,"Pesos","Mensual y Bimestral"]
[156,"Quinquenio, Previsión Social y Capacitación",1173.6399999999999,1173.6399999999999,"Pesos","Mensual y Bimestral"]
[157,"Previsión Social y Capacitación",524.6,524.6,"Pesos","Mensual y Bimestral"]
[158,"Previsión Social y Capacitación",524.6,524.6,"Pesos","Mensual y Bimestral"]
[159,"Previsión Social y Capacitación",524.6,524.6,"Pesos","Mensual y Bimestral"]
[160,"Previsión Social y Capacitación",524.6,524.6,"Pesos","Mensual y Bimestral"]
[161,"Previsión Social y Capacitación",524.6,524.6,"Pesos","Mensual y Bimestral"]
[162,"Quinquenio, Previsión Social y Capacitación",1173.6399999999999,1173.6399999999999,"Pesos","Mensual y Bimestral"]
[163,"Previsión Social y Capacitación",524.6,{"$f":"C166","v":524.6},"Pesos","Mensual y Bimestral"]

{"sheet":"Tabla_512942","index":18,"n_rows":3,"n_cols":3,"rows_kept":3,"cut":false,"hidden":false,"merged":[]}
[null,"1","1"]
[null,"65871","65872"]
["ID","Descripción de las prestaciones en especie","Periodicidad de las prestaciones en especie"]